Body Name,Body,Date,Department,Beneficiary,Summary of Purpose (SeRCOP),Amount,Merchant Code,Transaction Number,Supplier ID
Sandwell Metropolitan Borough Council,http://www.sandwell.gov.uk/info/200202/performance_and_spending/1079/payments_over_500,01-Feb-2022,Adults Social Care Capital,AXIS EUROPE PLC                                                           02,Adults Social Care Capital,5165.13,Deferred Charges/Grant Payments,2122P11_CR00001,64946
Sandwell Metropolitan Borough Council,http://www.sandwell.gov.uk/info/200202/performance_and_spending/1079/payments_over_500,01-Feb-2022,Adults Social Care Capital,DLM BUILDING & MAINTENANCE LTD,Adults Social Care Capital,7862.48,Deferred Charges/Grant Payments,2122P11_CR00002,137596
Sandwell Metropolitan Borough Council,http://www.sandwell.gov.uk/info/200202/performance_and_spending/1079/payments_over_500,01-Feb-2022,Adults Social Care Capital,DOLPHIN LIFTS MIDLANDS LTD,Adults Social Care Capital,1476.66,Deferred Charges/Grant Payments,2122P11_CR00003,123852
Sandwell Metropolitan Borough Council,http://www.sandwell.gov.uk/info/200202/performance_and_spending/1079/payments_over_500,01-Feb-2022,Adults Social Care Capital,DOLPHIN LIFTS MIDLANDS LTD,Adults Social Care Capital,1710.00,Deferred Charges/Grant Payments,2122P11_CR00004,123852
Sandwell Metropolitan Borough Council,http://www.sandwell.gov.uk/info/200202/performance_and_spending/1079/payments_over_500,01-Feb-2022,Adults Social Care Capital,DOLPHIN LIFTS MIDLANDS LTD,Adults Social Care Capital,3938.00,Deferred Charges/Grant Payments,2122P11_CR00005,123852
Sandwell Metropolitan Borough Council,http://www.sandwell.gov.uk/info/200202/performance_and_spending/1079/payments_over_500,01-Feb-2022,Adults Social Care Capital,DOLPHIN LIFTS MIDLANDS LTD,Adults Social Care Capital,6425.00,Deferred Charges/Grant Payments,2122P11_CR00006,123852
Sandwell Metropolitan Borough Council,http://www.sandwell.gov.uk/info/200202/performance_and_spending/1079/payments_over_500,01-Feb-2022,Adults Social Care Capital,LIFT & ENGINEERING SERVICES LTD,Adults Social Care Capital,6263.70,"CIP - New Construction,Conversion, Enhancement & Reno",2122P11_CR00007,77003962
Sandwell Metropolitan Borough Council,http://www.sandwell.gov.uk/info/200202/performance_and_spending/1079/payments_over_500,01-Feb-2022,Adults Social Care Capital,LIFT & ENGINEERING SERVICES LTD,Adults Social Care Capital,1173.72,"CIP - New Construction,Conversion, Enhancement & Reno",2122P11_CR00008,77003962
Sandwell Metropolitan Borough Council,http://www.sandwell.gov.uk/info/200202/performance_and_spending/1079/payments_over_500,11-Feb-2022,Adults Social Care Capital,LIFT & ENGINEERING SERVICES LTD,Adults Social Care Capital,15323.37,"CIP - New Construction,Conversion, Enhancement & Reno",2122P11_CR00009,77003962
Sandwell Metropolitan Borough Council,http://www.sandwell.gov.uk/info/200202/performance_and_spending/1079/payments_over_500,01-Feb-2022,Adults Social Care Capital,RIDGE & PARTNERS LLP,Adults Social Care Capital,1500.00,"CIP - New Construction,Conversion, Enhancement & Reno",2122P11_CR00010,134994
Sandwell Metropolitan Borough Council,http://www.sandwell.gov.uk/info/200202/performance_and_spending/1079/payments_over_500,01-Feb-2022,Adults Social Care Capital,VINCI CONSTRUCTION LTD,Adults Social Care Capital,4563.55,Deferred Charges/Grant Payments,2122P11_CR00011,36361
Sandwell Metropolitan Borough Council,http://www.sandwell.gov.uk/info/200202/performance_and_spending/1079/payments_over_500,01-Feb-2022,Adults Social Care Capital,VINCI CONSTRUCTION LTD,Adults Social Care Capital,6981.02,Deferred Charges/Grant Payments,2122P11_CR00012,36361
Sandwell Metropolitan Borough Council,http://www.sandwell.gov.uk/info/200202/performance_and_spending/1079/payments_over_500,01-Feb-2022,Adults Social Care Capital,VINCI CONSTRUCTION LTD,Adults Social Care Capital,5330.18,Deferred Charges/Grant Payments,2122P11_CR00013,36361
Sandwell Metropolitan Borough Council,http://www.sandwell.gov.uk/info/200202/performance_and_spending/1079/payments_over_500,01-Feb-2022,Adults Social Care Capital,VINCI CONSTRUCTION LTD,Adults Social Care Capital,6326.12,Deferred Charges/Grant Payments,2122P11_CR00014,36361
Sandwell Metropolitan Borough Council,http://www.sandwell.gov.uk/info/200202/performance_and_spending/1079/payments_over_500,01-Feb-2022,Adults Social Care Capital,VINCI CONSTRUCTION LTD,Adults Social Care Capital,5241.03,Deferred Charges/Grant Payments,2122P11_CR00015,36361
Sandwell Metropolitan Borough Council,http://www.sandwell.gov.uk/info/200202/performance_and_spending/1079/payments_over_500,01-Feb-2022,Adults Social Care Capital,VINCI CONSTRUCTION LTD,Adults Social Care Capital,6454.37,Deferred Charges/Grant Payments,2122P11_CR00016,36361
Sandwell Metropolitan Borough Council,http://www.sandwell.gov.uk/info/200202/performance_and_spending/1079/payments_over_500,01-Feb-2022,Adults Social Care Capital,VINCI CONSTRUCTION LTD,Adults Social Care Capital,5865.41,Deferred Charges/Grant Payments,2122P11_CR00017,36361
Sandwell Metropolitan Borough Council,http://www.sandwell.gov.uk/info/200202/performance_and_spending/1079/payments_over_500,01-Feb-2022,Adults Social Care Capital,VINCI CONSTRUCTION LTD,Adults Social Care Capital,5303.59,Deferred Charges/Grant Payments,2122P11_CR00018,36361
Sandwell Metropolitan Borough Council,http://www.sandwell.gov.uk/info/200202/performance_and_spending/1079/payments_over_500,01-Feb-2022,Adults Social Care Capital,VINCI CONSTRUCTION LTD,Adults Social Care Capital,4720.96,Deferred Charges/Grant Payments,2122P11_CR00019,36361
Sandwell Metropolitan Borough Council,http://www.sandwell.gov.uk/info/200202/performance_and_spending/1079/payments_over_500,22-Feb-2022,Adults Social Care Capital,VINCI CONSTRUCTION LTD,Adults Social Care Capital,6472.79,Deferred Charges/Grant Payments,2122P11_CR00020,36361
Sandwell Metropolitan Borough Council,http://www.sandwell.gov.uk/info/200202/performance_and_spending/1079/payments_over_500,22-Feb-2022,Adults Social Care Capital,VINCI CONSTRUCTION LTD,Adults Social Care Capital,6000.25,Deferred Charges/Grant Payments,2122P11_CR00021,36361
Sandwell Metropolitan Borough Council,http://www.sandwell.gov.uk/info/200202/performance_and_spending/1079/payments_over_500,01-Feb-2022,Adults Social Care Capital,WILLMOTT DIXON CONSTRUCTION LIMITED,Adults Social Care Capital,842062.59,"CIP - New Construction,Conversion, Enhancement & Reno",2122P11_CR00022,34081
Sandwell Metropolitan Borough Council,http://www.sandwell.gov.uk/info/200202/performance_and_spending/1079/payments_over_500,01-Feb-2022,Adults Social Care Capital,HOME DESIGN,Adults Social Care Capital,5000.00,Deferred Charges/Grant Payments,2122P11_CR00023,141847
Sandwell Metropolitan Borough Council,http://www.sandwell.gov.uk/info/200202/performance_and_spending/1079/payments_over_500,01-Feb-2022,Adults Social Care Capital,REDACTED PERSONAL DATA,Adults Social Care Capital,5030.00,Deferred Charges/Grant Payments,2122P11_CR00024,REDACTED PERSONAL DATA
Sandwell Metropolitan Borough Council,http://www.sandwell.gov.uk/info/200202/performance_and_spending/1079/payments_over_500,01-Feb-2022,Adults Social Care Capital,REDACTED PERSONAL DATA,Adults Social Care Capital,7996.76,Deferred Charges/Grant Payments,2122P11_CR00025,REDACTED PERSONAL DATA
Sandwell Metropolitan Borough Council,http://www.sandwell.gov.uk/info/200202/performance_and_spending/1079/payments_over_500,01-Feb-2022,Adults Social Care Capital,TDF DESIGN LIMITED,Adults Social Care Capital,30510.00,Deferred Charges/Grant Payments,2122P11_CR00026,10320
Sandwell Metropolitan Borough Council,http://www.sandwell.gov.uk/info/200202/performance_and_spending/1079/payments_over_500,01-Feb-2022,Adults Social Care Capital,TDF DESIGN LIMITED,Adults Social Care Capital,32975.77,Deferred Charges/Grant Payments,2122P11_CR00027,10320
Sandwell Metropolitan Borough Council,http://www.sandwell.gov.uk/info/200202/performance_and_spending/1079/payments_over_500,01-Feb-2022,Adults Social Care Capital,TDF DESIGN LIMITED,Adults Social Care Capital,1650.00,Deferred Charges/Grant Payments,2122P11_CR00028,10320
Sandwell Metropolitan Borough Council,http://www.sandwell.gov.uk/info/200202/performance_and_spending/1079/payments_over_500,01-Feb-2022,Adults Social Care Capital,TDF DESIGN LIMITED,Adults Social Care Capital,20690.00,Deferred Charges/Grant Payments,2122P11_CR00029,10320
Sandwell Metropolitan Borough Council,http://www.sandwell.gov.uk/info/200202/performance_and_spending/1079/payments_over_500,01-Feb-2022,Assistant Chief Executive (Excl SIU),AMCORP GROUP LTD,Assistant Chief Executive (Excl SIU),37325.00,Materials & Consumables,2122P11_CR00030,155889
Sandwell Metropolitan Borough Council,http://www.sandwell.gov.uk/info/200202/performance_and_spending/1079/payments_over_500,01-Feb-2022,Childrens Services,4 COMMUNITY TRUST CIC,Childrens Services,4500.00,Grant Payments,2122P11_CR00031,137880
Sandwell Metropolitan Borough Council,http://www.sandwell.gov.uk/info/200202/performance_and_spending/1079/payments_over_500,16-Feb-2022,Childrens Services,A OAKES LTD,Childrens Services,600.00,Protective Clothing & Uniforms,2122P11_CR00032,01042944
Sandwell Metropolitan Borough Council,http://www.sandwell.gov.uk/info/200202/performance_and_spending/1079/payments_over_500,16-Feb-2022,Childrens Services,ADVENTURE KIT UK LTD,Childrens Services,3546.00,Equipment & Furniture ,2122P11_CR00033,01639399
Sandwell Metropolitan Borough Council,http://www.sandwell.gov.uk/info/200202/performance_and_spending/1079/payments_over_500,01-Feb-2022,Childrens Services,AMP BIOMASS FUEL LTD T/A AMP CLEAN ENERGY,Childrens Services,2921.66,Ingestre Hall Arts Centre.Energy Costs-Bio Energy Costs.Bio Mass Fuel.0.0.Sandwell MBC,2122P11_CR00034,128761
Sandwell Metropolitan Borough Council,http://www.sandwell.gov.uk/info/200202/performance_and_spending/1079/payments_over_500,04-Feb-2022,Childrens Services,ASPECT POWDER COATINGS LTD,Childrens Services,1010.75,Externally Purchased Professional Services ,2122P11_CR00035,56653
Sandwell Metropolitan Borough Council,http://www.sandwell.gov.uk/info/200202/performance_and_spending/1079/payments_over_500,01-Feb-2022,Childrens Services,AVANTI GAS LIMITED,Childrens Services,2257.09,Gas,2122P11_CR00036,60069
Sandwell Metropolitan Borough Council,http://www.sandwell.gov.uk/info/200202/performance_and_spending/1079/payments_over_500,01-Feb-2022,Childrens Services,BAINS TRAVEL,Childrens Services,1400.00,Public Transport,2122P11_CR00037,06002298
Sandwell Metropolitan Borough Council,http://www.sandwell.gov.uk/info/200202/performance_and_spending/1079/payments_over_500,01-Feb-2022,Childrens Services,BAINS TRAVEL,Childrens Services,1378.00,Public Transport,2122P11_CR00038,06002298
Sandwell Metropolitan Borough Council,http://www.sandwell.gov.uk/info/200202/performance_and_spending/1079/payments_over_500,01-Feb-2022,Childrens Services,BAINS TRAVEL,Childrens Services,2084.67,Public Transport,2122P11_CR00039,06002298
Sandwell Metropolitan Borough Council,http://www.sandwell.gov.uk/info/200202/performance_and_spending/1079/payments_over_500,01-Feb-2022,Childrens Services,BAINS TRAVEL,Childrens Services,3120.00,Public Transport,2122P11_CR00040,06002298
Sandwell Metropolitan Borough Council,http://www.sandwell.gov.uk/info/200202/performance_and_spending/1079/payments_over_500,16-Feb-2022,Childrens Services,BANGLADESHI WOMEN'S ASSOCIATION LIMITED,Childrens Services,1010.75,Externally Purchased Professional Services ,2122P11_CR00041,69648
Sandwell Metropolitan Borough Council,http://www.sandwell.gov.uk/info/200202/performance_and_spending/1079/payments_over_500,01-Feb-2022,Childrens Services,BAUER RADIO LIMITED,Childrens Services,3830.80,Advertising & Publicity,2122P11_CR00042,130060
Sandwell Metropolitan Borough Council,http://www.sandwell.gov.uk/info/200202/performance_and_spending/1079/payments_over_500,02-Feb-2022,Childrens Services,BSN ASSOCIATES LIMITED,Childrens Services,1010.75,Externally Purchased Professional Services ,2122P11_CR00043,152374
Sandwell Metropolitan Borough Council,http://www.sandwell.gov.uk/info/200202/performance_and_spending/1079/payments_over_500,01-Feb-2022,Childrens Services,BUTT TAXIS,Childrens Services,4103.83,Public Transport,2122P11_CR00044,109306
Sandwell Metropolitan Borough Council,http://www.sandwell.gov.uk/info/200202/performance_and_spending/1079/payments_over_500,04-Feb-2022,Childrens Services,CARLYLE LTD,Childrens Services,941.16,Externally Purchased Professional Services ,2122P11_CR00045,01507965
Sandwell Metropolitan Borough Council,http://www.sandwell.gov.uk/info/200202/performance_and_spending/1079/payments_over_500,04-Feb-2022,Childrens Services,CARLYLE LTD,Childrens Services,1010.75,Externally Purchased Professional Services ,2122P11_CR00046,01507965
Sandwell Metropolitan Borough Council,http://www.sandwell.gov.uk/info/200202/performance_and_spending/1079/payments_over_500,04-Feb-2022,Childrens Services,CARLYLE LTD,Childrens Services,1010.75,Externally Purchased Professional Services ,2122P11_CR00047,01507965
Sandwell Metropolitan Borough Council,http://www.sandwell.gov.uk/info/200202/performance_and_spending/1079/payments_over_500,01-Feb-2022,Childrens Services,CERTAS ENERGY LIMITED,Childrens Services,2268.80,Oil,2122P11_CR00048,80421
Sandwell Metropolitan Borough Council,http://www.sandwell.gov.uk/info/200202/performance_and_spending/1079/payments_over_500,01-Feb-2022,Childrens Services,CERTAS ENERGY LIMITED,Childrens Services,1181.77,Oil,2122P11_CR00049,80421
Sandwell Metropolitan Borough Council,http://www.sandwell.gov.uk/info/200202/performance_and_spending/1079/payments_over_500,09-Feb-2022,Childrens Services,COMMUNITY FOUNDATION,Childrens Services,1010.75,Externally Purchased Professional Services ,2122P11_CR00050,121601
Sandwell Metropolitan Borough Council,http://www.sandwell.gov.uk/info/200202/performance_and_spending/1079/payments_over_500,09-Feb-2022,Childrens Services,COMMUNITY FOUNDATION,Childrens Services,1010.75,Externally Purchased Professional Services ,2122P11_CR00051,121601
Sandwell Metropolitan Borough Council,http://www.sandwell.gov.uk/info/200202/performance_and_spending/1079/payments_over_500,04-Feb-2022,Childrens Services,CONFEDERATION OF BANGLADESHI ORGANISATIONS (CBO) LIMITED,Childrens Services,941.16,Externally Purchased Professional Services ,2122P11_CR00052,10034
Sandwell Metropolitan Borough Council,http://www.sandwell.gov.uk/info/200202/performance_and_spending/1079/payments_over_500,07-Feb-2022,Childrens Services,CORONA ENERGY RETAIL 2 LIMITED,Childrens Services,3305.52,Gas,2122P11_CR00053,118395
Sandwell Metropolitan Borough Council,http://www.sandwell.gov.uk/info/200202/performance_and_spending/1079/payments_over_500,01-Feb-2022,Childrens Services,CRYSTAL HR & PAYROLL LTD,Childrens Services,1010.75,Externally Purchased Professional Services ,2122P11_CR00054,124658
Sandwell Metropolitan Borough Council,http://www.sandwell.gov.uk/info/200202/performance_and_spending/1079/payments_over_500,01-Feb-2022,Childrens Services,D J TRAVEL,Childrens Services,2800.00,Public Transport,2122P11_CR00055,96415
Sandwell Metropolitan Borough Council,http://www.sandwell.gov.uk/info/200202/performance_and_spending/1079/payments_over_500,18-Feb-2022,Childrens Services,DROACH TRAVEL LTD,Childrens Services,20232.84,Public Transport,2122P11_CR00056,06002707
Sandwell Metropolitan Borough Council,http://www.sandwell.gov.uk/info/200202/performance_and_spending/1079/payments_over_500,01-Feb-2022,Childrens Services,DUDLEY MBC,Childrens Services,2122.01,External Contract Hire,2122P11_CR00057,01349846
Sandwell Metropolitan Borough Council,http://www.sandwell.gov.uk/info/200202/performance_and_spending/1079/payments_over_500,01-Feb-2022,Childrens Services,DUDLEY MBC,Childrens Services,4631.04,External Contract Hire,2122P11_CR00058,01349846
Sandwell Metropolitan Borough Council,http://www.sandwell.gov.uk/info/200202/performance_and_spending/1079/payments_over_500,01-Feb-2022,Childrens Services,DUDLEY MBC,Childrens Services,1100.00,External Contract Hire,2122P11_CR00059,01349846
Sandwell Metropolitan Borough Council,http://www.sandwell.gov.uk/info/200202/performance_and_spending/1079/payments_over_500,01-Feb-2022,Childrens Services,DUDLEY MBC,Childrens Services,1641.60,External Contract Hire,2122P11_CR00060,01349846
Sandwell Metropolitan Borough Council,http://www.sandwell.gov.uk/info/200202/performance_and_spending/1079/payments_over_500,11-Feb-2022,Childrens Services,FIRST CHOICE,Childrens Services,2595.00,Protective Clothing & Uniforms,2122P11_CR00061,01465132
Sandwell Metropolitan Borough Council,http://www.sandwell.gov.uk/info/200202/performance_and_spending/1079/payments_over_500,07-Feb-2022,Childrens Services,FIRST RESPONSE (FIRST AID) LTD,Childrens Services,875.00,Externally Purchased Professional Services ,2122P11_CR00062,57372
Sandwell Metropolitan Borough Council,http://www.sandwell.gov.uk/info/200202/performance_and_spending/1079/payments_over_500,01-Feb-2022,Childrens Services,FIVE STAR TAXIS (DUDLEY) LTD,Childrens Services,87754.93,Public Transport,2122P11_CR00063,133542
Sandwell Metropolitan Borough Council,http://www.sandwell.gov.uk/info/200202/performance_and_spending/1079/payments_over_500,01-Feb-2022,Childrens Services,FUTURE FIRST INDEPENDENT SCHOOL,Childrens Services,1890.00,External Contract Hire,2122P11_CR00064,106165
Sandwell Metropolitan Borough Council,http://www.sandwell.gov.uk/info/200202/performance_and_spending/1079/payments_over_500,01-Feb-2022,Childrens Services,FUTURE FIRST INDEPENDENT SCHOOL,Childrens Services,1890.00,External Contract Hire,2122P11_CR00065,106165
Sandwell Metropolitan Borough Council,http://www.sandwell.gov.uk/info/200202/performance_and_spending/1079/payments_over_500,01-Feb-2022,Childrens Services,FUTURE FIRST INDEPENDENT SCHOOL,Childrens Services,1890.00,External Contract Hire,2122P11_CR00066,106165
Sandwell Metropolitan Borough Council,http://www.sandwell.gov.uk/info/200202/performance_and_spending/1079/payments_over_500,01-Feb-2022,Childrens Services,FUTURE FIRST INDEPENDENT SCHOOL,Childrens Services,1890.00,External Contract Hire,2122P11_CR00067,106165
Sandwell Metropolitan Borough Council,http://www.sandwell.gov.uk/info/200202/performance_and_spending/1079/payments_over_500,01-Feb-2022,Childrens Services,FUTURE FIRST INDEPENDENT SCHOOL,Childrens Services,1890.00,External Contract Hire,2122P11_CR00068,106165
Sandwell Metropolitan Borough Council,http://www.sandwell.gov.uk/info/200202/performance_and_spending/1079/payments_over_500,01-Feb-2022,Childrens Services,FUTURE FIRST INDEPENDENT SCHOOL,Childrens Services,1890.00,External Contract Hire,2122P11_CR00069,106165
Sandwell Metropolitan Borough Council,http://www.sandwell.gov.uk/info/200202/performance_and_spending/1079/payments_over_500,01-Feb-2022,Childrens Services,FUTURE FIRST INDEPENDENT SCHOOL,Childrens Services,1890.00,External Contract Hire,2122P11_CR00070,106165
Sandwell Metropolitan Borough Council,http://www.sandwell.gov.uk/info/200202/performance_and_spending/1079/payments_over_500,09-Feb-2022,Childrens Services,GATEWAY QUALIFICATIONS,Childrens Services,669.00,Externally Purchased Professional Services ,2122P11_CR00071,151038
Sandwell Metropolitan Borough Council,http://www.sandwell.gov.uk/info/200202/performance_and_spending/1079/payments_over_500,01-Feb-2022,Childrens Services,GREEN DESTINATIONS LTD,Childrens Services,1586.42,Public Transport,2122P11_CR00072,109275
Sandwell Metropolitan Borough Council,http://www.sandwell.gov.uk/info/200202/performance_and_spending/1079/payments_over_500,01-Feb-2022,Childrens Services,HARGATE PRIMARY SCHOOL,Childrens Services,1000.00,Grants,2122P11_CR00073,04010481
Sandwell Metropolitan Borough Council,http://www.sandwell.gov.uk/info/200202/performance_and_spending/1079/payments_over_500,01-Feb-2022,Childrens Services,HOPE EDUCATION LTD,Childrens Services,590.04,"Printing, Stationery & General Office Expenses",2122P11_CR00074,01777295
Sandwell Metropolitan Borough Council,http://www.sandwell.gov.uk/info/200202/performance_and_spending/1079/payments_over_500,01-Feb-2022,Childrens Services,INGESTRE ORANGERY AND GARDENS,Childrens Services,650.00,Materials & Consumables,2122P11_CR00075,127331
Sandwell Metropolitan Borough Council,http://www.sandwell.gov.uk/info/200202/performance_and_spending/1079/payments_over_500,02-Feb-2022,Childrens Services,JMB GLOBAL LTD,Childrens Services,941.16,Externally Purchased Professional Services ,2122P11_CR00076,152360
Sandwell Metropolitan Borough Council,http://www.sandwell.gov.uk/info/200202/performance_and_spending/1079/payments_over_500,01-Feb-2022,Childrens Services,JPC TRAVEL SOLUTION,Childrens Services,50125.85,Public Transport,2122P11_CR00077,138533
Sandwell Metropolitan Borough Council,http://www.sandwell.gov.uk/info/200202/performance_and_spending/1079/payments_over_500,01-Feb-2022,Childrens Services,JUNIPER TRAINING LTD,Childrens Services,11520.00,Externally Purchased Professional Services ,2122P11_CR00078,84880
Sandwell Metropolitan Borough Council,http://www.sandwell.gov.uk/info/200202/performance_and_spending/1079/payments_over_500,09-Feb-2022,Childrens Services,JUNIPER TRAINING LTD,Childrens Services,1680.33,Externally Purchased Professional Services ,2122P11_CR00079,84880
Sandwell Metropolitan Borough Council,http://www.sandwell.gov.uk/info/200202/performance_and_spending/1079/payments_over_500,09-Feb-2022,Childrens Services,JUNIPER TRAINING LTD,Childrens Services,3030.00,Externally Purchased Professional Services ,2122P11_CR00080,84880
Sandwell Metropolitan Borough Council,http://www.sandwell.gov.uk/info/200202/performance_and_spending/1079/payments_over_500,04-Feb-2022,Childrens Services,KANGAROO POUCH LIMITED,Childrens Services,5646.94,Externally Purchased Professional Services ,2122P11_CR00081,106981
Sandwell Metropolitan Borough Council,http://www.sandwell.gov.uk/info/200202/performance_and_spending/1079/payments_over_500,04-Feb-2022,Childrens Services,KANGAROO POUCH LIMITED,Childrens Services,6064.51,Externally Purchased Professional Services ,2122P11_CR00082,106981
Sandwell Metropolitan Borough Council,http://www.sandwell.gov.uk/info/200202/performance_and_spending/1079/payments_over_500,01-Feb-2022,Childrens Services,LYNG PRIMARY SCHOOL                                              01,Childrens Services,1000.00,Grants,2122P11_CR00083,21030682
Sandwell Metropolitan Borough Council,http://www.sandwell.gov.uk/info/200202/performance_and_spending/1079/payments_over_500,03-Feb-2022,Childrens Services,MEAL BOX DIRECT LTD,Childrens Services,716.39,Externally Purchased Professional Services ,2122P11_CR00084,155083
Sandwell Metropolitan Borough Council,http://www.sandwell.gov.uk/info/200202/performance_and_spending/1079/payments_over_500,11-Feb-2022,Childrens Services,MIDLAND FORESTRY LIMITED,Childrens Services,6180.00,Grounds Maintenance & Improvements,2122P11_CR00085,45812
Sandwell Metropolitan Borough Council,http://www.sandwell.gov.uk/info/200202/performance_and_spending/1079/payments_over_500,01-Feb-2022,Childrens Services,MOHAMMED SHOKAT,Childrens Services,50587.91,Public Transport,2122P11_CR00086,08583128
Sandwell Metropolitan Borough Council,http://www.sandwell.gov.uk/info/200202/performance_and_spending/1079/payments_over_500,01-Feb-2022,Childrens Services,MOHAMMED SHOKAT,Childrens Services,50542.41,Public Transport,2122P11_CR00087,08583128
Sandwell Metropolitan Borough Council,http://www.sandwell.gov.uk/info/200202/performance_and_spending/1079/payments_over_500,01-Feb-2022,Childrens Services,MURRAY HALL COMMUNITY TRUST,Childrens Services,151965.45,Contract Payments,2122P11_CR00088,01627284
Sandwell Metropolitan Borough Council,http://www.sandwell.gov.uk/info/200202/performance_and_spending/1079/payments_over_500,01-Feb-2022,Childrens Services,NORTH SMETHWICK DEVELOPMENT TRUST,Childrens Services,1500.00,Catering Provisions,2122P11_CR00089,01346623
Sandwell Metropolitan Borough Council,http://www.sandwell.gov.uk/info/200202/performance_and_spending/1079/payments_over_500,01-Feb-2022,Childrens Services,OPEN LENS MEDIA,Childrens Services,836.00,Externally Purchased Professional Services ,2122P11_CR00090,154205
Sandwell Metropolitan Borough Council,http://www.sandwell.gov.uk/info/200202/performance_and_spending/1079/payments_over_500,02-Feb-2022,Childrens Services,OPEN LENS MEDIA,Childrens Services,836.00,Externally Purchased Professional Services ,2122P11_CR00091,154205
Sandwell Metropolitan Borough Council,http://www.sandwell.gov.uk/info/200202/performance_and_spending/1079/payments_over_500,02-Feb-2022,Childrens Services,OPEN LENS MEDIA,Childrens Services,836.00,Externally Purchased Professional Services ,2122P11_CR00092,154205
Sandwell Metropolitan Borough Council,http://www.sandwell.gov.uk/info/200202/performance_and_spending/1079/payments_over_500,01-Feb-2022,Childrens Services,PREMIER PRINT & PROMOTIONS LIMITED,Childrens Services,1650.00,Externally Purchased Professional Services ,2122P11_CR00093,128540
Sandwell Metropolitan Borough Council,http://www.sandwell.gov.uk/info/200202/performance_and_spending/1079/payments_over_500,09-Feb-2022,Childrens Services,PROSPECTS SERVICES LIMITED,Childrens Services,4089.92,Grant Payments,2122P11_CR00094,01721288
Sandwell Metropolitan Borough Council,http://www.sandwell.gov.uk/info/200202/performance_and_spending/1079/payments_over_500,09-Feb-2022,Childrens Services,PROSPECTS SERVICES LIMITED,Childrens Services,4089.92,Grant Payments,2122P11_CR00095,01721288
Sandwell Metropolitan Borough Council,http://www.sandwell.gov.uk/info/200202/performance_and_spending/1079/payments_over_500,01-Feb-2022,Childrens Services,PROSPECTS SERVICES LIMITED,Childrens Services,4089.92,ICT ,2122P11_CR00096,01721288
Sandwell Metropolitan Borough Council,http://www.sandwell.gov.uk/info/200202/performance_and_spending/1079/payments_over_500,01-Feb-2022,Childrens Services,PROSPECTS SERVICES LIMITED,Childrens Services,4089.92,ICT ,2122P11_CR00097,01721288
Sandwell Metropolitan Borough Council,http://www.sandwell.gov.uk/info/200202/performance_and_spending/1079/payments_over_500,01-Feb-2022,Childrens Services,RICHARDS CCTV,Childrens Services,1050.00,Security,2122P11_CR00098,01665737
Sandwell Metropolitan Borough Council,http://www.sandwell.gov.uk/info/200202/performance_and_spending/1079/payments_over_500,09-Feb-2022,Childrens Services,RSPB,Childrens Services,870.00,Externally Purchased Professional Services ,2122P11_CR00099,11438
Sandwell Metropolitan Borough Council,http://www.sandwell.gov.uk/info/200202/performance_and_spending/1079/payments_over_500,01-Feb-2022,Childrens Services,SANDWELL CHILDREN'S TRUST,Childrens Services,754567.15,Other Establishments,2122P11_CR00100,133302
Sandwell Metropolitan Borough Council,http://www.sandwell.gov.uk/info/200202/performance_and_spending/1079/payments_over_500,01-Feb-2022,Childrens Services,SANDWELL CHILDREN'S TRUST,Childrens Services,5232939.38,Other Establishments,2122P11_CR00101,133302
Sandwell Metropolitan Borough Council,http://www.sandwell.gov.uk/info/200202/performance_and_spending/1079/payments_over_500,01-Feb-2022,Childrens Services,SANDWELL CHILDREN'S TRUST,Childrens Services,464837.00,SH Payments,2122P11_CR00102,133302
Sandwell Metropolitan Borough Council,http://www.sandwell.gov.uk/info/200202/performance_and_spending/1079/payments_over_500,10-Feb-2022,Childrens Services,SANDWELL CITIZENS ADVICE BUREAUX,Childrens Services,1010.75,Externally Purchased Professional Services ,2122P11_CR00103,01760899
Sandwell Metropolitan Borough Council,http://www.sandwell.gov.uk/info/200202/performance_and_spending/1079/payments_over_500,10-Feb-2022,Childrens Services,SANDWELL CITIZENS ADVICE BUREAUX,Childrens Services,1010.75,Externally Purchased Professional Services ,2122P11_CR00104,01760899
Sandwell Metropolitan Borough Council,http://www.sandwell.gov.uk/info/200202/performance_and_spending/1079/payments_over_500,18-Feb-2022,Childrens Services,SANDWELL CITIZENS ADVICE BUREAUX,Childrens Services,1010.75,Grants,2122P11_CR00105,01760899
Sandwell Metropolitan Borough Council,http://www.sandwell.gov.uk/info/200202/performance_and_spending/1079/payments_over_500,18-Feb-2022,Childrens Services,SANDWELL CITIZENS ADVICE BUREAUX,Childrens Services,941.16,Grants,2122P11_CR00106,01760899
Sandwell Metropolitan Borough Council,http://www.sandwell.gov.uk/info/200202/performance_and_spending/1079/payments_over_500,01-Feb-2022,Childrens Services,SANDWELL PARENTS FOR DISABLED CHILDREN,Childrens Services,6000.00,Grant Payments,2122P11_CR00107,70991
Sandwell Metropolitan Borough Council,http://www.sandwell.gov.uk/info/200202/performance_and_spending/1079/payments_over_500,01-Feb-2022,Childrens Services,SHRED-IT LIMITED,Childrens Services,620.55,Waste Disposal Charges,2122P11_CR00108,01754926
Sandwell Metropolitan Borough Council,http://www.sandwell.gov.uk/info/200202/performance_and_spending/1079/payments_over_500,01-Feb-2022,Childrens Services,SHROPSHIRE COUNCIL,Childrens Services,3858.80,External Contract Hire,2122P11_CR00109,01030303
Sandwell Metropolitan Borough Council,http://www.sandwell.gov.uk/info/200202/performance_and_spending/1079/payments_over_500,01-Feb-2022,Childrens Services,SHROPSHIRE COUNCIL,Childrens Services,2679.60,External Contract Hire,2122P11_CR00110,01030303
Sandwell Metropolitan Borough Council,http://www.sandwell.gov.uk/info/200202/performance_and_spending/1079/payments_over_500,14-Feb-2022,Childrens Services,THE ALBION FOUNDATION,Childrens Services,2366.41,Catering Provisions,2122P11_CR00111,21026659
Sandwell Metropolitan Borough Council,http://www.sandwell.gov.uk/info/200202/performance_and_spending/1079/payments_over_500,02-Feb-2022,Childrens Services,THE PRIORY PRIMARY,Childrens Services,1500.00,Grants,2122P11_CR00112,01746051
Sandwell Metropolitan Borough Council,http://www.sandwell.gov.uk/info/200202/performance_and_spending/1079/payments_over_500,02-Feb-2022,Childrens Services,THE PRIORY PRIMARY,Childrens Services,1500.00,Grants,2122P11_CR00113,01746051
Sandwell Metropolitan Borough Council,http://www.sandwell.gov.uk/info/200202/performance_and_spending/1079/payments_over_500,02-Feb-2022,Childrens Services,THE PRIORY PRIMARY,Childrens Services,1500.00,Grants,2122P11_CR00114,01746051
Sandwell Metropolitan Borough Council,http://www.sandwell.gov.uk/info/200202/performance_and_spending/1079/payments_over_500,01-Feb-2022,Childrens Services,THE PRIORY PRIMARY,Childrens Services,2509.95,Rents,2122P11_CR00115,01746051
Sandwell Metropolitan Borough Council,http://www.sandwell.gov.uk/info/200202/performance_and_spending/1079/payments_over_500,11-Feb-2022,Childrens Services,THE PRIORY PRIMARY,Childrens Services,2390.14,Rents,2122P11_CR00116,01746051
Sandwell Metropolitan Borough Council,http://www.sandwell.gov.uk/info/200202/performance_and_spending/1079/payments_over_500,01-Feb-2022,Childrens Services,TIVIDALE COMMUNITY PRIMARY SCHOOL,Childrens Services,750.00,Grants,2122P11_CR00117,20555
Sandwell Metropolitan Borough Council,http://www.sandwell.gov.uk/info/200202/performance_and_spending/1079/payments_over_500,01-Feb-2022,Childrens Services,TOH TAXIS,Childrens Services,1100.97,Public Transport,2122P11_CR00118,12250
Sandwell Metropolitan Borough Council,http://www.sandwell.gov.uk/info/200202/performance_and_spending/1079/payments_over_500,01-Feb-2022,Childrens Services,TOH TAXIS,Childrens Services,1557.85,Public Transport,2122P11_CR00119,12250
Sandwell Metropolitan Borough Council,http://www.sandwell.gov.uk/info/200202/performance_and_spending/1079/payments_over_500,01-Feb-2022,Childrens Services,TOH TAXIS,Childrens Services,1059.65,Public Transport,2122P11_CR00120,12250
Sandwell Metropolitan Borough Council,http://www.sandwell.gov.uk/info/200202/performance_and_spending/1079/payments_over_500,09-Feb-2022,Childrens Services,TOPPS MANAGEMENT & SUPPORT SERVICES LTD,Childrens Services,2142.84,Discretionary Awards,2122P11_CR00121,68846
Sandwell Metropolitan Borough Council,http://www.sandwell.gov.uk/info/200202/performance_and_spending/1079/payments_over_500,15-Feb-2022,Childrens Services,TOTALENERGIES GAS & POWER LTD,Childrens Services,1813.66,Electricity,2122P11_CR00122,107605
Sandwell Metropolitan Borough Council,http://www.sandwell.gov.uk/info/200202/performance_and_spending/1079/payments_over_500,01-Feb-2022,Childrens Services,TOTALENERGIES GAS & POWER LTD,Childrens Services,631.53,Electricity,2122P11_CR00123,107605
Sandwell Metropolitan Borough Council,http://www.sandwell.gov.uk/info/200202/performance_and_spending/1079/payments_over_500,07-Feb-2022,Childrens Services,TOTALENERGIES GAS & POWER LTD,Childrens Services,1324.81,Electricity,2122P11_CR00124,107605
Sandwell Metropolitan Borough Council,http://www.sandwell.gov.uk/info/200202/performance_and_spending/1079/payments_over_500,07-Feb-2022,Childrens Services,TOTALENERGIES GAS & POWER LTD,Childrens Services,1311.71,Electricity,2122P11_CR00125,107605
Sandwell Metropolitan Borough Council,http://www.sandwell.gov.uk/info/200202/performance_and_spending/1079/payments_over_500,01-Feb-2022,Childrens Services,TOTALENERGIES GAS & POWER LTD,Childrens Services,711.05,Electricity,2122P11_CR00126,107605
Sandwell Metropolitan Borough Council,http://www.sandwell.gov.uk/info/200202/performance_and_spending/1079/payments_over_500,01-Feb-2022,Childrens Services,TOTALENERGIES GAS & POWER LTD,Childrens Services,598.94,Electricity,2122P11_CR00127,107605
Sandwell Metropolitan Borough Council,http://www.sandwell.gov.uk/info/200202/performance_and_spending/1079/payments_over_500,10-Feb-2022,Childrens Services,TOTALENERGIES GAS & POWER LTD,Childrens Services,1336.40,Gas,2122P11_CR00128,107605
Sandwell Metropolitan Borough Council,http://www.sandwell.gov.uk/info/200202/performance_and_spending/1079/payments_over_500,01-Feb-2022,Childrens Services,UNITY TRAVEL,Childrens Services,940.50,Public Transport,2122P11_CR00129,64986
Sandwell Metropolitan Borough Council,http://www.sandwell.gov.uk/info/200202/performance_and_spending/1079/payments_over_500,01-Feb-2022,Childrens Services,UNITY TRAVEL,Childrens Services,2120.00,Public Transport,2122P11_CR00130,64986
Sandwell Metropolitan Borough Council,http://www.sandwell.gov.uk/info/200202/performance_and_spending/1079/payments_over_500,09-Feb-2022,Childrens Services,UPSHOT SYSTEMS CIC,Childrens Services,5000.00,ICT ,2122P11_CR00131,150986
Sandwell Metropolitan Borough Council,http://www.sandwell.gov.uk/info/200202/performance_and_spending/1079/payments_over_500,16-Feb-2022,Childrens Services,VALENCIA FINE FOODS LIMITED,Childrens Services,560.00,Grants,2122P11_CR00132,131572
Sandwell Metropolitan Borough Council,http://www.sandwell.gov.uk/info/200202/performance_and_spending/1079/payments_over_500,04-Feb-2022,Childrens Services,WEST MIDLANDS TRAVEL LIMITED,Childrens Services,768.50,Public Transport,2122P11_CR00133,01736688
Sandwell Metropolitan Borough Council,http://www.sandwell.gov.uk/info/200202/performance_and_spending/1079/payments_over_500,15-Feb-2022,Childrens Services,WYRE FOREST PEST CONTROL,Childrens Services,1390.00,Pest Control,2122P11_CR00134,155392
Sandwell Metropolitan Borough Council,http://www.sandwell.gov.uk/info/200202/performance_and_spending/1079/payments_over_500,18-Feb-2022,Childrens Services,YELLOW CARS,Childrens Services,23016.27,Public Transport,2122P11_CR00135,116819
Sandwell Metropolitan Borough Council,http://www.sandwell.gov.uk/info/200202/performance_and_spending/1079/payments_over_500,11-Feb-2022,Childrens Services,REDACTED PERSONAL DATA,Childrens Services,545.45,External Contract Hire,2122P11_CR00136,REDACTED PERSONAL DATA
Sandwell Metropolitan Borough Council,http://www.sandwell.gov.uk/info/200202/performance_and_spending/1079/payments_over_500,11-Feb-2022,Childrens Services,REDACTED PERSONAL DATA,Childrens Services,727.28,External Contract Hire,2122P11_CR00137,REDACTED PERSONAL DATA
Sandwell Metropolitan Borough Council,http://www.sandwell.gov.uk/info/200202/performance_and_spending/1079/payments_over_500,11-Feb-2022,Childrens Services,REDACTED PERSONAL DATA,Childrens Services,581.80,External Contract Hire,2122P11_CR00138,REDACTED PERSONAL DATA
Sandwell Metropolitan Borough Council,http://www.sandwell.gov.uk/info/200202/performance_and_spending/1079/payments_over_500,11-Feb-2022,Childrens Services,REDACTED PERSONAL DATA,Childrens Services,727.27,External Contract Hire,2122P11_CR00139,REDACTED PERSONAL DATA
Sandwell Metropolitan Borough Council,http://www.sandwell.gov.uk/info/200202/performance_and_spending/1079/payments_over_500,11-Feb-2022,Childrens Services,REDACTED PERSONAL DATA,Childrens Services,727.28,External Contract Hire,2122P11_CR00140,REDACTED PERSONAL DATA
Sandwell Metropolitan Borough Council,http://www.sandwell.gov.uk/info/200202/performance_and_spending/1079/payments_over_500,07-Feb-2022,Childrens Services,REDACTED PERSONAL DATA,Childrens Services,509.76,External Contract Hire,2122P11_CR00141,REDACTED PERSONAL DATA
Sandwell Metropolitan Borough Council,http://www.sandwell.gov.uk/info/200202/performance_and_spending/1079/payments_over_500,11-Feb-2022,Childrens Services,REDACTED PERSONAL DATA,Childrens Services,545.45,External Contract Hire,2122P11_CR00142,REDACTED PERSONAL DATA
Sandwell Metropolitan Borough Council,http://www.sandwell.gov.uk/info/200202/performance_and_spending/1079/payments_over_500,11-Feb-2022,Childrens Services,REDACTED PERSONAL DATA,Childrens Services,545.45,External Contract Hire,2122P11_CR00143,REDACTED PERSONAL DATA
Sandwell Metropolitan Borough Council,http://www.sandwell.gov.uk/info/200202/performance_and_spending/1079/payments_over_500,11-Feb-2022,Childrens Services,REDACTED PERSONAL DATA,Childrens Services,545.45,External Contract Hire,2122P11_CR00144,REDACTED PERSONAL DATA
Sandwell Metropolitan Borough Council,http://www.sandwell.gov.uk/info/200202/performance_and_spending/1079/payments_over_500,11-Feb-2022,Childrens Services,REDACTED PERSONAL DATA,Childrens Services,545.45,External Contract Hire,2122P11_CR00145,REDACTED PERSONAL DATA
Sandwell Metropolitan Borough Council,http://www.sandwell.gov.uk/info/200202/performance_and_spending/1079/payments_over_500,11-Feb-2022,Childrens Services,REDACTED PERSONAL DATA,Childrens Services,545.45,External Contract Hire,2122P11_CR00146,REDACTED PERSONAL DATA
Sandwell Metropolitan Borough Council,http://www.sandwell.gov.uk/info/200202/performance_and_spending/1079/payments_over_500,11-Feb-2022,Childrens Services,REDACTED PERSONAL DATA,Childrens Services,545.45,External Contract Hire,2122P11_CR00147,REDACTED PERSONAL DATA
Sandwell Metropolitan Borough Council,http://www.sandwell.gov.uk/info/200202/performance_and_spending/1079/payments_over_500,11-Feb-2022,Childrens Services,REDACTED PERSONAL DATA,Childrens Services,545.45,External Contract Hire,2122P11_CR00148,REDACTED PERSONAL DATA
Sandwell Metropolitan Borough Council,http://www.sandwell.gov.uk/info/200202/performance_and_spending/1079/payments_over_500,11-Feb-2022,Childrens Services,REDACTED PERSONAL DATA,Childrens Services,1090.90,External Contract Hire,2122P11_CR00149,REDACTED PERSONAL DATA
Sandwell Metropolitan Borough Council,http://www.sandwell.gov.uk/info/200202/performance_and_spending/1079/payments_over_500,11-Feb-2022,Childrens Services,REDACTED PERSONAL DATA,Childrens Services,545.45,External Contract Hire,2122P11_CR00150,REDACTED PERSONAL DATA
Sandwell Metropolitan Borough Council,http://www.sandwell.gov.uk/info/200202/performance_and_spending/1079/payments_over_500,11-Feb-2022,Childrens Services,REDACTED PERSONAL DATA,Childrens Services,727.27,External Contract Hire,2122P11_CR00151,REDACTED PERSONAL DATA
Sandwell Metropolitan Borough Council,http://www.sandwell.gov.uk/info/200202/performance_and_spending/1079/payments_over_500,11-Feb-2022,Childrens Services,REDACTED PERSONAL DATA,Childrens Services,727.27,External Contract Hire,2122P11_CR00152,REDACTED PERSONAL DATA
Sandwell Metropolitan Borough Council,http://www.sandwell.gov.uk/info/200202/performance_and_spending/1079/payments_over_500,11-Feb-2022,Childrens Services,REDACTED PERSONAL DATA,Childrens Services,727.27,External Contract Hire,2122P11_CR00153,REDACTED PERSONAL DATA
Sandwell Metropolitan Borough Council,http://www.sandwell.gov.uk/info/200202/performance_and_spending/1079/payments_over_500,11-Feb-2022,Childrens Services,REDACTED PERSONAL DATA,Childrens Services,727.27,External Contract Hire,2122P11_CR00154,REDACTED PERSONAL DATA
Sandwell Metropolitan Borough Council,http://www.sandwell.gov.uk/info/200202/performance_and_spending/1079/payments_over_500,11-Feb-2022,Childrens Services,REDACTED PERSONAL DATA,Childrens Services,545.45,External Contract Hire,2122P11_CR00155,REDACTED PERSONAL DATA
Sandwell Metropolitan Borough Council,http://www.sandwell.gov.uk/info/200202/performance_and_spending/1079/payments_over_500,11-Feb-2022,Childrens Services,REDACTED PERSONAL DATA,Childrens Services,545.45,External Contract Hire,2122P11_CR00156,REDACTED PERSONAL DATA
Sandwell Metropolitan Borough Council,http://www.sandwell.gov.uk/info/200202/performance_and_spending/1079/payments_over_500,11-Feb-2022,Childrens Services,REDACTED PERSONAL DATA,Childrens Services,727.27,External Contract Hire,2122P11_CR00157,REDACTED PERSONAL DATA
Sandwell Metropolitan Borough Council,http://www.sandwell.gov.uk/info/200202/performance_and_spending/1079/payments_over_500,11-Feb-2022,Childrens Services,REDACTED PERSONAL DATA,Childrens Services,727.27,External Contract Hire,2122P11_CR00158,REDACTED PERSONAL DATA
Sandwell Metropolitan Borough Council,http://www.sandwell.gov.uk/info/200202/performance_and_spending/1079/payments_over_500,11-Feb-2022,Childrens Services,REDACTED PERSONAL DATA,Childrens Services,909.09,External Contract Hire,2122P11_CR00159,REDACTED PERSONAL DATA
Sandwell Metropolitan Borough Council,http://www.sandwell.gov.uk/info/200202/performance_and_spending/1079/payments_over_500,11-Feb-2022,Childrens Services,REDACTED PERSONAL DATA,Childrens Services,545.45,External Contract Hire,2122P11_CR00160,REDACTED PERSONAL DATA
Sandwell Metropolitan Borough Council,http://www.sandwell.gov.uk/info/200202/performance_and_spending/1079/payments_over_500,11-Feb-2022,Childrens Services,REDACTED PERSONAL DATA,Childrens Services,727.27,External Contract Hire,2122P11_CR00161,REDACTED PERSONAL DATA
Sandwell Metropolitan Borough Council,http://www.sandwell.gov.uk/info/200202/performance_and_spending/1079/payments_over_500,11-Feb-2022,Childrens Services,REDACTED PERSONAL DATA,Childrens Services,545.45,External Contract Hire,2122P11_CR00162,REDACTED PERSONAL DATA
Sandwell Metropolitan Borough Council,http://www.sandwell.gov.uk/info/200202/performance_and_spending/1079/payments_over_500,11-Feb-2022,Childrens Services,REDACTED PERSONAL DATA,Childrens Services,545.45,External Contract Hire,2122P11_CR00163,REDACTED PERSONAL DATA
Sandwell Metropolitan Borough Council,http://www.sandwell.gov.uk/info/200202/performance_and_spending/1079/payments_over_500,11-Feb-2022,Childrens Services,REDACTED PERSONAL DATA,Childrens Services,545.45,External Contract Hire,2122P11_CR00164,REDACTED PERSONAL DATA
Sandwell Metropolitan Borough Council,http://www.sandwell.gov.uk/info/200202/performance_and_spending/1079/payments_over_500,11-Feb-2022,Childrens Services,REDACTED PERSONAL DATA,Childrens Services,545.45,External Contract Hire,2122P11_CR00165,REDACTED PERSONAL DATA
Sandwell Metropolitan Borough Council,http://www.sandwell.gov.uk/info/200202/performance_and_spending/1079/payments_over_500,11-Feb-2022,Childrens Services,REDACTED PERSONAL DATA,Childrens Services,727.28,External Contract Hire,2122P11_CR00166,REDACTED PERSONAL DATA
Sandwell Metropolitan Borough Council,http://www.sandwell.gov.uk/info/200202/performance_and_spending/1079/payments_over_500,11-Feb-2022,Childrens Services,REDACTED PERSONAL DATA,Childrens Services,800.00,External Contract Hire,2122P11_CR00167,REDACTED PERSONAL DATA
Sandwell Metropolitan Borough Council,http://www.sandwell.gov.uk/info/200202/performance_and_spending/1079/payments_over_500,11-Feb-2022,Childrens Services,REDACTED PERSONAL DATA,Childrens Services,727.27,External Contract Hire,2122P11_CR00168,REDACTED PERSONAL DATA
Sandwell Metropolitan Borough Council,http://www.sandwell.gov.uk/info/200202/performance_and_spending/1079/payments_over_500,11-Feb-2022,Childrens Services,REDACTED PERSONAL DATA,Childrens Services,545.45,External Contract Hire,2122P11_CR00169,REDACTED PERSONAL DATA
Sandwell Metropolitan Borough Council,http://www.sandwell.gov.uk/info/200202/performance_and_spending/1079/payments_over_500,11-Feb-2022,Childrens Services,REDACTED PERSONAL DATA,Childrens Services,727.28,External Contract Hire,2122P11_CR00170,REDACTED PERSONAL DATA
Sandwell Metropolitan Borough Council,http://www.sandwell.gov.uk/info/200202/performance_and_spending/1079/payments_over_500,11-Feb-2022,Childrens Services,REDACTED PERSONAL DATA,Childrens Services,545.45,External Contract Hire,2122P11_CR00171,REDACTED PERSONAL DATA
Sandwell Metropolitan Borough Council,http://www.sandwell.gov.uk/info/200202/performance_and_spending/1079/payments_over_500,15-Feb-2022,Childrens Services,REDACTED PERSONAL DATA,Childrens Services,696.96,External Contract Hire,2122P11_CR00172,REDACTED PERSONAL DATA
Sandwell Metropolitan Borough Council,http://www.sandwell.gov.uk/info/200202/performance_and_spending/1079/payments_over_500,11-Feb-2022,Childrens Services,REDACTED PERSONAL DATA,Childrens Services,727.27,External Contract Hire,2122P11_CR00173,REDACTED PERSONAL DATA
Sandwell Metropolitan Borough Council,http://www.sandwell.gov.uk/info/200202/performance_and_spending/1079/payments_over_500,11-Feb-2022,Childrens Services,REDACTED PERSONAL DATA,Childrens Services,727.27,External Contract Hire,2122P11_CR00174,REDACTED PERSONAL DATA
Sandwell Metropolitan Borough Council,http://www.sandwell.gov.uk/info/200202/performance_and_spending/1079/payments_over_500,11-Feb-2022,Childrens Services,REDACTED PERSONAL DATA,Childrens Services,545.45,External Contract Hire,2122P11_CR00175,REDACTED PERSONAL DATA
Sandwell Metropolitan Borough Council,http://www.sandwell.gov.uk/info/200202/performance_and_spending/1079/payments_over_500,11-Feb-2022,Childrens Services,REDACTED PERSONAL DATA,Childrens Services,727.27,External Contract Hire,2122P11_CR00176,REDACTED PERSONAL DATA
Sandwell Metropolitan Borough Council,http://www.sandwell.gov.uk/info/200202/performance_and_spending/1079/payments_over_500,07-Feb-2022,Childrens Services,REDACTED PERSONAL DATA,Childrens Services,510.12,External Contract Hire,2122P11_CR00177,REDACTED PERSONAL DATA
Sandwell Metropolitan Borough Council,http://www.sandwell.gov.uk/info/200202/performance_and_spending/1079/payments_over_500,11-Feb-2022,Childrens Services,REDACTED PERSONAL DATA,Childrens Services,545.45,External Contract Hire,2122P11_CR00178,REDACTED PERSONAL DATA
Sandwell Metropolitan Borough Council,http://www.sandwell.gov.uk/info/200202/performance_and_spending/1079/payments_over_500,11-Feb-2022,Childrens Services,REDACTED PERSONAL DATA,Childrens Services,727.27,External Contract Hire,2122P11_CR00179,REDACTED PERSONAL DATA
Sandwell Metropolitan Borough Council,http://www.sandwell.gov.uk/info/200202/performance_and_spending/1079/payments_over_500,11-Feb-2022,Childrens Services,REDACTED PERSONAL DATA,Childrens Services,545.45,External Contract Hire,2122P11_CR00180,REDACTED PERSONAL DATA
Sandwell Metropolitan Borough Council,http://www.sandwell.gov.uk/info/200202/performance_and_spending/1079/payments_over_500,11-Feb-2022,Childrens Services,REDACTED PERSONAL DATA,Childrens Services,727.27,External Contract Hire,2122P11_CR00181,REDACTED PERSONAL DATA
Sandwell Metropolitan Borough Council,http://www.sandwell.gov.uk/info/200202/performance_and_spending/1079/payments_over_500,11-Feb-2022,Childrens Services,REDACTED PERSONAL DATA ,Childrens Services,545.45,External Contract Hire,2122P11_CR00182,REDACTED PERSONAL DATA
Sandwell Metropolitan Borough Council,http://www.sandwell.gov.uk/info/200202/performance_and_spending/1079/payments_over_500,02-Feb-2022,Childrens Services,COMMUNITY TRANSPORT,Childrens Services,1834.00,Grant Payments,2122P11_CR00183,01447963
Sandwell Metropolitan Borough Council,http://www.sandwell.gov.uk/info/200202/performance_and_spending/1079/payments_over_500,01-Feb-2022,Childrens Services Capital,D P DESIGN PARTNERSHIP,Childrens Services Capital,1750.00,"CIP - New Construction,Conversion, Enhancement & Reno",2122P11_CR00184,145811
Sandwell Metropolitan Borough Council,http://www.sandwell.gov.uk/info/200202/performance_and_spending/1079/payments_over_500,01-Feb-2022,Childrens Services Capital,INTERCLASS PLC,Childrens Services Capital,68420.39,"CIP - New Construction,Conversion, Enhancement & Reno",2122P11_CR00185,77001959
Sandwell Metropolitan Borough Council,http://www.sandwell.gov.uk/info/200202/performance_and_spending/1079/payments_over_500,01-Feb-2022,Childrens Services Capital,POWELL OFFICE EQUIPMENT LIMITED,Childrens Services Capital,2816.90,"CIP - New Construction,Conversion, Enhancement & Reno",2122P11_CR00186,2759
Sandwell Metropolitan Borough Council,http://www.sandwell.gov.uk/info/200202/performance_and_spending/1079/payments_over_500,09-Feb-2022,Housing & Communities,ASKEWS AND HOLTS LIBRARY SERVICES LTD.,Neighbourhoods,794.77,Materials & Consumables,2122P11_CR00187,111865
Sandwell Metropolitan Borough Council,http://www.sandwell.gov.uk/info/200202/performance_and_spending/1079/payments_over_500,09-Feb-2022,Housing & Communities,ASKEWS AND HOLTS LIBRARY SERVICES LTD.,Neighbourhoods,641.13,Materials & Consumables,2122P11_CR00188,111865
Sandwell Metropolitan Borough Council,http://www.sandwell.gov.uk/info/200202/performance_and_spending/1079/payments_over_500,09-Feb-2022,Housing & Communities,ASKEWS AND HOLTS LIBRARY SERVICES LTD.,Neighbourhoods,658.33,Materials & Consumables,2122P11_CR00189,111865
Sandwell Metropolitan Borough Council,http://www.sandwell.gov.uk/info/200202/performance_and_spending/1079/payments_over_500,09-Feb-2022,Housing & Communities,ASKEWS AND HOLTS LIBRARY SERVICES LTD.,Neighbourhoods,643.72,Materials & Consumables,2122P11_CR00190,111865
Sandwell Metropolitan Borough Council,http://www.sandwell.gov.uk/info/200202/performance_and_spending/1079/payments_over_500,01-Feb-2022,Housing & Communities,PETERS LIMITED,Neighbourhoods,2352.42,Materials & Consumables,2122P11_CR00191,01059117
Sandwell Metropolitan Borough Council,http://www.sandwell.gov.uk/info/200202/performance_and_spending/1079/payments_over_500,14-Feb-2022,Housing & Communities,PETERS LIMITED,Neighbourhoods,855.27,Materials & Consumables,2122P11_CR00192,01059117
Sandwell Metropolitan Borough Council,http://www.sandwell.gov.uk/info/200202/performance_and_spending/1079/payments_over_500,14-Feb-2022,Housing & Communities,PETERS LIMITED,Neighbourhoods,849.69,Materials & Consumables,2122P11_CR00193,01059117
Sandwell Metropolitan Borough Council,http://www.sandwell.gov.uk/info/200202/performance_and_spending/1079/payments_over_500,14-Feb-2022,Housing & Communities,PETERS LIMITED,Neighbourhoods,1080.19,Materials & Consumables,2122P11_CR00194,01059117
Sandwell Metropolitan Borough Council,http://www.sandwell.gov.uk/info/200202/performance_and_spending/1079/payments_over_500,14-Feb-2022,Housing & Communities,PETERS LIMITED,Neighbourhoods,1140.20,Materials & Consumables,2122P11_CR00195,01059117
Sandwell Metropolitan Borough Council,http://www.sandwell.gov.uk/info/200202/performance_and_spending/1079/payments_over_500,16-Feb-2022,Housing & Communities,PETERS LIMITED,Neighbourhoods,674.45,Materials & Consumables,2122P11_CR00196,01059117
Sandwell Metropolitan Borough Council,http://www.sandwell.gov.uk/info/200202/performance_and_spending/1079/payments_over_500,16-Feb-2022,Housing & Communities,PETERS LIMITED,Neighbourhoods,535.35,Materials & Consumables,2122P11_CR00197,01059117
Sandwell Metropolitan Borough Council,http://www.sandwell.gov.uk/info/200202/performance_and_spending/1079/payments_over_500,07-Feb-2022,Housing & Communities,BA BUSH & SON LTD,Neighbourhoods,584.76,Tyres,2122P11_CR00198,159771
Sandwell Metropolitan Borough Council,http://www.sandwell.gov.uk/info/200202/performance_and_spending/1079/payments_over_500,03-Feb-2022,Housing & Communities,BUCHER MUNICIPAL LTD,Neighbourhoods,1099.41,Fire Service Workshops,2122P11_CR00199,01053625
Sandwell Metropolitan Borough Council,http://www.sandwell.gov.uk/info/200202/performance_and_spending/1079/payments_over_500,07-Feb-2022,Housing & Communities,BUCHER MUNICIPAL LTD,Neighbourhoods,582.00,Fire Service Workshops,2122P11_CR00200,01053625
Sandwell Metropolitan Borough Council,http://www.sandwell.gov.uk/info/200202/performance_and_spending/1079/payments_over_500,01-Feb-2022,Housing & Communities,CHEVIN COMPUTER SYSTEMS LIMITED,Neighbourhoods,14740.43,Subscriptions,2122P11_CR00201,111362
Sandwell Metropolitan Borough Council,http://www.sandwell.gov.uk/info/200202/performance_and_spending/1079/payments_over_500,01-Feb-2022,Housing & Communities,COOPER MOBILE SERVICES LTD,Neighbourhoods,6425.00,Fire Service Workshops,2122P11_CR00202,01304378
Sandwell Metropolitan Borough Council,http://www.sandwell.gov.uk/info/200202/performance_and_spending/1079/payments_over_500,01-Feb-2022,Housing & Communities,CROMWELL GROUP (HOLDINGS) LTD,Neighbourhoods,750.16,Fire Service Workshops,2122P11_CR00203,01149375
Sandwell Metropolitan Borough Council,http://www.sandwell.gov.uk/info/200202/performance_and_spending/1079/payments_over_500,01-Feb-2022,Housing & Communities,DAWSONGROUP VANS,Neighbourhoods,528.55,Vehicle Hiring Charges,2122P11_CR00204,151498
Sandwell Metropolitan Borough Council,http://www.sandwell.gov.uk/info/200202/performance_and_spending/1079/payments_over_500,01-Feb-2022,Housing & Communities,DAWSONGROUP VANS,Neighbourhoods,528.55,Vehicle Hiring Charges,2122P11_CR00205,151498
Sandwell Metropolitan Borough Council,http://www.sandwell.gov.uk/info/200202/performance_and_spending/1079/payments_over_500,01-Feb-2022,Housing & Communities,DAWSONGROUP VANS,Neighbourhoods,627.08,Vehicle Hiring Charges,2122P11_CR00206,151498
Sandwell Metropolitan Borough Council,http://www.sandwell.gov.uk/info/200202/performance_and_spending/1079/payments_over_500,01-Feb-2022,Housing & Communities,DAYS RENTAL,Neighbourhoods,518.94,Vehicle Hiring Charges,2122P11_CR00207,128169
Sandwell Metropolitan Borough Council,http://www.sandwell.gov.uk/info/200202/performance_and_spending/1079/payments_over_500,01-Feb-2022,Housing & Communities,DAYS RENTAL,Neighbourhoods,890.94,Vehicle Hiring Charges,2122P11_CR00208,128169
Sandwell Metropolitan Borough Council,http://www.sandwell.gov.uk/info/200202/performance_and_spending/1079/payments_over_500,01-Feb-2022,Housing & Communities,DAYS RENTAL,Neighbourhoods,890.94,Vehicle Hiring Charges,2122P11_CR00209,128169
Sandwell Metropolitan Borough Council,http://www.sandwell.gov.uk/info/200202/performance_and_spending/1079/payments_over_500,01-Feb-2022,Housing & Communities,DAYS RENTAL,Neighbourhoods,890.94,Vehicle Hiring Charges,2122P11_CR00210,128169
Sandwell Metropolitan Borough Council,http://www.sandwell.gov.uk/info/200202/performance_and_spending/1079/payments_over_500,14-Feb-2022,Housing & Communities,DAYS RENTAL,Neighbourhoods,517.82,Vehicle Hiring Charges,2122P11_CR00211,128169
Sandwell Metropolitan Borough Council,http://www.sandwell.gov.uk/info/200202/performance_and_spending/1079/payments_over_500,01-Feb-2022,Housing & Communities,DENNIS EAGLE LTD,Neighbourhoods,530.43,Fire Service Workshops,2122P11_CR00212,01004865
Sandwell Metropolitan Borough Council,http://www.sandwell.gov.uk/info/200202/performance_and_spending/1079/payments_over_500,08-Feb-2022,Housing & Communities,DENNIS EAGLE LTD,Neighbourhoods,571.50,Fire Service Workshops,2122P11_CR00213,01004865
Sandwell Metropolitan Borough Council,http://www.sandwell.gov.uk/info/200202/performance_and_spending/1079/payments_over_500,21-Feb-2022,Housing & Communities,DENNIS EAGLE LTD,Neighbourhoods,1105.87,Fire Service Workshops,2122P11_CR00214,01004865
Sandwell Metropolitan Borough Council,http://www.sandwell.gov.uk/info/200202/performance_and_spending/1079/payments_over_500,03-Feb-2022,Housing & Communities,DENNIS EAGLE LTD,Neighbourhoods,1682.70,Fire Service Workshops,2122P11_CR00215,01004865
Sandwell Metropolitan Borough Council,http://www.sandwell.gov.uk/info/200202/performance_and_spending/1079/payments_over_500,14-Feb-2022,Housing & Communities,DENNIS EAGLE LTD,Neighbourhoods,1160.19,Fire Service Workshops,2122P11_CR00216,01004865
Sandwell Metropolitan Borough Council,http://www.sandwell.gov.uk/info/200202/performance_and_spending/1079/payments_over_500,01-Feb-2022,Housing & Communities,DENNIS EAGLE LTD,Neighbourhoods,563.34,Fire Service Workshops,2122P11_CR00217,01004865
Sandwell Metropolitan Borough Council,http://www.sandwell.gov.uk/info/200202/performance_and_spending/1079/payments_over_500,01-Feb-2022,Housing & Communities,DENNIS EAGLE LTD,Neighbourhoods,674.33,Fire Service Workshops,2122P11_CR00218,01004865
Sandwell Metropolitan Borough Council,http://www.sandwell.gov.uk/info/200202/performance_and_spending/1079/payments_over_500,08-Feb-2022,Housing & Communities,DENNIS EAGLE LTD,Neighbourhoods,928.07,Fire Service Workshops,2122P11_CR00219,01004865
Sandwell Metropolitan Borough Council,http://www.sandwell.gov.uk/info/200202/performance_and_spending/1079/payments_over_500,23-Feb-2022,Housing & Communities,DENNIS EAGLE LTD,Neighbourhoods,1294.82,Fire Service Workshops,2122P11_CR00220,01004865
Sandwell Metropolitan Borough Council,http://www.sandwell.gov.uk/info/200202/performance_and_spending/1079/payments_over_500,09-Feb-2022,Housing & Communities,FLEETLINE TYRE SERVICE,Neighbourhoods,532.00,Tyres,2122P11_CR00221,137049
Sandwell Metropolitan Borough Council,http://www.sandwell.gov.uk/info/200202/performance_and_spending/1079/payments_over_500,04-Feb-2022,Housing & Communities,FUCHS LUBRICANTS (UK) LTD,Neighbourhoods,6080.00,Fire Service Workshops,2122P11_CR00222,130133
Sandwell Metropolitan Borough Council,http://www.sandwell.gov.uk/info/200202/performance_and_spending/1079/payments_over_500,07-Feb-2022,Housing & Communities,FUCHS LUBRICANTS (UK) LTD,Neighbourhoods,1190.00,Fire Service Workshops,2122P11_CR00223,130133
Sandwell Metropolitan Borough Council,http://www.sandwell.gov.uk/info/200202/performance_and_spending/1079/payments_over_500,22-Feb-2022,Housing & Communities,FUCHS LUBRICANTS (UK) LTD,Neighbourhoods,500.18,Fire Service Workshops,2122P11_CR00224,130133
Sandwell Metropolitan Borough Council,http://www.sandwell.gov.uk/info/200202/performance_and_spending/1079/payments_over_500,10-Feb-2022,Housing & Communities,GEESINK NORBA LTD,Neighbourhoods,1593.20,Fire Service Workshops,2122P11_CR00225,102799
Sandwell Metropolitan Borough Council,http://www.sandwell.gov.uk/info/200202/performance_and_spending/1079/payments_over_500,18-Feb-2022,Housing & Communities,GREENHOUS VOLKSWAGEN VAN CENTRE,Neighbourhoods,510.05,Fire Service Workshops,2122P11_CR00226,107728
Sandwell Metropolitan Borough Council,http://www.sandwell.gov.uk/info/200202/performance_and_spending/1079/payments_over_500,01-Feb-2022,Housing & Communities,GUNN JCB LTD,Neighbourhoods,535.12,Fire Service Workshops,2122P11_CR00227,01015439
Sandwell Metropolitan Borough Council,http://www.sandwell.gov.uk/info/200202/performance_and_spending/1079/payments_over_500,01-Feb-2022,Housing & Communities,HADLEYS STEAM CLEANING LTD,Neighbourhoods,1272.00,Repairs & Maintenance,2122P11_CR00228,132536
Sandwell Metropolitan Borough Council,http://www.sandwell.gov.uk/info/200202/performance_and_spending/1079/payments_over_500,04-Feb-2022,Housing & Communities,HARTSHORNE MOTOR SERVICES LTD                                   01,Neighbourhoods,1024.10,Fire Service Workshops,2122P11_CR00229,01508668
Sandwell Metropolitan Borough Council,http://www.sandwell.gov.uk/info/200202/performance_and_spending/1079/payments_over_500,08-Feb-2022,Housing & Communities,HARTSHORNE MOTOR SERVICES LTD                                   01,Neighbourhoods,500.47,Fire Service Workshops,2122P11_CR00230,01508668
Sandwell Metropolitan Borough Council,http://www.sandwell.gov.uk/info/200202/performance_and_spending/1079/payments_over_500,01-Feb-2022,Housing & Communities,JAMES LISTER & SONS LTD,Neighbourhoods,520.00,Fire Service Workshops,2122P11_CR00231,01021821
Sandwell Metropolitan Borough Council,http://www.sandwell.gov.uk/info/200202/performance_and_spending/1079/payments_over_500,01-Feb-2022,Housing & Communities,JAMES LISTER & SONS LTD,Neighbourhoods,2650.00,Fire Service Workshops,2122P11_CR00232,01021821
Sandwell Metropolitan Borough Council,http://www.sandwell.gov.uk/info/200202/performance_and_spending/1079/payments_over_500,23-Feb-2022,Housing & Communities,MOTUS COMMERCIALS HALESOWEN,Neighbourhoods,1315.02,Fire Service Workshops,2122P11_CR00233,142253
Sandwell Metropolitan Borough Council,http://www.sandwell.gov.uk/info/200202/performance_and_spending/1079/payments_over_500,01-Feb-2022,Housing & Communities,NORTHGATE VEHICLE HIRE (WEST MIDLANDS) LTD,Neighbourhoods,531.03,Vehicle Hiring Charges,2122P11_CR00234,01057676
Sandwell Metropolitan Borough Council,http://www.sandwell.gov.uk/info/200202/performance_and_spending/1079/payments_over_500,07-Feb-2022,Housing & Communities,PARTSPLUS,Neighbourhoods,533.80,Fire Service Workshops,2122P11_CR00235,01087922
Sandwell Metropolitan Borough Council,http://www.sandwell.gov.uk/info/200202/performance_and_spending/1079/payments_over_500,06-Feb-2022,Housing & Communities,PHS BESAFE,Neighbourhoods,1054.83,Laundry,2122P11_CR00236,124613
Sandwell Metropolitan Borough Council,http://www.sandwell.gov.uk/info/200202/performance_and_spending/1079/payments_over_500,01-Feb-2022,Housing & Communities,PUGH'S PLANT HIRE,Neighbourhoods,600.00,Vehicle Hiring Charges,2122P11_CR00237,147204
Sandwell Metropolitan Borough Council,http://www.sandwell.gov.uk/info/200202/performance_and_spending/1079/payments_over_500,02-Feb-2022,Housing & Communities,PUGH'S PLANT HIRE,Neighbourhoods,600.00,Vehicle Hiring Charges,2122P11_CR00238,147204
Sandwell Metropolitan Borough Council,http://www.sandwell.gov.uk/info/200202/performance_and_spending/1079/payments_over_500,01-Feb-2022,Housing & Communities,RG NIXON LTD,Neighbourhoods,636.00,Fire Service Workshops,2122P11_CR00239,01539261
Sandwell Metropolitan Borough Council,http://www.sandwell.gov.uk/info/200202/performance_and_spending/1079/payments_over_500,01-Feb-2022,Housing & Communities,ROBINS & DAY BIRMINGHAM NORTH,Neighbourhoods,1171.69,Fire Service Workshops,2122P11_CR00240,155696
Sandwell Metropolitan Borough Council,http://www.sandwell.gov.uk/info/200202/performance_and_spending/1079/payments_over_500,16-Feb-2022,Housing & Communities,ROBINS & DAY PARTS WEST MIDLANDS,Neighbourhoods,857.37,Fire Service Workshops,2122P11_CR00241,118812
Sandwell Metropolitan Borough Council,http://www.sandwell.gov.uk/info/200202/performance_and_spending/1079/payments_over_500,01-Feb-2022,Housing & Communities,RS RECOVERY LTD,Neighbourhoods,695.00,Fire Service Workshops,2122P11_CR00242,01756992
Sandwell Metropolitan Borough Council,http://www.sandwell.gov.uk/info/200202/performance_and_spending/1079/payments_over_500,01-Feb-2022,Housing & Communities,RYGOR COMMERCIALS LTD,Neighbourhoods,667.26,Fire Service Workshops,2122P11_CR00243,3345
Sandwell Metropolitan Borough Council,http://www.sandwell.gov.uk/info/200202/performance_and_spending/1079/payments_over_500,01-Feb-2022,Housing & Communities,SCARAB SWEEPERS LTD,Neighbourhoods,2071.39,Fire Service Workshops,2122P11_CR00244,01710482
Sandwell Metropolitan Borough Council,http://www.sandwell.gov.uk/info/200202/performance_and_spending/1079/payments_over_500,01-Feb-2022,Housing & Communities,SEDDONS (PLANT AND ENGINEERS) LIMITED,Neighbourhoods,608.88,Fire Service Workshops,2122P11_CR00245,01359495
Sandwell Metropolitan Borough Council,http://www.sandwell.gov.uk/info/200202/performance_and_spending/1079/payments_over_500,01-Feb-2022,Housing & Communities,SIMON TULLETT MACHINERY COMPANY LIMITED,Neighbourhoods,538.89,Repairs & Maintenance,2122P11_CR00246,109117
Sandwell Metropolitan Borough Council,http://www.sandwell.gov.uk/info/200202/performance_and_spending/1079/payments_over_500,10-Feb-2022,Housing & Communities,SIMON TULLETT MACHINERY COMPANY LIMITED,Neighbourhoods,506.45,Repairs & Maintenance,2122P11_CR00247,109117
Sandwell Metropolitan Borough Council,http://www.sandwell.gov.uk/info/200202/performance_and_spending/1079/payments_over_500,15-Feb-2022,Housing & Communities,SOUTH STAFFS HIRE LTD,Neighbourhoods,698.01,Vehicle Hiring Charges,2122P11_CR00248,148517
Sandwell Metropolitan Borough Council,http://www.sandwell.gov.uk/info/200202/performance_and_spending/1079/payments_over_500,09-Feb-2022,Housing & Communities,SPENCER SIGNS UK LTD,Neighbourhoods,1401.00,Fire Service Workshops,2122P11_CR00249,124882
Sandwell Metropolitan Borough Council,http://www.sandwell.gov.uk/info/200202/performance_and_spending/1079/payments_over_500,18-Feb-2022,Housing & Communities,TAYLOR ENGINEERING & FABRICATIONS LTD,Neighbourhoods,537.32,Fire Service Workshops,2122P11_CR00250,87793
Sandwell Metropolitan Borough Council,http://www.sandwell.gov.uk/info/200202/performance_and_spending/1079/payments_over_500,01-Feb-2022,Housing & Communities,TERBERG MATEC UK LTD,Neighbourhoods,1881.22,Fire Service Workshops,2122P11_CR00251,21235
Sandwell Metropolitan Borough Council,http://www.sandwell.gov.uk/info/200202/performance_and_spending/1079/payments_over_500,10-Feb-2022,Housing & Communities,TERBERG MATEC UK LTD,Neighbourhoods,1715.61,Fire Service Workshops,2122P11_CR00252,21235
Sandwell Metropolitan Borough Council,http://www.sandwell.gov.uk/info/200202/performance_and_spending/1079/payments_over_500,01-Feb-2022,Housing & Communities,TERBERG MATEC UK LTD,Neighbourhoods,561.47,Fire Service Workshops,2122P11_CR00253,21235
Sandwell Metropolitan Borough Council,http://www.sandwell.gov.uk/info/200202/performance_and_spending/1079/payments_over_500,08-Feb-2022,Housing & Communities,TH WHITE LIMITED,Neighbourhoods,932.17,Fire Service Workshops,2122P11_CR00254,01774713
Sandwell Metropolitan Borough Council,http://www.sandwell.gov.uk/info/200202/performance_and_spending/1079/payments_over_500,01-Feb-2022,Housing & Communities,TH WHITE LIMITED,Neighbourhoods,819.60,Fire Service Workshops,2122P11_CR00255,01774713
Sandwell Metropolitan Borough Council,http://www.sandwell.gov.uk/info/200202/performance_and_spending/1079/payments_over_500,02-Feb-2022,Housing & Communities,TH WHITE LIMITED,Neighbourhoods,939.38,Fire Service Workshops,2122P11_CR00256,01774713
Sandwell Metropolitan Borough Council,http://www.sandwell.gov.uk/info/200202/performance_and_spending/1079/payments_over_500,14-Feb-2022,Housing & Communities,TH WHITE LIMITED,Neighbourhoods,3380.00,Purchase of Vehicles,2122P11_CR00257,01774713
Sandwell Metropolitan Borough Council,http://www.sandwell.gov.uk/info/200202/performance_and_spending/1079/payments_over_500,11-Feb-2022,Housing & Communities,TH WHITE LIMITED,Neighbourhoods,1086.96,Repairs & Maintenance,2122P11_CR00258,01774713
Sandwell Metropolitan Borough Council,http://www.sandwell.gov.uk/info/200202/performance_and_spending/1079/payments_over_500,08-Feb-2022,Housing & Communities,TRUCK & TRAILER EQUIPMENT LIMITED,Neighbourhoods,523.65,Fire Service Workshops,2122P11_CR00259,126296
Sandwell Metropolitan Borough Council,http://www.sandwell.gov.uk/info/200202/performance_and_spending/1079/payments_over_500,22-Feb-2022,Housing & Communities,TRUCK & TRAILER EQUIPMENT LIMITED,Neighbourhoods,647.79,Fire Service Workshops,2122P11_CR00260,126296
Sandwell Metropolitan Borough Council,http://www.sandwell.gov.uk/info/200202/performance_and_spending/1079/payments_over_500,04-Feb-2022,Housing & Communities,WEST MERCIA RADIATORS,Neighbourhoods,500.00,Fire Service Workshops,2122P11_CR00261,01047902
Sandwell Metropolitan Borough Council,http://www.sandwell.gov.uk/info/200202/performance_and_spending/1079/payments_over_500,01-Feb-2022,Housing & Communities,WESTON MOTORS LIMITED,Neighbourhoods,5751.18,Fire Service Workshops,2122P11_CR00262,127787
Sandwell Metropolitan Borough Council,http://www.sandwell.gov.uk/info/200202/performance_and_spending/1079/payments_over_500,01-Feb-2022,Housing & Communities,WESTON MOTORS LIMITED,Neighbourhoods,1515.00,Fire Service Workshops,2122P11_CR00263,127787
Sandwell Metropolitan Borough Council,http://www.sandwell.gov.uk/info/200202/performance_and_spending/1079/payments_over_500,09-Feb-2022,Housing & Communities,ACORN ENVIRONMENTAL MANAGEMENT GROUP LIMITED,Neighbourhoods,521.04,Externally Purchased Professional Services ,2122P11_CR00264,24254
Sandwell Metropolitan Borough Council,http://www.sandwell.gov.uk/info/200202/performance_and_spending/1079/payments_over_500,15-Feb-2022,Housing & Communities,AECOM INFRASTRUCTURE & ENVIRONMENT UK LIMITED,Neighbourhoods,544.52,Consultancy,2122P11_CR00265,107299
Sandwell Metropolitan Borough Council,http://www.sandwell.gov.uk/info/200202/performance_and_spending/1079/payments_over_500,01-Feb-2022,Housing & Communities,ALLSTAR BUSINESS SOLUTIONS LIMITED,Neighbourhoods,750.27,Fuel ,2122P11_CR00266,104057
Sandwell Metropolitan Borough Council,http://www.sandwell.gov.uk/info/200202/performance_and_spending/1079/payments_over_500,16-Feb-2022,Housing & Communities,BANNER GROUP LTD,Neighbourhoods,807.60,Protective Clothing & Uniforms,2122P11_CR00267,134506
Sandwell Metropolitan Borough Council,http://www.sandwell.gov.uk/info/200202/performance_and_spending/1079/payments_over_500,01-Feb-2022,Housing & Communities,BCH PROPERTY LIMITED,Neighbourhoods,2567.04,Rents,2122P11_CR00268,01011861
Sandwell Metropolitan Borough Council,http://www.sandwell.gov.uk/info/200202/performance_and_spending/1079/payments_over_500,01-Feb-2022,Housing & Communities,BCH PROPERTY LIMITED,Neighbourhoods,1166.76,Rents,2122P11_CR00269,01011861
Sandwell Metropolitan Borough Council,http://www.sandwell.gov.uk/info/200202/performance_and_spending/1079/payments_over_500,01-Feb-2022,Housing & Communities,BCH PROPERTY LIMITED,Neighbourhoods,1867.04,Rents,2122P11_CR00270,01011861
Sandwell Metropolitan Borough Council,http://www.sandwell.gov.uk/info/200202/performance_and_spending/1079/payments_over_500,01-Feb-2022,Housing & Communities,BCH PROPERTY LIMITED,Neighbourhoods,2200.32,Rents,2122P11_CR00271,01011861
Sandwell Metropolitan Borough Council,http://www.sandwell.gov.uk/info/200202/performance_and_spending/1079/payments_over_500,01-Feb-2022,Housing & Communities,BCH PROPERTY LIMITED,Neighbourhoods,1466.88,Rents,2122P11_CR00272,01011861
Sandwell Metropolitan Borough Council,http://www.sandwell.gov.uk/info/200202/performance_and_spending/1079/payments_over_500,01-Feb-2022,Housing & Communities,BEECHWOOD TREES & LANDSCAPE LTD,Neighbourhoods,1500.00,Externally Purchased Professional Services ,2122P11_CR00273,93287
Sandwell Metropolitan Borough Council,http://www.sandwell.gov.uk/info/200202/performance_and_spending/1079/payments_over_500,01-Feb-2022,Housing & Communities,BEECHWOOD TREES & LANDSCAPE LTD,Neighbourhoods,1025.00,Externally Purchased Professional Services ,2122P11_CR00274,93287
Sandwell Metropolitan Borough Council,http://www.sandwell.gov.uk/info/200202/performance_and_spending/1079/payments_over_500,01-Feb-2022,Housing & Communities,BEECHWOOD TREES & LANDSCAPE LTD,Neighbourhoods,815.00,Externally Purchased Professional Services ,2122P11_CR00275,93287
Sandwell Metropolitan Borough Council,http://www.sandwell.gov.uk/info/200202/performance_and_spending/1079/payments_over_500,01-Feb-2022,Housing & Communities,BEECHWOOD TREES & LANDSCAPE LTD,Neighbourhoods,2490.00,Externally Purchased Professional Services ,2122P11_CR00276,93287
Sandwell Metropolitan Borough Council,http://www.sandwell.gov.uk/info/200202/performance_and_spending/1079/payments_over_500,01-Feb-2022,Housing & Communities,BEECHWOOD TREES & LANDSCAPE LTD,Neighbourhoods,1040.00,Externally Purchased Professional Services ,2122P11_CR00277,93287
Sandwell Metropolitan Borough Council,http://www.sandwell.gov.uk/info/200202/performance_and_spending/1079/payments_over_500,01-Feb-2022,Housing & Communities,BEECHWOOD TREES & LANDSCAPE LTD,Neighbourhoods,500.00,Externally Purchased Professional Services ,2122P11_CR00278,93287
Sandwell Metropolitan Borough Council,http://www.sandwell.gov.uk/info/200202/performance_and_spending/1079/payments_over_500,01-Feb-2022,Housing & Communities,BEECHWOOD TREES & LANDSCAPE LTD,Neighbourhoods,670.00,Externally Purchased Professional Services ,2122P11_CR00279,93287
Sandwell Metropolitan Borough Council,http://www.sandwell.gov.uk/info/200202/performance_and_spending/1079/payments_over_500,01-Feb-2022,Housing & Communities,BEECHWOOD TREES & LANDSCAPE LTD,Neighbourhoods,1620.00,Externally Purchased Professional Services ,2122P11_CR00280,93287
Sandwell Metropolitan Borough Council,http://www.sandwell.gov.uk/info/200202/performance_and_spending/1079/payments_over_500,15-Feb-2022,Housing & Communities,BEECHWOOD TREES & LANDSCAPE LTD,Neighbourhoods,908.00,Externally Purchased Professional Services ,2122P11_CR00281,93287
Sandwell Metropolitan Borough Council,http://www.sandwell.gov.uk/info/200202/performance_and_spending/1079/payments_over_500,15-Feb-2022,Housing & Communities,BEECHWOOD TREES & LANDSCAPE LTD,Neighbourhoods,955.00,Externally Purchased Professional Services ,2122P11_CR00282,93287
Sandwell Metropolitan Borough Council,http://www.sandwell.gov.uk/info/200202/performance_and_spending/1079/payments_over_500,22-Feb-2022,Housing & Communities,BEECHWOOD TREES & LANDSCAPE LTD,Neighbourhoods,1280.00,Externally Purchased Professional Services ,2122P11_CR00283,93287
Sandwell Metropolitan Borough Council,http://www.sandwell.gov.uk/info/200202/performance_and_spending/1079/payments_over_500,22-Feb-2022,Housing & Communities,BEECHWOOD TREES & LANDSCAPE LTD,Neighbourhoods,4290.00,Externally Purchased Professional Services ,2122P11_CR00284,93287
Sandwell Metropolitan Borough Council,http://www.sandwell.gov.uk/info/200202/performance_and_spending/1079/payments_over_500,22-Feb-2022,Housing & Communities,BEECHWOOD TREES & LANDSCAPE LTD,Neighbourhoods,1080.00,Externally Purchased Professional Services ,2122P11_CR00285,93287
Sandwell Metropolitan Borough Council,http://www.sandwell.gov.uk/info/200202/performance_and_spending/1079/payments_over_500,22-Feb-2022,Housing & Communities,BEECHWOOD TREES & LANDSCAPE LTD,Neighbourhoods,925.00,Externally Purchased Professional Services ,2122P11_CR00286,93287
Sandwell Metropolitan Borough Council,http://www.sandwell.gov.uk/info/200202/performance_and_spending/1079/payments_over_500,01-Feb-2022,Housing & Communities,BOLINDA UK LTD,Neighbourhoods,666.34,Materials & Consumables,2122P11_CR00287,117408
Sandwell Metropolitan Borough Council,http://www.sandwell.gov.uk/info/200202/performance_and_spending/1079/payments_over_500,01-Feb-2022,Housing & Communities,BOLINDA UK LTD,Neighbourhoods,641.48,Materials & Consumables,2122P11_CR00288,117408
Sandwell Metropolitan Borough Council,http://www.sandwell.gov.uk/info/200202/performance_and_spending/1079/payments_over_500,21-Feb-2022,Housing & Communities,BROMFORD HOUSING ASSOCIATION LTD,Neighbourhoods,510.00,Tenants Expenses,2122P11_CR00289,111493
Sandwell Metropolitan Borough Council,http://www.sandwell.gov.uk/info/200202/performance_and_spending/1079/payments_over_500,01-Feb-2022,Housing & Communities,BROMFORD HOUSING ASSOCIATION LTD,Neighbourhoods,594.99,Tenants Expenses,2122P11_CR00290,111493
Sandwell Metropolitan Borough Council,http://www.sandwell.gov.uk/info/200202/performance_and_spending/1079/payments_over_500,01-Feb-2022,Housing & Communities,C & D KING LTD T/A DIY MARQUEES,Neighbourhoods,2061.60,Civic Events,2122P11_CR00291,161992
Sandwell Metropolitan Borough Council,http://www.sandwell.gov.uk/info/200202/performance_and_spending/1079/payments_over_500,14-Feb-2022,Housing & Communities,CAPRICORN INTERIORS LTD,Neighbourhoods,2490.00,Building Maintenance & Improvements,2122P11_CR00292,144910
Sandwell Metropolitan Borough Council,http://www.sandwell.gov.uk/info/200202/performance_and_spending/1079/payments_over_500,01-Feb-2022,Housing & Communities,CERTAS ENERGY LIMITED,Neighbourhoods,1041.06,Fuel ,2122P11_CR00293,80421
Sandwell Metropolitan Borough Council,http://www.sandwell.gov.uk/info/200202/performance_and_spending/1079/payments_over_500,01-Feb-2022,Housing & Communities,CERTAS ENERGY LIMITED,Neighbourhoods,11615.51,Fuel ,2122P11_CR00294,80421
Sandwell Metropolitan Borough Council,http://www.sandwell.gov.uk/info/200202/performance_and_spending/1079/payments_over_500,11-Feb-2022,Housing & Communities,CERTAS ENERGY LIMITED,Neighbourhoods,11825.63,Fuel ,2122P11_CR00295,80421
Sandwell Metropolitan Borough Council,http://www.sandwell.gov.uk/info/200202/performance_and_spending/1079/payments_over_500,01-Feb-2022,Housing & Communities,CERTAS ENERGY LIMITED,Neighbourhoods,1568.62,Oil,2122P11_CR00296,80421
Sandwell Metropolitan Borough Council,http://www.sandwell.gov.uk/info/200202/performance_and_spending/1079/payments_over_500,10-Feb-2022,Housing & Communities,CERTAS ENERGY LIMITED,Neighbourhoods,1749.90,Oil,2122P11_CR00297,80421
Sandwell Metropolitan Borough Council,http://www.sandwell.gov.uk/info/200202/performance_and_spending/1079/payments_over_500,01-Feb-2022,Housing & Communities,CITRON HYGIENE UK LTD,Neighbourhoods,929.40,Materials & Consumables,2122P11_CR00298,140849
Sandwell Metropolitan Borough Council,http://www.sandwell.gov.uk/info/200202/performance_and_spending/1079/payments_over_500,01-Feb-2022,Housing & Communities,CONTRACT LETTINGS LTD,Neighbourhoods,763.22,Rents,2122P11_CR00299,76625
Sandwell Metropolitan Borough Council,http://www.sandwell.gov.uk/info/200202/performance_and_spending/1079/payments_over_500,01-Feb-2022,Housing & Communities,CONTRACT LETTINGS LTD,Neighbourhoods,701.22,Rents,2122P11_CR00300,76625
Sandwell Metropolitan Borough Council,http://www.sandwell.gov.uk/info/200202/performance_and_spending/1079/payments_over_500,01-Feb-2022,Housing & Communities,CONTRACT LETTINGS LTD,Neighbourhoods,701.22,Rents,2122P11_CR00301,76625
Sandwell Metropolitan Borough Council,http://www.sandwell.gov.uk/info/200202/performance_and_spending/1079/payments_over_500,11-Feb-2022,Housing & Communities,CONTRACT LETTINGS LTD,Neighbourhoods,701.22,Rents,2122P11_CR00302,76625
Sandwell Metropolitan Borough Council,http://www.sandwell.gov.uk/info/200202/performance_and_spending/1079/payments_over_500,01-Feb-2022,Housing & Communities,CONTRACT LETTINGS LTD,Neighbourhoods,763.22,Rents,2122P11_CR00303,76625
Sandwell Metropolitan Borough Council,http://www.sandwell.gov.uk/info/200202/performance_and_spending/1079/payments_over_500,01-Feb-2022,Housing & Communities,CONTRACT LETTINGS LTD,Neighbourhoods,701.22,Rents,2122P11_CR00304,76625
Sandwell Metropolitan Borough Council,http://www.sandwell.gov.uk/info/200202/performance_and_spending/1079/payments_over_500,01-Feb-2022,Housing & Communities,CONTRACT LETTINGS LTD,Neighbourhoods,771.90,Rents,2122P11_CR00305,76625
Sandwell Metropolitan Borough Council,http://www.sandwell.gov.uk/info/200202/performance_and_spending/1079/payments_over_500,01-Feb-2022,Housing & Communities,CONTRACT LETTINGS LTD,Neighbourhoods,763.22,Rents,2122P11_CR00306,76625
Sandwell Metropolitan Borough Council,http://www.sandwell.gov.uk/info/200202/performance_and_spending/1079/payments_over_500,01-Feb-2022,Housing & Communities,CONTRACT LETTINGS LTD,Neighbourhoods,559.86,Rents,2122P11_CR00307,76625
Sandwell Metropolitan Borough Council,http://www.sandwell.gov.uk/info/200202/performance_and_spending/1079/payments_over_500,01-Feb-2022,Housing & Communities,CONTRACT LETTINGS LTD,Neighbourhoods,559.86,Rents,2122P11_CR00308,76625
Sandwell Metropolitan Borough Council,http://www.sandwell.gov.uk/info/200202/performance_and_spending/1079/payments_over_500,03-Feb-2022,Housing & Communities,CONTRACT LETTINGS LTD,Neighbourhoods,763.22,Rents,2122P11_CR00309,76625
Sandwell Metropolitan Borough Council,http://www.sandwell.gov.uk/info/200202/performance_and_spending/1079/payments_over_500,03-Feb-2022,Housing & Communities,CONTRACT LETTINGS LTD,Neighbourhoods,701.22,Rents,2122P11_CR00310,76625
Sandwell Metropolitan Borough Council,http://www.sandwell.gov.uk/info/200202/performance_and_spending/1079/payments_over_500,03-Feb-2022,Housing & Communities,CONTRACT LETTINGS LTD,Neighbourhoods,701.22,Rents,2122P11_CR00311,76625
Sandwell Metropolitan Borough Council,http://www.sandwell.gov.uk/info/200202/performance_and_spending/1079/payments_over_500,03-Feb-2022,Housing & Communities,CONTRACT LETTINGS LTD,Neighbourhoods,701.22,Rents,2122P11_CR00312,76625
Sandwell Metropolitan Borough Council,http://www.sandwell.gov.uk/info/200202/performance_and_spending/1079/payments_over_500,03-Feb-2022,Housing & Communities,CONTRACT LETTINGS LTD,Neighbourhoods,763.22,Rents,2122P11_CR00313,76625
Sandwell Metropolitan Borough Council,http://www.sandwell.gov.uk/info/200202/performance_and_spending/1079/payments_over_500,03-Feb-2022,Housing & Communities,CONTRACT LETTINGS LTD,Neighbourhoods,701.22,Rents,2122P11_CR00314,76625
Sandwell Metropolitan Borough Council,http://www.sandwell.gov.uk/info/200202/performance_and_spending/1079/payments_over_500,03-Feb-2022,Housing & Communities,CONTRACT LETTINGS LTD,Neighbourhoods,701.22,Rents,2122P11_CR00315,76625
Sandwell Metropolitan Borough Council,http://www.sandwell.gov.uk/info/200202/performance_and_spending/1079/payments_over_500,03-Feb-2022,Housing & Communities,CONTRACT LETTINGS LTD,Neighbourhoods,771.90,Rents,2122P11_CR00316,76625
Sandwell Metropolitan Borough Council,http://www.sandwell.gov.uk/info/200202/performance_and_spending/1079/payments_over_500,03-Feb-2022,Housing & Communities,CONTRACT LETTINGS LTD,Neighbourhoods,517.02,Rents,2122P11_CR00317,76625
Sandwell Metropolitan Borough Council,http://www.sandwell.gov.uk/info/200202/performance_and_spending/1079/payments_over_500,03-Feb-2022,Housing & Communities,CONTRACT LETTINGS LTD,Neighbourhoods,559.86,Rents,2122P11_CR00318,76625
Sandwell Metropolitan Borough Council,http://www.sandwell.gov.uk/info/200202/performance_and_spending/1079/payments_over_500,03-Feb-2022,Housing & Communities,CONTRACT LETTINGS LTD,Neighbourhoods,559.86,Rents,2122P11_CR00319,76625
Sandwell Metropolitan Borough Council,http://www.sandwell.gov.uk/info/200202/performance_and_spending/1079/payments_over_500,09-Feb-2022,Housing & Communities,COUGAR MONITORING LTD,Neighbourhoods,1640.00,Security,2122P11_CR00320,01592507
Sandwell Metropolitan Borough Council,http://www.sandwell.gov.uk/info/200202/performance_and_spending/1079/payments_over_500,01-Feb-2022,Housing & Communities,DORMY HOTEL,Neighbourhoods,1272.02,Rents,2122P11_CR00321,01737052
Sandwell Metropolitan Borough Council,http://www.sandwell.gov.uk/info/200202/performance_and_spending/1079/payments_over_500,01-Feb-2022,Housing & Communities,DORMY HOTEL,Neighbourhoods,1272.02,Rents,2122P11_CR00322,01737052
Sandwell Metropolitan Borough Council,http://www.sandwell.gov.uk/info/200202/performance_and_spending/1079/payments_over_500,01-Feb-2022,Housing & Communities,DORMY HOTEL,Neighbourhoods,2924.44,Rents,2122P11_CR00323,01737052
Sandwell Metropolitan Borough Council,http://www.sandwell.gov.uk/info/200202/performance_and_spending/1079/payments_over_500,01-Feb-2022,Housing & Communities,DORMY HOTEL,Neighbourhoods,808.89,Rents,2122P11_CR00324,01737052
Sandwell Metropolitan Borough Council,http://www.sandwell.gov.uk/info/200202/performance_and_spending/1079/payments_over_500,01-Feb-2022,Housing & Communities,DORMY HOTEL,Neighbourhoods,616.70,Rents,2122P11_CR00325,01737052
Sandwell Metropolitan Borough Council,http://www.sandwell.gov.uk/info/200202/performance_and_spending/1079/payments_over_500,01-Feb-2022,Housing & Communities,EDWARDS LOCKSMITHS & SECURITY LIMITED,Neighbourhoods,627.00,Security,2122P11_CR00326,65304
Sandwell Metropolitan Borough Council,http://www.sandwell.gov.uk/info/200202/performance_and_spending/1079/payments_over_500,15-Feb-2022,Housing & Communities,FUTURE GARMENTS LTD,Neighbourhoods,578.00,Protective Clothing & Uniforms,2122P11_CR00327,17305
Sandwell Metropolitan Borough Council,http://www.sandwell.gov.uk/info/200202/performance_and_spending/1079/payments_over_500,09-Feb-2022,Housing & Communities,FUTURE GARMENTS LTD,Neighbourhoods,568.40,Protective Clothing & Uniforms,2122P11_CR00328,17305
Sandwell Metropolitan Borough Council,http://www.sandwell.gov.uk/info/200202/performance_and_spending/1079/payments_over_500,17-Feb-2022,Housing & Communities,FUTURE GARMENTS LTD,Neighbourhoods,1046.00,Protective Clothing & Uniforms,2122P11_CR00329,17305
Sandwell Metropolitan Borough Council,http://www.sandwell.gov.uk/info/200202/performance_and_spending/1079/payments_over_500,01-Feb-2022,Housing & Communities,GREENWICH LEISURE LTD,Neighbourhoods,3000.00,ICT ,2122P11_CR00330,136157
Sandwell Metropolitan Borough Council,http://www.sandwell.gov.uk/info/200202/performance_and_spending/1079/payments_over_500,01-Feb-2022,Housing & Communities,HAYSTOUN CONSTRUCTION LTD,Neighbourhoods,4891.00,Operational Services ,2122P11_CR00331,11849
Sandwell Metropolitan Borough Council,http://www.sandwell.gov.uk/info/200202/performance_and_spending/1079/payments_over_500,01-Feb-2022,Housing & Communities,HIPKISS & GRANEY,Neighbourhoods,855.00,Rents & Accomodation Charges,2122P11_CR00332,162245
Sandwell Metropolitan Borough Council,http://www.sandwell.gov.uk/info/200202/performance_and_spending/1079/payments_over_500,01-Feb-2022,Housing & Communities,HOARE LEA LLP,Neighbourhoods,5875.00,Consultancy,2122P11_CR00333,137607
Sandwell Metropolitan Borough Council,http://www.sandwell.gov.uk/info/200202/performance_and_spending/1079/payments_over_500,01-Feb-2022,Housing & Communities,INFAMOUS COMMUNITY ARTS,Neighbourhoods,5750.00,Civic Events,2122P11_CR00334,102940
Sandwell Metropolitan Borough Council,http://www.sandwell.gov.uk/info/200202/performance_and_spending/1079/payments_over_500,01-Feb-2022,Housing & Communities,J MCCANN & CO LIMITED,Housing & Communities,142346.34,CIP - Fixtures & Fittings,2122P11_CR00335,127457
Sandwell Metropolitan Borough Council,http://www.sandwell.gov.uk/info/200202/performance_and_spending/1079/payments_over_500,23-Feb-2022,Housing & Communities,J9 ACCOMMODATION,Neighbourhoods,563.33,Rents,2122P11_CR00336,76616
Sandwell Metropolitan Borough Council,http://www.sandwell.gov.uk/info/200202/performance_and_spending/1079/payments_over_500,01-Feb-2022,Housing & Communities,J9 ACCOMMODATION,Neighbourhoods,541.67,Tenants Expenses,2122P11_CR00337,76616
Sandwell Metropolitan Borough Council,http://www.sandwell.gov.uk/info/200202/performance_and_spending/1079/payments_over_500,22-Feb-2022,Housing & Communities,JAY SECURITY AND EVENTS LIMITED,Neighbourhoods,756.00,Security,2122P11_CR00338,162111
Sandwell Metropolitan Borough Council,http://www.sandwell.gov.uk/info/200202/performance_and_spending/1079/payments_over_500,01-Feb-2022,Housing & Communities,KAFOODLE LIMITED,Neighbourhoods,2050.00,ICT ,2122P11_CR00339,161993
Sandwell Metropolitan Borough Council,http://www.sandwell.gov.uk/info/200202/performance_and_spending/1079/payments_over_500,01-Feb-2022,Housing & Communities,KAFOODLE LIMITED,Neighbourhoods,2880.00,ICT ,2122P11_CR00340,161993
Sandwell Metropolitan Borough Council,http://www.sandwell.gov.uk/info/200202/performance_and_spending/1079/payments_over_500,01-Feb-2022,Housing & Communities,MACE LTD,Neighbourhoods,9060.00,Consultancy,2122P11_CR00341,30882
Sandwell Metropolitan Borough Council,http://www.sandwell.gov.uk/info/200202/performance_and_spending/1079/payments_over_500,01-Feb-2022,Housing & Communities,MIDLAND FORESTRY LIMITED,Neighbourhoods,884.00,Externally Purchased Professional Services ,2122P11_CR00342,45812
Sandwell Metropolitan Borough Council,http://www.sandwell.gov.uk/info/200202/performance_and_spending/1079/payments_over_500,01-Feb-2022,Housing & Communities,MIDLAND FORESTRY LIMITED,Neighbourhoods,1680.00,Externally Purchased Professional Services ,2122P11_CR00343,45812
Sandwell Metropolitan Borough Council,http://www.sandwell.gov.uk/info/200202/performance_and_spending/1079/payments_over_500,01-Feb-2022,Housing & Communities,MIDLAND FORESTRY LIMITED,Neighbourhoods,900.00,Externally Purchased Professional Services ,2122P11_CR00344,45812
Sandwell Metropolitan Borough Council,http://www.sandwell.gov.uk/info/200202/performance_and_spending/1079/payments_over_500,01-Feb-2022,Housing & Communities,MIDLAND FORESTRY LIMITED,Neighbourhoods,1264.00,Externally Purchased Professional Services ,2122P11_CR00345,45812
Sandwell Metropolitan Borough Council,http://www.sandwell.gov.uk/info/200202/performance_and_spending/1079/payments_over_500,01-Feb-2022,Housing & Communities,MIDLAND FORESTRY LIMITED,Neighbourhoods,1079.00,Externally Purchased Professional Services ,2122P11_CR00346,45812
Sandwell Metropolitan Borough Council,http://www.sandwell.gov.uk/info/200202/performance_and_spending/1079/payments_over_500,02-Feb-2022,Housing & Communities,MIDLAND FORESTRY LIMITED,Neighbourhoods,1639.00,Externally Purchased Professional Services ,2122P11_CR00347,45812
Sandwell Metropolitan Borough Council,http://www.sandwell.gov.uk/info/200202/performance_and_spending/1079/payments_over_500,02-Feb-2022,Housing & Communities,MIDLAND FORESTRY LIMITED,Neighbourhoods,1154.00,Externally Purchased Professional Services ,2122P11_CR00348,45812
Sandwell Metropolitan Borough Council,http://www.sandwell.gov.uk/info/200202/performance_and_spending/1079/payments_over_500,02-Feb-2022,Housing & Communities,MIDLAND FORESTRY LIMITED,Neighbourhoods,1250.00,Externally Purchased Professional Services ,2122P11_CR00349,45812
Sandwell Metropolitan Borough Council,http://www.sandwell.gov.uk/info/200202/performance_and_spending/1079/payments_over_500,08-Feb-2022,Housing & Communities,MIDLAND FORESTRY LIMITED,Neighbourhoods,1324.00,Externally Purchased Professional Services ,2122P11_CR00350,45812
Sandwell Metropolitan Borough Council,http://www.sandwell.gov.uk/info/200202/performance_and_spending/1079/payments_over_500,08-Feb-2022,Housing & Communities,MIDLAND FORESTRY LIMITED,Neighbourhoods,994.00,Externally Purchased Professional Services ,2122P11_CR00351,45812
Sandwell Metropolitan Borough Council,http://www.sandwell.gov.uk/info/200202/performance_and_spending/1079/payments_over_500,08-Feb-2022,Housing & Communities,MIDLAND FORESTRY LIMITED,Neighbourhoods,704.00,Externally Purchased Professional Services ,2122P11_CR00352,45812
Sandwell Metropolitan Borough Council,http://www.sandwell.gov.uk/info/200202/performance_and_spending/1079/payments_over_500,08-Feb-2022,Housing & Communities,MIDLAND FORESTRY LIMITED,Neighbourhoods,704.00,Externally Purchased Professional Services ,2122P11_CR00353,45812
Sandwell Metropolitan Borough Council,http://www.sandwell.gov.uk/info/200202/performance_and_spending/1079/payments_over_500,08-Feb-2022,Housing & Communities,MIDLAND FORESTRY LIMITED,Neighbourhoods,880.00,Externally Purchased Professional Services ,2122P11_CR00354,45812
Sandwell Metropolitan Borough Council,http://www.sandwell.gov.uk/info/200202/performance_and_spending/1079/payments_over_500,08-Feb-2022,Housing & Communities,MIDLAND FORESTRY LIMITED,Neighbourhoods,2955.00,Externally Purchased Professional Services ,2122P11_CR00355,45812
Sandwell Metropolitan Borough Council,http://www.sandwell.gov.uk/info/200202/performance_and_spending/1079/payments_over_500,08-Feb-2022,Housing & Communities,MIDLAND FORESTRY LIMITED,Neighbourhoods,624.00,Externally Purchased Professional Services ,2122P11_CR00356,45812
Sandwell Metropolitan Borough Council,http://www.sandwell.gov.uk/info/200202/performance_and_spending/1079/payments_over_500,15-Feb-2022,Housing & Communities,MIDLAND FORESTRY LIMITED,Neighbourhoods,540.00,Externally Purchased Professional Services ,2122P11_CR00357,45812
Sandwell Metropolitan Borough Council,http://www.sandwell.gov.uk/info/200202/performance_and_spending/1079/payments_over_500,09-Feb-2022,Housing & Communities,MIDLAND FORESTRY LIMITED,Neighbourhoods,1080.00,Externally Purchased Professional Services ,2122P11_CR00358,45812
Sandwell Metropolitan Borough Council,http://www.sandwell.gov.uk/info/200202/performance_and_spending/1079/payments_over_500,15-Feb-2022,Housing & Communities,MIDLAND FORESTRY LIMITED,Neighbourhoods,780.00,Externally Purchased Professional Services ,2122P11_CR00359,45812
Sandwell Metropolitan Borough Council,http://www.sandwell.gov.uk/info/200202/performance_and_spending/1079/payments_over_500,15-Feb-2022,Housing & Communities,MIDLAND FORESTRY LIMITED,Neighbourhoods,536.00,Externally Purchased Professional Services ,2122P11_CR00360,45812
Sandwell Metropolitan Borough Council,http://www.sandwell.gov.uk/info/200202/performance_and_spending/1079/payments_over_500,15-Feb-2022,Housing & Communities,MIDLAND FORESTRY LIMITED,Neighbourhoods,1498.00,Externally Purchased Professional Services ,2122P11_CR00361,45812
Sandwell Metropolitan Borough Council,http://www.sandwell.gov.uk/info/200202/performance_and_spending/1079/payments_over_500,01-Feb-2022,Housing & Communities,NEW MIND INTERNET CONSULTANCY T/A SIMPLEVIEW EUROPE,Neighbourhoods,9635.00,Externally Purchased Professional Services ,2122P11_CR00362,161777
Sandwell Metropolitan Borough Council,http://www.sandwell.gov.uk/info/200202/performance_and_spending/1079/payments_over_500,01-Feb-2022,Housing & Communities,P CASEY LTD,Housing & Communities,167325.32,"CIP - New Construction,Conversion, Enhancement & Reno",2122P11_CR00363,149276
Sandwell Metropolitan Borough Council,http://www.sandwell.gov.uk/info/200202/performance_and_spending/1079/payments_over_500,01-Feb-2022,Housing & Communities,PINSENT MASON LLP,Neighbourhoods,12283.80,Externally Purchased Professional Services ,2122P11_CR00364,47648
Sandwell Metropolitan Borough Council,http://www.sandwell.gov.uk/info/200202/performance_and_spending/1079/payments_over_500,11-Feb-2022,Housing & Communities,PLACES FOR PEOPLE LEISURE MANAGEMENT LTD,Neighbourhoods,15832.60,SH Payments,2122P11_CR00365,118956
Sandwell Metropolitan Borough Council,http://www.sandwell.gov.uk/info/200202/performance_and_spending/1079/payments_over_500,01-Feb-2022,Housing & Communities,PROFILE SECURITY SERVICES LTD,Neighbourhoods,512.65,Security,2122P11_CR00366,131253
Sandwell Metropolitan Borough Council,http://www.sandwell.gov.uk/info/200202/performance_and_spending/1079/payments_over_500,01-Feb-2022,Housing & Communities,PROFILE SECURITY SERVICES LTD,Neighbourhoods,1140.72,Security,2122P11_CR00367,131253
Sandwell Metropolitan Borough Council,http://www.sandwell.gov.uk/info/200202/performance_and_spending/1079/payments_over_500,09-Feb-2022,Housing & Communities,PROFILE SECURITY SERVICES LTD,Neighbourhoods,1303.68,Security,2122P11_CR00368,131253
Sandwell Metropolitan Borough Council,http://www.sandwell.gov.uk/info/200202/performance_and_spending/1079/payments_over_500,01-Feb-2022,Housing & Communities,PROFILE SECURITY SERVICES LTD,Neighbourhoods,1303.68,Security,2122P11_CR00369,131253
Sandwell Metropolitan Borough Council,http://www.sandwell.gov.uk/info/200202/performance_and_spending/1079/payments_over_500,01-Feb-2022,Housing & Communities,PROFILE SECURITY SERVICES LTD,Neighbourhoods,2342.55,Security,2122P11_CR00370,131253
Sandwell Metropolitan Borough Council,http://www.sandwell.gov.uk/info/200202/performance_and_spending/1079/payments_over_500,01-Feb-2022,Housing & Communities,PROFILE SECURITY SERVICES LTD,Neighbourhoods,10504.13,Security,2122P11_CR00371,131253
Sandwell Metropolitan Borough Council,http://www.sandwell.gov.uk/info/200202/performance_and_spending/1079/payments_over_500,01-Feb-2022,Housing & Communities,Q-MATIC AB LTD,Neighbourhoods,10432.18,Externally Purchased Professional Services ,2122P11_CR00372,141886
Sandwell Metropolitan Borough Council,http://www.sandwell.gov.uk/info/200202/performance_and_spending/1079/payments_over_500,11-Feb-2022,Housing & Communities,REDACTED PERSONAL DATA,Neighbourhoods,1281.00,Tenants Expenses,2122P11_CR00373,REDACTED PERSONAL DATA
Sandwell Metropolitan Borough Council,http://www.sandwell.gov.uk/info/200202/performance_and_spending/1079/payments_over_500,02-Feb-2022,Housing & Communities,REDACTED PERSONAL DATA,Neighbourhoods,1500.00,Tenants Expenses,2122P11_CR00374,REDACTED PERSONAL DATA
Sandwell Metropolitan Borough Council,http://www.sandwell.gov.uk/info/200202/performance_and_spending/1079/payments_over_500,15-Feb-2022,Housing & Communities,REDACTED PERSONAL DATA,Neighbourhoods,1700.00,Rents,2122P11_CR00375,REDACTED PERSONAL DATA
Sandwell Metropolitan Borough Council,http://www.sandwell.gov.uk/info/200202/performance_and_spending/1079/payments_over_500,22-Feb-2022,Housing & Communities,REDACTED PERSONAL DATA T/A PARTY STOP,Neighbourhoods,1000.00,Civic Events,2122P11_CR00376,REDACTED PERSONAL DATA
Sandwell Metropolitan Borough Council,http://www.sandwell.gov.uk/info/200202/performance_and_spending/1079/payments_over_500,16-Feb-2022,Housing & Communities,RIGHT TO CARE LTD.,Neighbourhoods,1217.86,Rents,2122P11_CR00377,133426
Sandwell Metropolitan Borough Council,http://www.sandwell.gov.uk/info/200202/performance_and_spending/1079/payments_over_500,16-Feb-2022,Housing & Communities,RIGHT TO CARE LTD.,Neighbourhoods,1217.86,Rents,2122P11_CR00378,133426
Sandwell Metropolitan Borough Council,http://www.sandwell.gov.uk/info/200202/performance_and_spending/1079/payments_over_500,16-Feb-2022,Housing & Communities,RIGHT TO CARE LTD.,Neighbourhoods,1217.86,Rents,2122P11_CR00379,133426
Sandwell Metropolitan Borough Council,http://www.sandwell.gov.uk/info/200202/performance_and_spending/1079/payments_over_500,16-Feb-2022,Housing & Communities,RIGHT TO CARE LTD.,Neighbourhoods,1217.86,Rents,2122P11_CR00380,133426
Sandwell Metropolitan Borough Council,http://www.sandwell.gov.uk/info/200202/performance_and_spending/1079/payments_over_500,01-Feb-2022,Housing & Communities,ROYAL ESTATES,Neighbourhoods,1000.00,Rents,2122P11_CR00381,86539
Sandwell Metropolitan Borough Council,http://www.sandwell.gov.uk/info/200202/performance_and_spending/1079/payments_over_500,14-Feb-2022,Housing & Communities,SAMUEL AND CO ASSOCIATES LIMITED,Neighbourhoods,575.00,Tenants Expenses,2122P11_CR00382,145942
Sandwell Metropolitan Borough Council,http://www.sandwell.gov.uk/info/200202/performance_and_spending/1079/payments_over_500,01-Feb-2022,Housing & Communities,SANDWELL & WEST BIRMINGHAM HOSPITALS NHS TRUST,Neighbourhoods,7375.00,Grant Payments,2122P11_CR00383,1385
Sandwell Metropolitan Borough Council,http://www.sandwell.gov.uk/info/200202/performance_and_spending/1079/payments_over_500,09-Feb-2022,Housing & Communities,SANDWELL & WEST BIRMINGHAM HOSPITALS NHS TRUST,Neighbourhoods,5198.53,Waste Disposal Charges,2122P11_CR00384,1385
Sandwell Metropolitan Borough Council,http://www.sandwell.gov.uk/info/200202/performance_and_spending/1079/payments_over_500,01-Feb-2022,Housing & Communities,SANDWELL LIFT PROJECT COMPANY (NO 3) LIMITED,Neighbourhoods,111833.08,SH Payments,2122P11_CR00385,113986
Sandwell Metropolitan Borough Council,http://www.sandwell.gov.uk/info/200202/performance_and_spending/1079/payments_over_500,01-Feb-2022,Housing & Communities,SERCO LIMITED,Neighbourhoods,13625.38,Waste Disposal Charges,2122P11_CR00386,53771
Sandwell Metropolitan Borough Council,http://www.sandwell.gov.uk/info/200202/performance_and_spending/1079/payments_over_500,01-Feb-2022,Housing & Communities,SERCO LIMITED,Neighbourhoods,676788.30,Waste Disposal Charges,2122P11_CR00387,53771
Sandwell Metropolitan Borough Council,http://www.sandwell.gov.uk/info/200202/performance_and_spending/1079/payments_over_500,09-Feb-2022,Housing & Communities,SERCO LIMITED,Neighbourhoods,719.10,Waste Disposal Charges,2122P11_CR00388,53771
Sandwell Metropolitan Borough Council,http://www.sandwell.gov.uk/info/200202/performance_and_spending/1079/payments_over_500,09-Feb-2022,Housing & Communities,SERCO LIMITED,Neighbourhoods,1517755.34,Waste Disposal Charges,2122P11_CR00389,53771
Sandwell Metropolitan Borough Council,http://www.sandwell.gov.uk/info/200202/performance_and_spending/1079/payments_over_500,23-Feb-2022,Housing & Communities,SERCO LIMITED,Neighbourhoods,628094.33,Waste Disposal Charges,2122P11_CR00390,53771
Sandwell Metropolitan Borough Council,http://www.sandwell.gov.uk/info/200202/performance_and_spending/1079/payments_over_500,01-Feb-2022,Housing & Communities,SHARP,Neighbourhoods,4402.44,Rents,2122P11_CR00391,08280972
Sandwell Metropolitan Borough Council,http://www.sandwell.gov.uk/info/200202/performance_and_spending/1079/payments_over_500,01-Feb-2022,Housing & Communities,SHARP,Neighbourhoods,2201.22,Rents,2122P11_CR00392,08280972
Sandwell Metropolitan Borough Council,http://www.sandwell.gov.uk/info/200202/performance_and_spending/1079/payments_over_500,09-Feb-2022,Housing & Communities,SHARP,Neighbourhoods,2201.22,Rents,2122P11_CR00393,08280972
Sandwell Metropolitan Borough Council,http://www.sandwell.gov.uk/info/200202/performance_and_spending/1079/payments_over_500,09-Feb-2022,Housing & Communities,SHARP,Neighbourhoods,2201.22,Rents,2122P11_CR00394,08280972
Sandwell Metropolitan Borough Council,http://www.sandwell.gov.uk/info/200202/performance_and_spending/1079/payments_over_500,09-Feb-2022,Housing & Communities,SHARP,Neighbourhoods,2201.22,Rents,2122P11_CR00395,08280972
Sandwell Metropolitan Borough Council,http://www.sandwell.gov.uk/info/200202/performance_and_spending/1079/payments_over_500,09-Feb-2022,Housing & Communities,SHARP,Neighbourhoods,2201.22,Rents,2122P11_CR00396,08280972
Sandwell Metropolitan Borough Council,http://www.sandwell.gov.uk/info/200202/performance_and_spending/1079/payments_over_500,09-Feb-2022,Housing & Communities,SHARP,Neighbourhoods,2201.22,Rents,2122P11_CR00397,08280972
Sandwell Metropolitan Borough Council,http://www.sandwell.gov.uk/info/200202/performance_and_spending/1079/payments_over_500,01-Feb-2022,Housing & Communities,SITEWATCH FIRE AND SURVEILLANCE LIMITED,Neighbourhoods,961.60,Security,2122P11_CR00398,55288
Sandwell Metropolitan Borough Council,http://www.sandwell.gov.uk/info/200202/performance_and_spending/1079/payments_over_500,09-Feb-2022,Housing & Communities,SITEWATCH FIRE AND SURVEILLANCE LIMITED,Neighbourhoods,1410.78,Security,2122P11_CR00399,55288
Sandwell Metropolitan Borough Council,http://www.sandwell.gov.uk/info/200202/performance_and_spending/1079/payments_over_500,11-Feb-2022,Housing & Communities,SOUL ESTATES LTD,Neighbourhoods,1585.00,Tenants Expenses,2122P11_CR00400,143594
Sandwell Metropolitan Borough Council,http://www.sandwell.gov.uk/info/200202/performance_and_spending/1079/payments_over_500,15-Feb-2022,Housing & Communities,SPECIALISED TOOLS & EQUIPMENT LIMITED,Neighbourhoods,553.49,Materials & Consumables,2122P11_CR00401,84141
Sandwell Metropolitan Borough Council,http://www.sandwell.gov.uk/info/200202/performance_and_spending/1079/payments_over_500,22-Feb-2022,Housing & Communities,SPLAT ATTACK,Neighbourhoods,600.00,Civic Events,2122P11_CR00402,136081
Sandwell Metropolitan Borough Council,http://www.sandwell.gov.uk/info/200202/performance_and_spending/1079/payments_over_500,01-Feb-2022,Housing & Communities,SUEZ RECYLING AND RECOVERY HOLDINGS UK LTD,Neighbourhoods,1372.62,Waste Disposal Charges,2122P11_CR00403,129939
Sandwell Metropolitan Borough Council,http://www.sandwell.gov.uk/info/200202/performance_and_spending/1079/payments_over_500,15-Feb-2022,Housing & Communities,TELETRAC NAVMAN (UK) LTD,Neighbourhoods,630.00,External Contract Hire,2122P11_CR00404,129341
Sandwell Metropolitan Borough Council,http://www.sandwell.gov.uk/info/200202/performance_and_spending/1079/payments_over_500,15-Feb-2022,Housing & Communities,TELETRAC NAVMAN (UK) LTD,Neighbourhoods,637.00,External Contract Hire,2122P11_CR00405,129341
Sandwell Metropolitan Borough Council,http://www.sandwell.gov.uk/info/200202/performance_and_spending/1079/payments_over_500,15-Feb-2022,Housing & Communities,TELETRAC NAVMAN (UK) LTD,Neighbourhoods,637.00,External Contract Hire,2122P11_CR00406,129341
Sandwell Metropolitan Borough Council,http://www.sandwell.gov.uk/info/200202/performance_and_spending/1079/payments_over_500,15-Feb-2022,Housing & Communities,TENNALS PEST CONTROL LTD,Neighbourhoods,960.00,Pest Control,2122P11_CR00407,138145
Sandwell Metropolitan Borough Council,http://www.sandwell.gov.uk/info/200202/performance_and_spending/1079/payments_over_500,01-Feb-2022,Housing & Communities,THE ALBION FOUNDATION,Neighbourhoods,2328.00,Grant Payments,2122P11_CR00408,21026659
Sandwell Metropolitan Borough Council,http://www.sandwell.gov.uk/info/200202/performance_and_spending/1079/payments_over_500,14-Feb-2022,Housing & Communities,TONY RICHARDS MOBILITY,Neighbourhoods,2330.00,Equipment & Furniture ,2122P11_CR00409,119141
Sandwell Metropolitan Borough Council,http://www.sandwell.gov.uk/info/200202/performance_and_spending/1079/payments_over_500,14-Feb-2022,Housing & Communities,TONY RICHARDS MOBILITY,Neighbourhoods,2330.00,Equipment & Furniture ,2122P11_CR00410,119141
Sandwell Metropolitan Borough Council,http://www.sandwell.gov.uk/info/200202/performance_and_spending/1079/payments_over_500,14-Feb-2022,Housing & Communities,TOTALENERGIES GAS & POWER LTD,Neighbourhoods,1161.38,Electricity,2122P11_CR00411,107605
Sandwell Metropolitan Borough Council,http://www.sandwell.gov.uk/info/200202/performance_and_spending/1079/payments_over_500,01-Feb-2022,Housing & Communities,TOTALENERGIES GAS & POWER LTD,Neighbourhoods,687.19,Gas,2122P11_CR00412,107605
Sandwell Metropolitan Borough Council,http://www.sandwell.gov.uk/info/200202/performance_and_spending/1079/payments_over_500,01-Feb-2022,Housing & Communities,TRH WALSALL LTD,Neighbourhoods,962.64,Rents,2122P11_CR00413,85648
Sandwell Metropolitan Borough Council,http://www.sandwell.gov.uk/info/200202/performance_and_spending/1079/payments_over_500,01-Feb-2022,Housing & Communities,TRH WALSALL LTD,Neighbourhoods,1166.80,Rents,2122P11_CR00414,85648
Sandwell Metropolitan Borough Council,http://www.sandwell.gov.uk/info/200202/performance_and_spending/1079/payments_over_500,01-Feb-2022,Housing & Communities,TRH WALSALL LTD,Neighbourhoods,1983.52,Rents,2122P11_CR00415,85648
Sandwell Metropolitan Borough Council,http://www.sandwell.gov.uk/info/200202/performance_and_spending/1079/payments_over_500,01-Feb-2022,Housing & Communities,TRH WALSALL LTD,Neighbourhoods,625.05,Rents,2122P11_CR00416,85648
Sandwell Metropolitan Borough Council,http://www.sandwell.gov.uk/info/200202/performance_and_spending/1079/payments_over_500,01-Feb-2022,Housing & Communities,TRH WALSALL LTD,Neighbourhoods,1983.52,Rents,2122P11_CR00417,85648
Sandwell Metropolitan Borough Council,http://www.sandwell.gov.uk/info/200202/performance_and_spending/1079/payments_over_500,01-Feb-2022,Housing & Communities,TRH WALSALL LTD,Neighbourhoods,933.52,Rents,2122P11_CR00418,85648
Sandwell Metropolitan Borough Council,http://www.sandwell.gov.uk/info/200202/performance_and_spending/1079/payments_over_500,01-Feb-2022,Housing & Communities,TRH WALSALL LTD,Neighbourhoods,933.52,Rents,2122P11_CR00419,85648
Sandwell Metropolitan Borough Council,http://www.sandwell.gov.uk/info/200202/performance_and_spending/1079/payments_over_500,01-Feb-2022,Housing & Communities,TRH WALSALL LTD,Neighbourhoods,933.52,Rents,2122P11_CR00420,85648
Sandwell Metropolitan Borough Council,http://www.sandwell.gov.uk/info/200202/performance_and_spending/1079/payments_over_500,01-Feb-2022,Housing & Communities,TRH WALSALL LTD,Neighbourhoods,533.44,Rents,2122P11_CR00421,85648
Sandwell Metropolitan Borough Council,http://www.sandwell.gov.uk/info/200202/performance_and_spending/1079/payments_over_500,01-Feb-2022,Housing & Communities,TRH WALSALL LTD,Neighbourhoods,1771.00,Rents,2122P11_CR00422,85648
Sandwell Metropolitan Borough Council,http://www.sandwell.gov.uk/info/200202/performance_and_spending/1079/payments_over_500,09-Feb-2022,Housing & Communities,TUDOR ENVIRONMENTAL,Neighbourhoods,1346.62,Equipment & Furniture ,2122P11_CR00423,01528713
Sandwell Metropolitan Borough Council,http://www.sandwell.gov.uk/info/200202/performance_and_spending/1079/payments_over_500,01-Feb-2022,Housing & Communities,TUDOR ENVIRONMENTAL,Neighbourhoods,618.06,Materials & Consumables,2122P11_CR00424,01528713
Sandwell Metropolitan Borough Council,http://www.sandwell.gov.uk/info/200202/performance_and_spending/1079/payments_over_500,22-Feb-2022,Housing & Communities,UNITE FIRE & SECURITY COMPANY LTD,Neighbourhoods,688.00,Security,2122P11_CR00425,148200
Sandwell Metropolitan Borough Council,http://www.sandwell.gov.uk/info/200202/performance_and_spending/1079/payments_over_500,09-Feb-2022,Housing & Communities,UNITE FIRE & SECURITY COMPANY LTD,Neighbourhoods,1443.00,Security,2122P11_CR00426,148200
Sandwell Metropolitan Borough Council,http://www.sandwell.gov.uk/info/200202/performance_and_spending/1079/payments_over_500,10-Feb-2022,Housing & Communities,VENDAID LTD,Neighbourhoods,852.00,Materials & Consumables,2122P11_CR00427,01045695
Sandwell Metropolitan Borough Council,http://www.sandwell.gov.uk/info/200202/performance_and_spending/1079/payments_over_500,14-Feb-2022,Housing & Communities,WATER PLUS SELECT LIMITED,Neighbourhoods,516.71,Water Services,2122P11_CR00428,129644
Sandwell Metropolitan Borough Council,http://www.sandwell.gov.uk/info/200202/performance_and_spending/1079/payments_over_500,14-Feb-2022,Housing & Communities,WATER PLUS SELECT LIMITED,Neighbourhoods,804.15,Water Services,2122P11_CR00429,129644
Sandwell Metropolitan Borough Council,http://www.sandwell.gov.uk/info/200202/performance_and_spending/1079/payments_over_500,09-Feb-2022,Housing & Communities,WATER PLUS SELECT LIMITED,Neighbourhoods,771.19,Water Services,2122P11_CR00430,129644
Sandwell Metropolitan Borough Council,http://www.sandwell.gov.uk/info/200202/performance_and_spending/1079/payments_over_500,01-Feb-2022,Housing & Communities,WATERMAN ASPEN LTD,Housing & Communities,5540.53,Externally Purchased Professional Services ,2122P11_CR00431,84354
Sandwell Metropolitan Borough Council,http://www.sandwell.gov.uk/info/200202/performance_and_spending/1079/payments_over_500,01-Feb-2022,Housing & Communities,WATERMAN ASPEN LTD,Housing & Communities,7475.20,Externally Purchased Professional Services ,2122P11_CR00432,84354
Sandwell Metropolitan Borough Council,http://www.sandwell.gov.uk/info/200202/performance_and_spending/1079/payments_over_500,01-Feb-2022,Housing & Communities,WATERMAN ASPEN LTD,Housing & Communities,3670.16,Externally Purchased Professional Services ,2122P11_CR00433,84354
Sandwell Metropolitan Borough Council,http://www.sandwell.gov.uk/info/200202/performance_and_spending/1079/payments_over_500,01-Feb-2022,Housing & Communities,WATES CONSTRUCTION LTD                                 01,Housing & Communities,636748.39,"CIP - New Construction,Conversion, Enhancement & Reno",2122P11_CR00434,77000882
Sandwell Metropolitan Borough Council,http://www.sandwell.gov.uk/info/200202/performance_and_spending/1079/payments_over_500,01-Feb-2022,Housing & Communities,WATES CONSTRUCTION LTD                                 01,Housing & Communities,1888042.52,"CIP - New Construction,Conversion, Enhancement & Reno",2122P11_CR00435,77000882
Sandwell Metropolitan Borough Council,http://www.sandwell.gov.uk/info/200202/performance_and_spending/1079/payments_over_500,22-Feb-2022,Housing & Communities,WILLOW BLINDS LTD,Neighbourhoods,1290.00,Equipment & Furniture ,2122P11_CR00436,01486246
Sandwell Metropolitan Borough Council,http://www.sandwell.gov.uk/info/200202/performance_and_spending/1079/payments_over_500,01-Feb-2022,Housing & Communities,XTREME GRAPHICS LTD,Neighbourhoods,4666.50,Civic Events,2122P11_CR00437,161819
Sandwell Metropolitan Borough Council,http://www.sandwell.gov.uk/info/200202/performance_and_spending/1079/payments_over_500,23-Feb-2022,Housing & Communities,A E HUDSON,Neighbourhoods,500.00,Rents,2122P11_CR00438,107342
Sandwell Metropolitan Borough Council,http://www.sandwell.gov.uk/info/200202/performance_and_spending/1079/payments_over_500,23-Feb-2022,Housing & Communities,A PRASHER,Neighbourhoods,500.00,Rents,2122P11_CR00439,112229
Sandwell Metropolitan Borough Council,http://www.sandwell.gov.uk/info/200202/performance_and_spending/1079/payments_over_500,23-Feb-2022,Housing & Communities,BALIJIT KAUR,Neighbourhoods,500.00,Rents,2122P11_CR00440,101860
Sandwell Metropolitan Borough Council,http://www.sandwell.gov.uk/info/200202/performance_and_spending/1079/payments_over_500,23-Feb-2022,Housing & Communities,BALJIT PUREWAL,Neighbourhoods,550.00,Rents,2122P11_CR00441,113595
Sandwell Metropolitan Borough Council,http://www.sandwell.gov.uk/info/200202/performance_and_spending/1079/payments_over_500,23-Feb-2022,Housing & Communities,BALWANT SINGH,Neighbourhoods,500.00,Rents,2122P11_CR00442,84433
Sandwell Metropolitan Borough Council,http://www.sandwell.gov.uk/info/200202/performance_and_spending/1079/payments_over_500,23-Feb-2022,Housing & Communities,CHRISTINE ANN CADDEN,Neighbourhoods,500.00,Rents,2122P11_CR00443,112728
Sandwell Metropolitan Borough Council,http://www.sandwell.gov.uk/info/200202/performance_and_spending/1079/payments_over_500,23-Feb-2022,Housing & Communities,ELEANOR MCGEE,Neighbourhoods,550.00,Rents,2122P11_CR00444,109162
Sandwell Metropolitan Borough Council,http://www.sandwell.gov.uk/info/200202/performance_and_spending/1079/payments_over_500,23-Feb-2022,Housing & Communities,J S GARCHA,Neighbourhoods,500.00,Rents,2122P11_CR00445,106491
Sandwell Metropolitan Borough Council,http://www.sandwell.gov.uk/info/200202/performance_and_spending/1079/payments_over_500,23-Feb-2022,Housing & Communities,LORNA DOUGLAS,Neighbourhoods,550.00,Rents,2122P11_CR00446,124809
Sandwell Metropolitan Borough Council,http://www.sandwell.gov.uk/info/200202/performance_and_spending/1079/payments_over_500,23-Feb-2022,Housing & Communities,MOHANAD ABBAS,Neighbourhoods,550.00,Rents,2122P11_CR00447,108876
Sandwell Metropolitan Borough Council,http://www.sandwell.gov.uk/info/200202/performance_and_spending/1079/payments_over_500,23-Feb-2022,Housing & Communities,NARINDER SINGH,Neighbourhoods,500.00,Rents,2122P11_CR00448,114091
Sandwell Metropolitan Borough Council,http://www.sandwell.gov.uk/info/200202/performance_and_spending/1079/payments_over_500,23-Feb-2022,Housing & Communities,SAKANDAR SINGH,Neighbourhoods,1000.00,Rents,2122P11_CR00449,117913
Sandwell Metropolitan Borough Council,http://www.sandwell.gov.uk/info/200202/performance_and_spending/1079/payments_over_500,10-Feb-2022,Housing & Communities,BLACK COUNTRY HOUSING GROUP LIMITED,Neighbourhoods,30000.00,Grant Payments,2122P11_CR00450,01715636
Sandwell Metropolitan Borough Council,http://www.sandwell.gov.uk/info/200202/performance_and_spending/1079/payments_over_500,01-Feb-2022,Housing & Communities,S.C.V.O.,Neighbourhoods,40000.00,Grant Payments,2122P11_CR00451,109813
Sandwell Metropolitan Borough Council,http://www.sandwell.gov.uk/info/200202/performance_and_spending/1079/payments_over_500,01-Feb-2022,Housing & Communities,S.C.V.O.,Neighbourhoods,14500.00,Grant Payments,2122P11_CR00452,109813
Sandwell Metropolitan Borough Council,http://www.sandwell.gov.uk/info/200202/performance_and_spending/1079/payments_over_500,01-Feb-2022,Housing Revenue Account Capital,AXIS EUROPE PLC                                                           02,Housing Revenue Account Capital,8129.46,Deferred Charges/Grant Payments,2122P11_CR00453,64946
Sandwell Metropolitan Borough Council,http://www.sandwell.gov.uk/info/200202/performance_and_spending/1079/payments_over_500,01-Feb-2022,Housing Revenue Account Capital,AXIS EUROPE PLC                                                           02,Housing Revenue Account Capital,30665.49,Deferred Charges/Grant Payments,2122P11_CR00454,64946
Sandwell Metropolitan Borough Council,http://www.sandwell.gov.uk/info/200202/performance_and_spending/1079/payments_over_500,01-Feb-2022,Housing Revenue Account Capital,AXIS EUROPE PLC                                                           02,Housing Revenue Account Capital,4834.20,Deferred Charges/Grant Payments,2122P11_CR00455,64946
Sandwell Metropolitan Borough Council,http://www.sandwell.gov.uk/info/200202/performance_and_spending/1079/payments_over_500,01-Feb-2022,Housing Revenue Account Capital,AXIS EUROPE PLC                                                           02,Housing Revenue Account Capital,5669.27,Deferred Charges/Grant Payments,2122P11_CR00456,64946
Sandwell Metropolitan Borough Council,http://www.sandwell.gov.uk/info/200202/performance_and_spending/1079/payments_over_500,14-Feb-2022,Housing Revenue Account Capital,CNC GROUP HOLDINGS LTD,Housing Revenue Account Capital,11678.62,"CIP - New Construction,Conversion, Enhancement & Reno",2122P11_CR00457,147994
Sandwell Metropolitan Borough Council,http://www.sandwell.gov.uk/info/200202/performance_and_spending/1079/payments_over_500,14-Feb-2022,Housing Revenue Account Capital,COLEMAN & CO LTD,Housing Revenue Account Capital,12170.50,Consultancy,2122P11_CR00458,77004032
Sandwell Metropolitan Borough Council,http://www.sandwell.gov.uk/info/200202/performance_and_spending/1079/payments_over_500,01-Feb-2022,Housing Revenue Account Capital,CONNECT SERVICES BUILDING SOLUTIONS LTD,Housing Revenue Account Capital,25027.82,"CIP - New Construction,Conversion, Enhancement & Reno",2122P11_CR00459,141859
Sandwell Metropolitan Borough Council,http://www.sandwell.gov.uk/info/200202/performance_and_spending/1079/payments_over_500,08-Feb-2022,Housing Revenue Account Capital,DOLPHIN LIFTS MIDLANDS LTD,Housing Revenue Account Capital,8421.00,Deferred Charges/Grant Payments,2122P11_CR00460,123852
Sandwell Metropolitan Borough Council,http://www.sandwell.gov.uk/info/200202/performance_and_spending/1079/payments_over_500,01-Feb-2022,Housing Revenue Account Capital,DOLPHIN LIFTS MIDLANDS LTD,Housing Revenue Account Capital,6000.00,Deferred Charges/Grant Payments,2122P11_CR00461,123852
Sandwell Metropolitan Borough Council,http://www.sandwell.gov.uk/info/200202/performance_and_spending/1079/payments_over_500,08-Feb-2022,Housing Revenue Account Capital,DOLPHIN LIFTS MIDLANDS LTD,Housing Revenue Account Capital,3225.00,Deferred Charges/Grant Payments,2122P11_CR00462,123852
Sandwell Metropolitan Borough Council,http://www.sandwell.gov.uk/info/200202/performance_and_spending/1079/payments_over_500,01-Feb-2022,Housing Revenue Account Capital,DOLPHIN LIFTS MIDLANDS LTD,Housing Revenue Account Capital,11625.74,Deferred Charges/Grant Payments,2122P11_CR00463,123852
Sandwell Metropolitan Borough Council,http://www.sandwell.gov.uk/info/200202/performance_and_spending/1079/payments_over_500,01-Feb-2022,Housing Revenue Account Capital,DOLPHIN LIFTS MIDLANDS LTD,Housing Revenue Account Capital,3116.00,Deferred Charges/Grant Payments,2122P11_CR00464,123852
Sandwell Metropolitan Borough Council,http://www.sandwell.gov.uk/info/200202/performance_and_spending/1079/payments_over_500,01-Feb-2022,Housing Revenue Account Capital,DOLPHIN LIFTS MIDLANDS LTD,Housing Revenue Account Capital,3495.00,Deferred Charges/Grant Payments,2122P11_CR00465,123852
Sandwell Metropolitan Borough Council,http://www.sandwell.gov.uk/info/200202/performance_and_spending/1079/payments_over_500,23-Feb-2022,Housing Revenue Account Capital,HIGGS LLP CLIENT,Housing Revenue Account Capital,176973.00,CIP - Acquisition of Land & Existing Buildings,2122P11_CR00466,120965
Sandwell Metropolitan Borough Council,http://www.sandwell.gov.uk/info/200202/performance_and_spending/1079/payments_over_500,23-Feb-2022,Housing Revenue Account Capital,HILL INTERIOR CONTRACTS LTD,Housing Revenue Account Capital,25897.84,"CIP - New Construction,Conversion, Enhancement & Reno",2122P11_CR00467,17158
Sandwell Metropolitan Borough Council,http://www.sandwell.gov.uk/info/200202/performance_and_spending/1079/payments_over_500,01-Feb-2022,Housing Revenue Account Capital,J.HARPER & SONS (LEOMINSTER) LIMITED,Housing Revenue Account Capital,70876.27,"CIP - New Construction,Conversion, Enhancement & Reno",2122P11_CR00468,111814
Sandwell Metropolitan Borough Council,http://www.sandwell.gov.uk/info/200202/performance_and_spending/1079/payments_over_500,01-Feb-2022,Housing Revenue Account Capital,J.HARPER & SONS (LEOMINSTER) LIMITED,Housing Revenue Account Capital,272468.46,"CIP - New Construction,Conversion, Enhancement & Reno",2122P11_CR00469,111814
Sandwell Metropolitan Borough Council,http://www.sandwell.gov.uk/info/200202/performance_and_spending/1079/payments_over_500,01-Feb-2022,Housing Revenue Account Capital,LIFT & ENGINEERING SERVICES LTD,Housing Revenue Account Capital,1173.72,"CIP - New Construction,Conversion, Enhancement & Reno",2122P11_CR00470,77003962
Sandwell Metropolitan Borough Council,http://www.sandwell.gov.uk/info/200202/performance_and_spending/1079/payments_over_500,10-Feb-2022,Housing Revenue Account Capital,LOVELL PARTNERSHIPS  LTD,Housing Revenue Account Capital,496594.75,"CIP - New Construction,Conversion, Enhancement & Reno",2122P11_CR00471,77007398
Sandwell Metropolitan Borough Council,http://www.sandwell.gov.uk/info/200202/performance_and_spending/1079/payments_over_500,03-Feb-2022,Housing Revenue Account Capital,LOVELL PARTNERSHIPS  LTD,Housing Revenue Account Capital,66829.08,"CIP - New Construction,Conversion, Enhancement & Reno",2122P11_CR00472,77007398
Sandwell Metropolitan Borough Council,http://www.sandwell.gov.uk/info/200202/performance_and_spending/1079/payments_over_500,03-Feb-2022,Housing Revenue Account Capital,LOVELL PARTNERSHIPS  LTD,Housing Revenue Account Capital,29755.90,"CIP - New Construction,Conversion, Enhancement & Reno",2122P11_CR00473,77007398
Sandwell Metropolitan Borough Council,http://www.sandwell.gov.uk/info/200202/performance_and_spending/1079/payments_over_500,14-Feb-2022,Housing Revenue Account Capital,NICHOLLS COLTON & PARTNERS LTD,Housing Revenue Account Capital,1140.00,"CIP - New Construction,Conversion, Enhancement & Reno",2122P11_CR00474,3215
Sandwell Metropolitan Borough Council,http://www.sandwell.gov.uk/info/200202/performance_and_spending/1079/payments_over_500,01-Feb-2022,Housing Revenue Account Capital,POWRED HEATING COMPONENTS LIMITED,Housing Revenue Account Capital,3515.85,Materials & Consumables,2122P11_CR00475,133978
Sandwell Metropolitan Borough Council,http://www.sandwell.gov.uk/info/200202/performance_and_spending/1079/payments_over_500,01-Feb-2022,Housing Revenue Account Capital,PR PROPERTY MAINTENANCE,Housing Revenue Account Capital,43754.94,Deferred Charges/Grant Payments,2122P11_CR00476,33836
Sandwell Metropolitan Borough Council,http://www.sandwell.gov.uk/info/200202/performance_and_spending/1079/payments_over_500,01-Feb-2022,Housing Revenue Account Capital,PR PROPERTY MAINTENANCE,Housing Revenue Account Capital,8181.05,Deferred Charges/Grant Payments,2122P11_CR00477,33836
Sandwell Metropolitan Borough Council,http://www.sandwell.gov.uk/info/200202/performance_and_spending/1079/payments_over_500,01-Feb-2022,Housing Revenue Account Capital,SEDDON CONSTRUCTION LIMITED,Housing Revenue Account Capital,264311.63,"CIP - New Construction,Conversion, Enhancement & Reno",2122P11_CR00478,132999
Sandwell Metropolitan Borough Council,http://www.sandwell.gov.uk/info/200202/performance_and_spending/1079/payments_over_500,01-Feb-2022,Housing Revenue Account Capital,SEDDON CONSTRUCTION LIMITED,Housing Revenue Account Capital,176552.81,"CIP - New Construction,Conversion, Enhancement & Reno",2122P11_CR00479,132999
Sandwell Metropolitan Borough Council,http://www.sandwell.gov.uk/info/200202/performance_and_spending/1079/payments_over_500,01-Feb-2022,Housing Revenue Account Capital,SEDDON CONSTRUCTION LIMITED,Housing Revenue Account Capital,610087.63,"CIP - New Construction,Conversion, Enhancement & Reno",2122P11_CR00480,132999
Sandwell Metropolitan Borough Council,http://www.sandwell.gov.uk/info/200202/performance_and_spending/1079/payments_over_500,01-Feb-2022,Housing Revenue Account Capital,SPELLER METCALFE MALVERN LIMITED,Housing Revenue Account Capital,49277.71,"CIP - New Construction,Conversion, Enhancement & Reno",2122P11_CR00481,92473
Sandwell Metropolitan Borough Council,http://www.sandwell.gov.uk/info/200202/performance_and_spending/1079/payments_over_500,01-Feb-2022,Housing Revenue Account Capital,SURE MAINTENANCE LIMITED,Housing Revenue Account Capital,319695.31,"CIP - New Construction,Conversion, Enhancement & Reno",2122P11_CR00482,93926
Sandwell Metropolitan Borough Council,http://www.sandwell.gov.uk/info/200202/performance_and_spending/1079/payments_over_500,09-Feb-2022,Housing Revenue Account Capital,SYCAMORE WINDOWS & CONSERVATORIES LIMITED,Housing Revenue Account Capital,21526.01,"CIP - New Construction,Conversion, Enhancement & Reno",2122P11_CR00483,145272
Sandwell Metropolitan Borough Council,http://www.sandwell.gov.uk/info/200202/performance_and_spending/1079/payments_over_500,14-Feb-2022,Housing Revenue Account Capital,VINCI CONSTRUCTION LTD,Housing Revenue Account Capital,313001.33,"CIP - New Construction,Conversion, Enhancement & Reno",2122P11_CR00484,36361
Sandwell Metropolitan Borough Council,http://www.sandwell.gov.uk/info/200202/performance_and_spending/1079/payments_over_500,14-Feb-2022,Housing Revenue Account Capital,VINCI CONSTRUCTION LTD,Housing Revenue Account Capital,46910.92,"CIP - New Construction,Conversion, Enhancement & Reno",2122P11_CR00485,36361
Sandwell Metropolitan Borough Council,http://www.sandwell.gov.uk/info/200202/performance_and_spending/1079/payments_over_500,14-Feb-2022,Housing Revenue Account Capital,VINCI CONSTRUCTION LTD,Housing Revenue Account Capital,65060.77,"CIP - New Construction,Conversion, Enhancement & Reno",2122P11_CR00486,36361
Sandwell Metropolitan Borough Council,http://www.sandwell.gov.uk/info/200202/performance_and_spending/1079/payments_over_500,01-Feb-2022,Housing Revenue Account Capital,VINCI CONSTRUCTION LTD,Housing Revenue Account Capital,4040.81,Deferred Charges/Grant Payments,2122P11_CR00487,36361
Sandwell Metropolitan Borough Council,http://www.sandwell.gov.uk/info/200202/performance_and_spending/1079/payments_over_500,01-Feb-2022,Housing Revenue Account Capital,VINCI CONSTRUCTION LTD,Housing Revenue Account Capital,5363.16,Deferred Charges/Grant Payments,2122P11_CR00488,36361
Sandwell Metropolitan Borough Council,http://www.sandwell.gov.uk/info/200202/performance_and_spending/1079/payments_over_500,08-Feb-2022,Housing Revenue Account Capital,VINCI CONSTRUCTION LTD,Housing Revenue Account Capital,3166.32,Deferred Charges/Grant Payments,2122P11_CR00489,36361
Sandwell Metropolitan Borough Council,http://www.sandwell.gov.uk/info/200202/performance_and_spending/1079/payments_over_500,01-Feb-2022,Housing Revenue Account Capital,VINCI CONSTRUCTION LTD,Housing Revenue Account Capital,5733.48,Deferred Charges/Grant Payments,2122P11_CR00490,36361
Sandwell Metropolitan Borough Council,http://www.sandwell.gov.uk/info/200202/performance_and_spending/1079/payments_over_500,01-Feb-2022,Housing Revenue Account Capital,VINCI CONSTRUCTION LTD,Housing Revenue Account Capital,5175.17,Deferred Charges/Grant Payments,2122P11_CR00491,36361
Sandwell Metropolitan Borough Council,http://www.sandwell.gov.uk/info/200202/performance_and_spending/1079/payments_over_500,01-Feb-2022,Housing Revenue Account Capital,VINCI CONSTRUCTION LTD,Housing Revenue Account Capital,4350.23,Deferred Charges/Grant Payments,2122P11_CR00492,36361
Sandwell Metropolitan Borough Council,http://www.sandwell.gov.uk/info/200202/performance_and_spending/1079/payments_over_500,01-Feb-2022,Housing Revenue Account Capital,VINCI CONSTRUCTION LTD,Housing Revenue Account Capital,12025.71,Deferred Charges/Grant Payments,2122P11_CR00493,36361
Sandwell Metropolitan Borough Council,http://www.sandwell.gov.uk/info/200202/performance_and_spending/1079/payments_over_500,01-Feb-2022,Housing Revenue Account Capital,VINCI CONSTRUCTION LTD,Housing Revenue Account Capital,71675.82,Deferred Charges/Grant Payments,2122P11_CR00494,36361
Sandwell Metropolitan Borough Council,http://www.sandwell.gov.uk/info/200202/performance_and_spending/1079/payments_over_500,15-Feb-2022,Housing Revenue Account Capital,VINCI CONSTRUCTION LTD,Housing Revenue Account Capital,29184.66,Deferred Charges/Grant Payments,2122P11_CR00495,36361
Sandwell Metropolitan Borough Council,http://www.sandwell.gov.uk/info/200202/performance_and_spending/1079/payments_over_500,01-Feb-2022,Housing Revenue Account Capital,VINCI CONSTRUCTION LTD,Housing Revenue Account Capital,61087.47,Deferred Charges/Grant Payments,2122P11_CR00496,36361
Sandwell Metropolitan Borough Council,http://www.sandwell.gov.uk/info/200202/performance_and_spending/1079/payments_over_500,01-Feb-2022,Housing Revenue Account Capital,AA PROJECTS LIMITED,Housing Revenue Account Capital,2040.00,Deferred Charges/Grant Payments,2122P11_CR00497,116074
Sandwell Metropolitan Borough Council,http://www.sandwell.gov.uk/info/200202/performance_and_spending/1079/payments_over_500,01-Feb-2022,Housing Revenue Account Capital,BARNSLEY BATE LIMITED,Housing Revenue Account Capital,1122.00,Deferred Charges/Grant Payments,2122P11_CR00498,127857
Sandwell Metropolitan Borough Council,http://www.sandwell.gov.uk/info/200202/performance_and_spending/1079/payments_over_500,01-Feb-2022,Housing Revenue Account Capital,FORMBUILD INSTALLATIONS LTD,Housing Revenue Account Capital,8610.08,Deferred Charges/Grant Payments,2122P11_CR00499,153985
Sandwell Metropolitan Borough Council,http://www.sandwell.gov.uk/info/200202/performance_and_spending/1079/payments_over_500,22-Feb-2022,Individual School Budgets With Inclusion,5 STAR DAY NURSERY - OLDBURY,Individual School Budgets With Inclusion,10478.16,Grant Payments,2122P11_CR00500,120730
Sandwell Metropolitan Borough Council,http://www.sandwell.gov.uk/info/200202/performance_and_spending/1079/payments_over_500,22-Feb-2022,Individual School Budgets With Inclusion,5 STAR DAY NURSERY LIMITED,Individual School Budgets With Inclusion,8287.49,Grant Payments,2122P11_CR00501,105382
Sandwell Metropolitan Borough Council,http://www.sandwell.gov.uk/info/200202/performance_and_spending/1079/payments_over_500,22-Feb-2022,Individual School Budgets With Inclusion,ABC DAY NURSERY & PRE SCHOOL LTD,Individual School Budgets With Inclusion,12690.21,Grant Payments,2122P11_CR00502,01472823
Sandwell Metropolitan Borough Council,http://www.sandwell.gov.uk/info/200202/performance_and_spending/1079/payments_over_500,22-Feb-2022,Individual School Budgets With Inclusion,ABIGAIL CRUMPTON,Individual School Budgets With Inclusion,707.27,Grant Payments,2122P11_CR00503,130863
Sandwell Metropolitan Borough Council,http://www.sandwell.gov.uk/info/200202/performance_and_spending/1079/payments_over_500,22-Feb-2022,Individual School Budgets With Inclusion,ADVENTURE QUEST (GREAT BRIDGE) LTD,Individual School Budgets With Inclusion,5697.65,Grant Payments,2122P11_CR00504,153563
Sandwell Metropolitan Borough Council,http://www.sandwell.gov.uk/info/200202/performance_and_spending/1079/payments_over_500,22-Feb-2022,Individual School Budgets With Inclusion,AL KAHIR SCHOOL,Individual School Budgets With Inclusion,3973.86,Grant Payments,2122P11_CR00505,128728
Sandwell Metropolitan Borough Council,http://www.sandwell.gov.uk/info/200202/performance_and_spending/1079/payments_over_500,22-Feb-2022,Individual School Budgets With Inclusion,BANANA MOON DAY NURSERY,Individual School Budgets With Inclusion,11568.35,Grant Payments,2122P11_CR00506,124220
Sandwell Metropolitan Borough Council,http://www.sandwell.gov.uk/info/200202/performance_and_spending/1079/payments_over_500,22-Feb-2022,Individual School Budgets With Inclusion,BLOXCIDGE HOUSE DAY NURSERY,Individual School Budgets With Inclusion,7596.66,Grant Payments,2122P11_CR00507,82862
Sandwell Metropolitan Borough Council,http://www.sandwell.gov.uk/info/200202/performance_and_spending/1079/payments_over_500,22-Feb-2022,Individual School Budgets With Inclusion,BLUEBELLS DAY NURSERY,Individual School Budgets With Inclusion,4191.26,Grant Payments,2122P11_CR00508,01721314
Sandwell Metropolitan Borough Council,http://www.sandwell.gov.uk/info/200202/performance_and_spending/1079/payments_over_500,22-Feb-2022,Individual School Budgets With Inclusion,BOOKWORMS DAYCARE BRICKHOUSE,Individual School Budgets With Inclusion,1012.17,Grant Payments,2122P11_CR00509,127727
Sandwell Metropolitan Borough Council,http://www.sandwell.gov.uk/info/200202/performance_and_spending/1079/payments_over_500,22-Feb-2022,Individual School Budgets With Inclusion,BOOKWORMS DAYCARE LIMITED,Individual School Budgets With Inclusion,12835.74,Grant Payments,2122P11_CR00510,114741
Sandwell Metropolitan Borough Council,http://www.sandwell.gov.uk/info/200202/performance_and_spending/1079/payments_over_500,22-Feb-2022,Individual School Budgets With Inclusion,BRIGHT LIGHTS DAY NURSERY,Individual School Budgets With Inclusion,12459.74,Grant Payments,2122P11_CR00511,89877
Sandwell Metropolitan Borough Council,http://www.sandwell.gov.uk/info/200202/performance_and_spending/1079/payments_over_500,22-Feb-2022,Individual School Budgets With Inclusion,BUSY BEE NURSERY,Individual School Budgets With Inclusion,10861.88,Grant Payments,2122P11_CR00512,01222577
Sandwell Metropolitan Borough Council,http://www.sandwell.gov.uk/info/200202/performance_and_spending/1079/payments_over_500,22-Feb-2022,Individual School Budgets With Inclusion,CAP DAY NURSERY,Individual School Budgets With Inclusion,8488.85,Grant Payments,2122P11_CR00513,51154
Sandwell Metropolitan Borough Council,http://www.sandwell.gov.uk/info/200202/performance_and_spending/1079/payments_over_500,22-Feb-2022,Individual School Budgets With Inclusion,CARA PRATT,Individual School Budgets With Inclusion,1640.23,Grant Payments,2122P11_CR00514,140537
Sandwell Metropolitan Borough Council,http://www.sandwell.gov.uk/info/200202/performance_and_spending/1079/payments_over_500,22-Feb-2022,Individual School Budgets With Inclusion,CAROLINE HENDERSON,Individual School Budgets With Inclusion,1035.93,Grant Payments,2122P11_CR00515,129980
Sandwell Metropolitan Borough Council,http://www.sandwell.gov.uk/info/200202/performance_and_spending/1079/payments_over_500,22-Feb-2022,Individual School Budgets With Inclusion,CATHERINE HOUSE DAY NURSERY,Individual School Budgets With Inclusion,3929.31,Grant Payments,2122P11_CR00516,08587767
Sandwell Metropolitan Borough Council,http://www.sandwell.gov.uk/info/200202/performance_and_spending/1079/payments_over_500,22-Feb-2022,Individual School Budgets With Inclusion,CLAIRE PARTRIDGE,Individual School Budgets With Inclusion,517.97,Grant Payments,2122P11_CR00517,123143
Sandwell Metropolitan Borough Council,http://www.sandwell.gov.uk/info/200202/performance_and_spending/1079/payments_over_500,22-Feb-2022,Individual School Budgets With Inclusion,CLARE O'DRISCOLL,Individual School Budgets With Inclusion,543.86,Grant Payments,2122P11_CR00518,129659
Sandwell Metropolitan Borough Council,http://www.sandwell.gov.uk/info/200202/performance_and_spending/1079/payments_over_500,22-Feb-2022,Individual School Budgets With Inclusion,CONFEDERATION OF BANGLADESHI ORGANISATIONS (CBO) LIMITED,Individual School Budgets With Inclusion,1916.84,Grant Payments,2122P11_CR00519,10034
Sandwell Metropolitan Borough Council,http://www.sandwell.gov.uk/info/200202/performance_and_spending/1079/payments_over_500,22-Feb-2022,Individual School Budgets With Inclusion,CONIFERS DAY NURSERY LTD,Individual School Budgets With Inclusion,8382.53,Grant Payments,2122P11_CR00520,131957
Sandwell Metropolitan Borough Council,http://www.sandwell.gov.uk/info/200202/performance_and_spending/1079/payments_over_500,22-Feb-2022,Individual School Budgets With Inclusion,DAFFODILS NURSERY LTD,Individual School Budgets With Inclusion,6229.87,Grant Payments,2122P11_CR00521,120066
Sandwell Metropolitan Borough Council,http://www.sandwell.gov.uk/info/200202/performance_and_spending/1079/payments_over_500,22-Feb-2022,Individual School Budgets With Inclusion,DAWN PERRY,Individual School Budgets With Inclusion,1095.33,Grant Payments,2122P11_CR00522,118604
Sandwell Metropolitan Borough Council,http://www.sandwell.gov.uk/info/200202/performance_and_spending/1079/payments_over_500,22-Feb-2022,Individual School Budgets With Inclusion,DONNA CLEARY,Individual School Budgets With Inclusion,529.85,Grant Payments,2122P11_CR00523,118531
Sandwell Metropolitan Borough Council,http://www.sandwell.gov.uk/info/200202/performance_and_spending/1079/payments_over_500,22-Feb-2022,Individual School Budgets With Inclusion,ELAINE SLATER,Individual School Budgets With Inclusion,821.50,Grant Payments,2122P11_CR00524,90028
Sandwell Metropolitan Borough Council,http://www.sandwell.gov.uk/info/200202/performance_and_spending/1079/payments_over_500,22-Feb-2022,Individual School Budgets With Inclusion,ELIZABETH TURNER,Individual School Budgets With Inclusion,517.97,Grant Payments,2122P11_CR00525,34523
Sandwell Metropolitan Borough Council,http://www.sandwell.gov.uk/info/200202/performance_and_spending/1079/payments_over_500,22-Feb-2022,Individual School Budgets With Inclusion,FAIRYTALES NURSERY LTD,Individual School Budgets With Inclusion,21305.59,Grant Payments,2122P11_CR00526,106247
Sandwell Metropolitan Borough Council,http://www.sandwell.gov.uk/info/200202/performance_and_spending/1079/payments_over_500,22-Feb-2022,Individual School Budgets With Inclusion,FATIMA DAY NURSERY,Individual School Budgets With Inclusion,7596.66,Grant Payments,2122P11_CR00527,131343
Sandwell Metropolitan Borough Council,http://www.sandwell.gov.uk/info/200202/performance_and_spending/1079/payments_over_500,22-Feb-2022,Individual School Budgets With Inclusion,FIREFLIES NURSERY LIMITED,Individual School Budgets With Inclusion,10067.11,Grant Payments,2122P11_CR00528,124120
Sandwell Metropolitan Borough Council,http://www.sandwell.gov.uk/info/200202/performance_and_spending/1079/payments_over_500,22-Feb-2022,Individual School Budgets With Inclusion,FIRST STEPS DAY NURSERY,Individual School Budgets With Inclusion,8742.49,Grant Payments,2122P11_CR00529,51155
Sandwell Metropolitan Borough Council,http://www.sandwell.gov.uk/info/200202/performance_and_spending/1079/payments_over_500,22-Feb-2022,Individual School Budgets With Inclusion,FIRST STEPS OLDBURY,Individual School Budgets With Inclusion,9430.34,Grant Payments,2122P11_CR00530,118886
Sandwell Metropolitan Borough Council,http://www.sandwell.gov.uk/info/200202/performance_and_spending/1079/payments_over_500,22-Feb-2022,Individual School Budgets With Inclusion,GAIL FAY PREECE,Individual School Budgets With Inclusion,1059.69,Grant Payments,2122P11_CR00531,61415
Sandwell Metropolitan Borough Council,http://www.sandwell.gov.uk/info/200202/performance_and_spending/1079/payments_over_500,22-Feb-2022,Individual School Budgets With Inclusion,GEMMA ADAMS,Individual School Budgets With Inclusion,1553.90,Grant Payments,2122P11_CR00532,129661
Sandwell Metropolitan Borough Council,http://www.sandwell.gov.uk/info/200202/performance_and_spending/1079/payments_over_500,22-Feb-2022,Individual School Budgets With Inclusion,GNG NURSERY,Individual School Budgets With Inclusion,9272.34,Grant Payments,2122P11_CR00533,114805
Sandwell Metropolitan Borough Council,http://www.sandwell.gov.uk/info/200202/performance_and_spending/1079/payments_over_500,22-Feb-2022,Individual School Budgets With Inclusion,HAPPY DAYS NURSERY (GREETS GREEN),Individual School Budgets With Inclusion,7042.46,Grant Payments,2122P11_CR00534,125840
Sandwell Metropolitan Borough Council,http://www.sandwell.gov.uk/info/200202/performance_and_spending/1079/payments_over_500,22-Feb-2022,Individual School Budgets With Inclusion,HAYLEY GODDARD,Individual School Budgets With Inclusion,821.50,Grant Payments,2122P11_CR00535,139835
Sandwell Metropolitan Borough Council,http://www.sandwell.gov.uk/info/200202/performance_and_spending/1079/payments_over_500,22-Feb-2022,Individual School Budgets With Inclusion,HUMPTY DUMPTYS DAY NURSERY,Individual School Budgets With Inclusion,11193.04,Grant Payments,2122P11_CR00536,08510771
Sandwell Metropolitan Borough Council,http://www.sandwell.gov.uk/info/200202/performance_and_spending/1079/payments_over_500,22-Feb-2022,Individual School Budgets With Inclusion,JACQUELINE HEHIR,Individual School Budgets With Inclusion,1059.69,Grant Payments,2122P11_CR00537,75203
Sandwell Metropolitan Borough Council,http://www.sandwell.gov.uk/info/200202/performance_and_spending/1079/payments_over_500,22-Feb-2022,Individual School Budgets With Inclusion,JANE JACKSON.,Individual School Budgets With Inclusion,673.36,Grant Payments,2122P11_CR00538,128220
Sandwell Metropolitan Borough Council,http://www.sandwell.gov.uk/info/200202/performance_and_spending/1079/payments_over_500,22-Feb-2022,Individual School Budgets With Inclusion,JAQUELINE CHANCE,Individual School Budgets With Inclusion,1309.77,Grant Payments,2122P11_CR00539,123463
Sandwell Metropolitan Borough Council,http://www.sandwell.gov.uk/info/200202/performance_and_spending/1079/payments_over_500,22-Feb-2022,Individual School Budgets With Inclusion,JENNIE THOMAS,Individual School Budgets With Inclusion,771.72,Grant Payments,2122P11_CR00540,134322
Sandwell Metropolitan Borough Council,http://www.sandwell.gov.uk/info/200202/performance_and_spending/1079/payments_over_500,22-Feb-2022,Individual School Budgets With Inclusion,JENNIFER LOUISE LEATHERLAND,Individual School Budgets With Inclusion,3143.45,Grant Payments,2122P11_CR00541,131850
Sandwell Metropolitan Borough Council,http://www.sandwell.gov.uk/info/200202/performance_and_spending/1079/payments_over_500,22-Feb-2022,Individual School Budgets With Inclusion,JOYFUL CHILDRENS NURSERY,Individual School Budgets With Inclusion,2411.64,Grant Payments,2122P11_CR00542,150961
Sandwell Metropolitan Borough Council,http://www.sandwell.gov.uk/info/200202/performance_and_spending/1079/payments_over_500,22-Feb-2022,Individual School Budgets With Inclusion,JULIE BAINES,Individual School Budgets With Inclusion,517.97,Grant Payments,2122P11_CR00543,129408
Sandwell Metropolitan Borough Council,http://www.sandwell.gov.uk/info/200202/performance_and_spending/1079/payments_over_500,22-Feb-2022,Individual School Budgets With Inclusion,JUNIPER'S PRESCHOOL,Individual School Budgets With Inclusion,6358.17,Grant Payments,2122P11_CR00544,154579
Sandwell Metropolitan Borough Council,http://www.sandwell.gov.uk/info/200202/performance_and_spending/1079/payments_over_500,22-Feb-2022,Individual School Budgets With Inclusion,KAI DRUMS,Individual School Budgets With Inclusion,15717.24,Grant Payments,2122P11_CR00545,120729
Sandwell Metropolitan Borough Council,http://www.sandwell.gov.uk/info/200202/performance_and_spending/1079/payments_over_500,22-Feb-2022,Individual School Budgets With Inclusion,KANGAROO POUCH AT GREAT BRIDGE,Individual School Budgets With Inclusion,6286.89,Grant Payments,2122P11_CR00546,129771
Sandwell Metropolitan Borough Council,http://www.sandwell.gov.uk/info/200202/performance_and_spending/1079/payments_over_500,22-Feb-2022,Individual School Budgets With Inclusion,KANGAROO POUCH AT TIVIDALE,Individual School Budgets With Inclusion,8382.53,Grant Payments,2122P11_CR00547,113715
Sandwell Metropolitan Borough Council,http://www.sandwell.gov.uk/info/200202/performance_and_spending/1079/payments_over_500,22-Feb-2022,Individual School Budgets With Inclusion,KANGAROO POUCH CHARLEMONT,Individual School Budgets With Inclusion,5563.40,Grant Payments,2122P11_CR00548,117283
Sandwell Metropolitan Borough Council,http://www.sandwell.gov.uk/info/200202/performance_and_spending/1079/payments_over_500,22-Feb-2022,Individual School Budgets With Inclusion,KANGAROO POUCH LIMITED,Individual School Budgets With Inclusion,5563.40,Grant Payments,2122P11_CR00549,106981
Sandwell Metropolitan Borough Council,http://www.sandwell.gov.uk/info/200202/performance_and_spending/1079/payments_over_500,22-Feb-2022,Individual School Budgets With Inclusion,LAVENDER FARM DAY NURSERY,Individual School Budgets With Inclusion,35499.81,Grant Payments,2122P11_CR00550,65596
Sandwell Metropolitan Borough Council,http://www.sandwell.gov.uk/info/200202/performance_and_spending/1079/payments_over_500,22-Feb-2022,Individual School Budgets With Inclusion,LEEANNE ADAMS,Individual School Budgets With Inclusion,1035.93,Grant Payments,2122P11_CR00551,134517
Sandwell Metropolitan Borough Council,http://www.sandwell.gov.uk/info/200202/performance_and_spending/1079/payments_over_500,22-Feb-2022,Individual School Budgets With Inclusion,LEKA HOWE,Individual School Budgets With Inclusion,1095.33,Grant Payments,2122P11_CR00552,119503
Sandwell Metropolitan Borough Council,http://www.sandwell.gov.uk/info/200202/performance_and_spending/1079/payments_over_500,22-Feb-2022,Individual School Budgets With Inclusion,LILLIPUT LODGE CHILDRENS DAY NURSERY,Individual School Budgets With Inclusion,9692.30,Grant Payments,2122P11_CR00553,2980
Sandwell Metropolitan Borough Council,http://www.sandwell.gov.uk/info/200202/performance_and_spending/1079/payments_over_500,22-Feb-2022,Individual School Budgets With Inclusion,LISA HINTON,Individual School Budgets With Inclusion,1035.93,Grant Payments,2122P11_CR00554,92923
Sandwell Metropolitan Borough Council,http://www.sandwell.gov.uk/info/200202/performance_and_spending/1079/payments_over_500,22-Feb-2022,Individual School Budgets With Inclusion,LITTLE ACADEMY NURSERY,Individual School Budgets With Inclusion,3973.86,Grant Payments,2122P11_CR00555,81904
Sandwell Metropolitan Borough Council,http://www.sandwell.gov.uk/info/200202/performance_and_spending/1079/payments_over_500,22-Feb-2022,Individual School Budgets With Inclusion,LITTLE ANGELS DAY NURSERY LIMITED,Individual School Budgets With Inclusion,2914.16,Grant Payments,2122P11_CR00556,10207
Sandwell Metropolitan Borough Council,http://www.sandwell.gov.uk/info/200202/performance_and_spending/1079/payments_over_500,22-Feb-2022,Individual School Budgets With Inclusion,LITTLE EXPLORERS (WEST MIDLANDS) LTD,Individual School Budgets With Inclusion,19436.98,Grant Payments,2122P11_CR00557,114804
Sandwell Metropolitan Borough Council,http://www.sandwell.gov.uk/info/200202/performance_and_spending/1079/payments_over_500,22-Feb-2022,Individual School Budgets With Inclusion,LITTLE LEARNERS LTD,Individual School Budgets With Inclusion,6771.60,Grant Payments,2122P11_CR00558,01424133
Sandwell Metropolitan Borough Council,http://www.sandwell.gov.uk/info/200202/performance_and_spending/1079/payments_over_500,22-Feb-2022,Individual School Budgets With Inclusion,LITTLE LEGEND NURSERIES LTD,Individual School Budgets With Inclusion,3289.57,Grant Payments,2122P11_CR00559,117890
Sandwell Metropolitan Borough Council,http://www.sandwell.gov.uk/info/200202/performance_and_spending/1079/payments_over_500,22-Feb-2022,Individual School Budgets With Inclusion,LITTLE SAPLINGS CHILDCARE CENTRES,Individual School Budgets With Inclusion,8477.57,Grant Payments,2122P11_CR00560,131043
Sandwell Metropolitan Borough Council,http://www.sandwell.gov.uk/info/200202/performance_and_spending/1079/payments_over_500,22-Feb-2022,Individual School Budgets With Inclusion,LITTLE STEPPERS,Individual School Budgets With Inclusion,4381.34,Grant Payments,2122P11_CR00561,120240
Sandwell Metropolitan Borough Council,http://www.sandwell.gov.uk/info/200202/performance_and_spending/1079/payments_over_500,22-Feb-2022,Individual School Budgets With Inclusion,LITTLE VALERS PRE SCHOOL,Individual School Budgets With Inclusion,11395.29,Grant Payments,2122P11_CR00562,99107
Sandwell Metropolitan Borough Council,http://www.sandwell.gov.uk/info/200202/performance_and_spending/1079/payments_over_500,22-Feb-2022,Individual School Budgets With Inclusion,LITTLE WENDY HOUSE DAY NURSERY,Individual School Budgets With Inclusion,18544.68,Grant Payments,2122P11_CR00563,91544
Sandwell Metropolitan Borough Council,http://www.sandwell.gov.uk/info/200202/performance_and_spending/1079/payments_over_500,22-Feb-2022,Individual School Budgets With Inclusion,LOLA BELLES PRIVATE DAY NURSERY,Individual School Budgets With Inclusion,9802.19,Grant Payments,2122P11_CR00564,89271
Sandwell Metropolitan Borough Council,http://www.sandwell.gov.uk/info/200202/performance_and_spending/1079/payments_over_500,22-Feb-2022,Individual School Budgets With Inclusion,MINI MONKEYS LTD,Individual School Budgets With Inclusion,9168.39,Grant Payments,2122P11_CR00565,114818
Sandwell Metropolitan Borough Council,http://www.sandwell.gov.uk/info/200202/performance_and_spending/1079/payments_over_500,22-Feb-2022,Individual School Budgets With Inclusion,MINNS LIMITED,Individual School Budgets With Inclusion,8477.57,Grant Payments,2122P11_CR00566,120067
Sandwell Metropolitan Borough Council,http://www.sandwell.gov.uk/info/200202/performance_and_spending/1079/payments_over_500,22-Feb-2022,Individual School Budgets With Inclusion,MONIQUE BROWN.,Individual School Budgets With Inclusion,517.97,Grant Payments,2122P11_CR00567,127112
Sandwell Metropolitan Borough Council,http://www.sandwell.gov.uk/info/200202/performance_and_spending/1079/payments_over_500,22-Feb-2022,Individual School Budgets With Inclusion,MOORLANDS LITTLE LEARNERS PLAYGROUP,Individual School Budgets With Inclusion,7596.66,Grant Payments,2122P11_CR00568,46390
Sandwell Metropolitan Borough Council,http://www.sandwell.gov.uk/info/200202/performance_and_spending/1079/payments_over_500,22-Feb-2022,Individual School Budgets With Inclusion,N & K VARMA LIMITED T/A (KIDDIES PLAYHOUSE TIPTON),Individual School Budgets With Inclusion,3973.86,Grant Payments,2122P11_CR00569,26124
Sandwell Metropolitan Borough Council,http://www.sandwell.gov.uk/info/200202/performance_and_spending/1079/payments_over_500,22-Feb-2022,Individual School Budgets With Inclusion,OUR LADY AND ST HUBERTS CATHOLIC PRIMARY SCHOOL                                      02,Individual School Budgets With Inclusion,13359.65,Grant Payments,2122P11_CR00570,61053
Sandwell Metropolitan Borough Council,http://www.sandwell.gov.uk/info/200202/performance_and_spending/1079/payments_over_500,22-Feb-2022,Individual School Budgets With Inclusion,PERRYFIELDS PRE SCHOOL,Individual School Budgets With Inclusion,10109.01,Grant Payments,2122P11_CR00571,18879
Sandwell Metropolitan Borough Council,http://www.sandwell.gov.uk/info/200202/performance_and_spending/1079/payments_over_500,22-Feb-2022,Individual School Budgets With Inclusion,PITTA PATTA DAYCARE,Individual School Budgets With Inclusion,5828.33,Grant Payments,2122P11_CR00572,114742
Sandwell Metropolitan Borough Council,http://www.sandwell.gov.uk/info/200202/performance_and_spending/1079/payments_over_500,22-Feb-2022,Individual School Budgets With Inclusion,PLAYHOUSE DAY NURSERY,Individual School Budgets With Inclusion,6024.94,Grant Payments,2122P11_CR00573,01586669
Sandwell Metropolitan Borough Council,http://www.sandwell.gov.uk/info/200202/performance_and_spending/1079/payments_over_500,22-Feb-2022,Individual School Budgets With Inclusion,RAK DAY CARE LTD T/A HAPPY VALLEY PRE SCHOOL LTD,Individual School Budgets With Inclusion,9007.41,Grant Payments,2122P11_CR00574,01572212
Sandwell Metropolitan Borough Council,http://www.sandwell.gov.uk/info/200202/performance_and_spending/1079/payments_over_500,22-Feb-2022,Individual School Budgets With Inclusion,RARE WOOD LIMITED,Individual School Budgets With Inclusion,14084.93,Grant Payments,2122P11_CR00575,20167
Sandwell Metropolitan Borough Council,http://www.sandwell.gov.uk/info/200202/performance_and_spending/1079/payments_over_500,22-Feb-2022,Individual School Budgets With Inclusion,ROOTS & SHOOTS PLAYGROUP,Individual School Budgets With Inclusion,6177.60,Grant Payments,2122P11_CR00576,75502
Sandwell Metropolitan Borough Council,http://www.sandwell.gov.uk/info/200202/performance_and_spending/1079/payments_over_500,22-Feb-2022,Individual School Budgets With Inclusion,ROWINA WINDSOR,Individual School Budgets With Inclusion,1186.61,Grant Payments,2122P11_CR00577,138305
Sandwell Metropolitan Borough Council,http://www.sandwell.gov.uk/info/200202/performance_and_spending/1079/payments_over_500,22-Feb-2022,Individual School Budgets With Inclusion,ROWLEY VILLAGE DAY NURSERY,Individual School Budgets With Inclusion,14145.51,Grant Payments,2122P11_CR00578,24228
Sandwell Metropolitan Borough Council,http://www.sandwell.gov.uk/info/200202/performance_and_spending/1079/payments_over_500,22-Feb-2022,Individual School Budgets With Inclusion,SADWICA DAY NURSERY,Individual School Budgets With Inclusion,7223.04,Grant Payments,2122P11_CR00579,01667892
Sandwell Metropolitan Borough Council,http://www.sandwell.gov.uk/info/200202/performance_and_spending/1079/payments_over_500,22-Feb-2022,Individual School Budgets With Inclusion,SANDWELL NHS TRUST DAY NURSERY,Individual School Budgets With Inclusion,16513.59,Grant Payments,2122P11_CR00580,40788
Sandwell Metropolitan Borough Council,http://www.sandwell.gov.uk/info/200202/performance_and_spending/1079/payments_over_500,22-Feb-2022,Individual School Budgets With Inclusion,SANTOS DAY NURSERIES,Individual School Budgets With Inclusion,9323.42,Grant Payments,2122P11_CR00581,129262
Sandwell Metropolitan Borough Council,http://www.sandwell.gov.uk/info/200202/performance_and_spending/1079/payments_over_500,22-Feb-2022,Individual School Budgets With Inclusion,SATVINDER KAUR,Individual School Budgets With Inclusion,776.95,Grant Payments,2122P11_CR00582,131042
Sandwell Metropolitan Borough Council,http://www.sandwell.gov.uk/info/200202/performance_and_spending/1079/payments_over_500,22-Feb-2022,Individual School Budgets With Inclusion,SMARTY PANTS @ LIGHTWOODS HOUSE LTD,Individual School Budgets With Inclusion,8906.43,Grant Payments,2122P11_CR00583,130645
Sandwell Metropolitan Borough Council,http://www.sandwell.gov.uk/info/200202/performance_and_spending/1079/payments_over_500,22-Feb-2022,Individual School Budgets With Inclusion,SMARTY PANTS PRIVATE DAY NURSERY LTD,Individual School Budgets With Inclusion,17749.91,Grant Payments,2122P11_CR00584,74037
Sandwell Metropolitan Borough Council,http://www.sandwell.gov.uk/info/200202/performance_and_spending/1079/payments_over_500,22-Feb-2022,Individual School Budgets With Inclusion,SPON LANE DAY NURSERY LIMITED,Individual School Budgets With Inclusion,8667.65,Grant Payments,2122P11_CR00585,127024
Sandwell Metropolitan Borough Council,http://www.sandwell.gov.uk/info/200202/performance_and_spending/1079/payments_over_500,22-Feb-2022,Individual School Budgets With Inclusion,ST HUBERTS PRE-SCHOOL PLAYGROUP 2,Individual School Budgets With Inclusion,16765.05,Grant Payments,2122P11_CR00586,123074
Sandwell Metropolitan Borough Council,http://www.sandwell.gov.uk/info/200202/performance_and_spending/1079/payments_over_500,22-Feb-2022,Individual School Budgets With Inclusion,ST MICHAELS DAY NURSERY,Individual School Budgets With Inclusion,3833.67,Grant Payments,2122P11_CR00587,01698538
Sandwell Metropolitan Borough Council,http://www.sandwell.gov.uk/info/200202/performance_and_spending/1079/payments_over_500,22-Feb-2022,Individual School Budgets With Inclusion,STACEY PARTRIDGE (STEP UP CHILDCARE),Individual School Budgets With Inclusion,1035.93,Grant Payments,2122P11_CR00588,151395
Sandwell Metropolitan Borough Council,http://www.sandwell.gov.uk/info/200202/performance_and_spending/1079/payments_over_500,22-Feb-2022,Individual School Budgets With Inclusion,STEPPING STONES NURSERY,Individual School Budgets With Inclusion,7596.66,Grant Payments,2122P11_CR00589,50029
Sandwell Metropolitan Borough Council,http://www.sandwell.gov.uk/info/200202/performance_and_spending/1079/payments_over_500,22-Feb-2022,Individual School Budgets With Inclusion,SUSAN GRIFFITHS.,Individual School Budgets With Inclusion,776.95,Grant Payments,2122P11_CR00590,125492
Sandwell Metropolitan Borough Council,http://www.sandwell.gov.uk/info/200202/performance_and_spending/1079/payments_over_500,22-Feb-2022,Individual School Budgets With Inclusion,THE FAMILY NURSERY COMPANY LTD,Individual School Budgets With Inclusion,11656.65,Grant Payments,2122P11_CR00591,89879
Sandwell Metropolitan Borough Council,http://www.sandwell.gov.uk/info/200202/performance_and_spending/1079/payments_over_500,22-Feb-2022,Individual School Budgets With Inclusion,THE PATCH DAY NURSERY,Individual School Budgets With Inclusion,10332.03,Grant Payments,2122P11_CR00592,126020
Sandwell Metropolitan Borough Council,http://www.sandwell.gov.uk/info/200202/performance_and_spending/1079/payments_over_500,22-Feb-2022,Individual School Budgets With Inclusion,THE RIVERS MULTI ACADEMY TRUST,Individual School Budgets With Inclusion,15895.44,Grant Payments,2122P11_CR00593,61014
Sandwell Metropolitan Borough Council,http://www.sandwell.gov.uk/info/200202/performance_and_spending/1079/payments_over_500,22-Feb-2022,Individual School Budgets With Inclusion,THE TODDLER HOUSE LIMITED,Individual School Budgets With Inclusion,8212.64,Grant Payments,2122P11_CR00594,122166
Sandwell Metropolitan Borough Council,http://www.sandwell.gov.uk/info/200202/performance_and_spending/1079/payments_over_500,22-Feb-2022,Individual School Budgets With Inclusion,THE WONDER YEARS DAY NURSERY LIMITED,Individual School Budgets With Inclusion,11391.73,Grant Payments,2122P11_CR00595,01647249
Sandwell Metropolitan Borough Council,http://www.sandwell.gov.uk/info/200202/performance_and_spending/1079/payments_over_500,22-Feb-2022,Individual School Budgets With Inclusion,TICK TOCK DAY NURSERY LTD,Individual School Budgets With Inclusion,20399.15,Grant Payments,2122P11_CR00596,9391
Sandwell Metropolitan Borough Council,http://www.sandwell.gov.uk/info/200202/performance_and_spending/1079/payments_over_500,22-Feb-2022,Individual School Budgets With Inclusion,TIDDLYWINKS KIDDYS NURSERY LIMITED,Individual School Budgets With Inclusion,12573.79,Grant Payments,2122P11_CR00597,110667
Sandwell Metropolitan Borough Council,http://www.sandwell.gov.uk/info/200202/performance_and_spending/1079/payments_over_500,22-Feb-2022,Individual School Budgets With Inclusion,TIMBERTREE NEIGHBOURHOOD NURSERY,Individual School Budgets With Inclusion,15193.33,Grant Payments,2122P11_CR00598,135664
Sandwell Metropolitan Borough Council,http://www.sandwell.gov.uk/info/200202/performance_and_spending/1079/payments_over_500,22-Feb-2022,Individual School Budgets With Inclusion,TINY STEPS,Individual School Budgets With Inclusion,2649.24,Grant Payments,2122P11_CR00599,125778
Sandwell Metropolitan Borough Council,http://www.sandwell.gov.uk/info/200202/performance_and_spending/1079/payments_over_500,22-Feb-2022,Individual School Budgets With Inclusion,TINY TOEZ LIMITED,Individual School Budgets With Inclusion,9064.44,Grant Payments,2122P11_CR00600,23618
Sandwell Metropolitan Borough Council,http://www.sandwell.gov.uk/info/200202/performance_and_spending/1079/payments_over_500,22-Feb-2022,Individual School Budgets With Inclusion,TINY WOODS PRE SCHOOL,Individual School Budgets With Inclusion,22531.61,Grant Payments,2122P11_CR00601,91788
Sandwell Metropolitan Borough Council,http://www.sandwell.gov.uk/info/200202/performance_and_spending/1079/payments_over_500,22-Feb-2022,Individual School Budgets With Inclusion,TIP TOP DAY NURSERY WEDNESBURY,Individual School Budgets With Inclusion,4143.74,Grant Payments,2122P11_CR00602,147082
Sandwell Metropolitan Borough Council,http://www.sandwell.gov.uk/info/200202/performance_and_spending/1079/payments_over_500,22-Feb-2022,Individual School Budgets With Inclusion,TIPTON EXPLORERS NURSERY,Individual School Budgets With Inclusion,1960.44,Grant Payments,2122P11_CR00603,132351
Sandwell Metropolitan Borough Council,http://www.sandwell.gov.uk/info/200202/performance_and_spending/1079/payments_over_500,22-Feb-2022,Individual School Budgets With Inclusion,TIPTON NURSERY,Individual School Budgets With Inclusion,9751.10,Grant Payments,2122P11_CR00604,89881
Sandwell Metropolitan Borough Council,http://www.sandwell.gov.uk/info/200202/performance_and_spending/1079/payments_over_500,22-Feb-2022,Individual School Budgets With Inclusion,TIPTON TODDLERS DAY NURSERY,Individual School Budgets With Inclusion,16531.26,Grant Payments,2122P11_CR00605,4397
Sandwell Metropolitan Borough Council,http://www.sandwell.gov.uk/info/200202/performance_and_spending/1079/payments_over_500,22-Feb-2022,Individual School Budgets With Inclusion,TRACEY RALLEY,Individual School Budgets With Inclusion,517.97,Grant Payments,2122P11_CR00606,139205
Sandwell Metropolitan Borough Council,http://www.sandwell.gov.uk/info/200202/performance_and_spending/1079/payments_over_500,22-Feb-2022,Individual School Budgets With Inclusion,TULIP DAY NURSERY LTD,Individual School Budgets With Inclusion,2330.85,Grant Payments,2122P11_CR00607,152250
Sandwell Metropolitan Borough Council,http://www.sandwell.gov.uk/info/200202/performance_and_spending/1079/payments_over_500,22-Feb-2022,Individual School Budgets With Inclusion,TWO STEPS PRE-SCHOOL,Individual School Budgets With Inclusion,1854.47,Grant Payments,2122P11_CR00608,109186
Sandwell Metropolitan Borough Council,http://www.sandwell.gov.uk/info/200202/performance_and_spending/1079/payments_over_500,22-Feb-2022,Individual School Budgets With Inclusion,UNICORN DAY NURSERY,Individual School Budgets With Inclusion,30423.49,Grant Payments,2122P11_CR00609,91543
Sandwell Metropolitan Borough Council,http://www.sandwell.gov.uk/info/200202/performance_and_spending/1079/payments_over_500,22-Feb-2022,Individual School Budgets With Inclusion,UNITED KIDS CHILDCARE,Individual School Budgets With Inclusion,10332.03,Grant Payments,2122P11_CR00610,134806
Sandwell Metropolitan Borough Council,http://www.sandwell.gov.uk/info/200202/performance_and_spending/1079/payments_over_500,22-Feb-2022,Individual School Budgets With Inclusion,UNITED KIDS LIMITED,Individual School Budgets With Inclusion,10216.20,Grant Payments,2122P11_CR00611,136360
Sandwell Metropolitan Borough Council,http://www.sandwell.gov.uk/info/200202/performance_and_spending/1079/payments_over_500,22-Feb-2022,Individual School Budgets With Inclusion,VANESSA BILLINGSLEY,Individual School Budgets With Inclusion,1324.62,Grant Payments,2122P11_CR00612,125216
Sandwell Metropolitan Borough Council,http://www.sandwell.gov.uk/info/200202/performance_and_spending/1079/payments_over_500,22-Feb-2022,Individual School Budgets With Inclusion,VICTORIA HARRISON,Individual School Budgets With Inclusion,1294.92,Grant Payments,2122P11_CR00613,127111
Sandwell Metropolitan Borough Council,http://www.sandwell.gov.uk/info/200202/performance_and_spending/1079/payments_over_500,22-Feb-2022,Individual School Budgets With Inclusion,WENDY MAXWELL,Individual School Budgets With Inclusion,3143.45,Grant Payments,2122P11_CR00614,37344
Sandwell Metropolitan Borough Council,http://www.sandwell.gov.uk/info/200202/performance_and_spending/1079/payments_over_500,22-Feb-2022,Individual School Budgets With Inclusion,WEST BROMWICH & DISTRICT Y.M.C.A. COMMUNITY ENTERPRISES,Individual School Budgets With Inclusion,19448.03,Grant Payments,2122P11_CR00615,01088376
Sandwell Metropolitan Borough Council,http://www.sandwell.gov.uk/info/200202/performance_and_spending/1079/payments_over_500,22-Feb-2022,Individual School Budgets With Inclusion,WIGGLES & GIGGLES LTD,Individual School Budgets With Inclusion,29006.21,Grant Payments,2122P11_CR00616,01674799
Sandwell Metropolitan Borough Council,http://www.sandwell.gov.uk/info/200202/performance_and_spending/1079/payments_over_500,22-Feb-2022,Individual School Budgets With Inclusion,WONDERLAND CHILDRENS DAY NURSERY (UK) LTD,Individual School Budgets With Inclusion,28346.87,Grant Payments,2122P11_CR00617,50852
Sandwell Metropolitan Borough Council,http://www.sandwell.gov.uk/info/200202/performance_and_spending/1079/payments_over_500,01-Feb-2022,Individual School Budgets With Inclusion,AC EDUCATION,Individual School Budgets With Inclusion,1100.00,Licences,2122P11_CR00618,132959
Sandwell Metropolitan Borough Council,http://www.sandwell.gov.uk/info/200202/performance_and_spending/1079/payments_over_500,01-Feb-2022,Individual School Budgets With Inclusion,ACORN CARE AND EDUCATION LIMITED,Individual School Budgets With Inclusion,21550.00,Other Establishments,2122P11_CR00619,115235
Sandwell Metropolitan Borough Council,http://www.sandwell.gov.uk/info/200202/performance_and_spending/1079/payments_over_500,01-Feb-2022,Individual School Budgets With Inclusion,ASCEND HEALTH AND CHILDCARE TRAINING,Individual School Budgets With Inclusion,2520.00,Other Establishments,2122P11_CR00620,136631
Sandwell Metropolitan Borough Council,http://www.sandwell.gov.uk/info/200202/performance_and_spending/1079/payments_over_500,01-Feb-2022,Individual School Budgets With Inclusion,ASCEND HEALTH AND CHILDCARE TRAINING,Individual School Budgets With Inclusion,2520.00,Other Establishments,2122P11_CR00621,136631
Sandwell Metropolitan Borough Council,http://www.sandwell.gov.uk/info/200202/performance_and_spending/1079/payments_over_500,01-Feb-2022,Individual School Budgets With Inclusion,BIRMINGHAM CITY COUNCIL,Individual School Budgets With Inclusion,10540.00,Other Local Authorities,2122P11_CR00622,01622521
Sandwell Metropolitan Borough Council,http://www.sandwell.gov.uk/info/200202/performance_and_spending/1079/payments_over_500,01-Feb-2022,Individual School Budgets With Inclusion,BIRMINGHAM CITY COUNCIL,Individual School Budgets With Inclusion,4540.00,Other Local Authorities,2122P11_CR00623,01622521
Sandwell Metropolitan Borough Council,http://www.sandwell.gov.uk/info/200202/performance_and_spending/1079/payments_over_500,01-Feb-2022,Individual School Budgets With Inclusion,BIRMINGHAM CITY COUNCIL,Individual School Budgets With Inclusion,10540.00,Other Local Authorities,2122P11_CR00624,01622521
Sandwell Metropolitan Borough Council,http://www.sandwell.gov.uk/info/200202/performance_and_spending/1079/payments_over_500,01-Feb-2022,Individual School Budgets With Inclusion,BIRMINGHAM CITY COUNCIL,Individual School Budgets With Inclusion,6374.69,Other Local Authorities,2122P11_CR00625,01622521
Sandwell Metropolitan Borough Council,http://www.sandwell.gov.uk/info/200202/performance_and_spending/1079/payments_over_500,01-Feb-2022,Individual School Budgets With Inclusion,BIRMINGHAM CITY COUNCIL,Individual School Budgets With Inclusion,4364.42,Other Local Authorities,2122P11_CR00626,01622521
Sandwell Metropolitan Borough Council,http://www.sandwell.gov.uk/info/200202/performance_and_spending/1079/payments_over_500,01-Feb-2022,Individual School Budgets With Inclusion,BIRMINGHAM CITY COUNCIL,Individual School Budgets With Inclusion,6374.69,Other Local Authorities,2122P11_CR00627,01622521
Sandwell Metropolitan Borough Council,http://www.sandwell.gov.uk/info/200202/performance_and_spending/1079/payments_over_500,01-Feb-2022,Individual School Budgets With Inclusion,BIRMINGHAM CITY COUNCIL,Individual School Budgets With Inclusion,8672.14,Other Local Authorities,2122P11_CR00628,01622521
Sandwell Metropolitan Borough Council,http://www.sandwell.gov.uk/info/200202/performance_and_spending/1079/payments_over_500,01-Feb-2022,Individual School Budgets With Inclusion,BIRMINGHAM CITY COUNCIL,Individual School Budgets With Inclusion,4364.42,Other Local Authorities,2122P11_CR00629,01622521
Sandwell Metropolitan Borough Council,http://www.sandwell.gov.uk/info/200202/performance_and_spending/1079/payments_over_500,01-Feb-2022,Individual School Budgets With Inclusion,BIRMINGHAM CITY COUNCIL,Individual School Budgets With Inclusion,6374.69,Other Local Authorities,2122P11_CR00630,01622521
Sandwell Metropolitan Borough Council,http://www.sandwell.gov.uk/info/200202/performance_and_spending/1079/payments_over_500,01-Feb-2022,Individual School Budgets With Inclusion,BIRMINGHAM CITY COUNCIL,Individual School Budgets With Inclusion,4364.26,Other Local Authorities,2122P11_CR00631,01622521
Sandwell Metropolitan Borough Council,http://www.sandwell.gov.uk/info/200202/performance_and_spending/1079/payments_over_500,01-Feb-2022,Individual School Budgets With Inclusion,BIRMINGHAM CITY COUNCIL,Individual School Budgets With Inclusion,6374.69,Other Local Authorities,2122P11_CR00632,01622521
Sandwell Metropolitan Borough Council,http://www.sandwell.gov.uk/info/200202/performance_and_spending/1079/payments_over_500,01-Feb-2022,Individual School Budgets With Inclusion,BIRMINGHAM CITY COUNCIL,Individual School Budgets With Inclusion,6374.69,Other Local Authorities,2122P11_CR00633,01622521
Sandwell Metropolitan Borough Council,http://www.sandwell.gov.uk/info/200202/performance_and_spending/1079/payments_over_500,01-Feb-2022,Individual School Budgets With Inclusion,BIRMINGHAM CITY COUNCIL,Individual School Budgets With Inclusion,6374.69,Other Local Authorities,2122P11_CR00634,01622521
Sandwell Metropolitan Borough Council,http://www.sandwell.gov.uk/info/200202/performance_and_spending/1079/payments_over_500,01-Feb-2022,Individual School Budgets With Inclusion,BIRMINGHAM CITY COUNCIL,Individual School Budgets With Inclusion,6374.69,Other Local Authorities,2122P11_CR00635,01622521
Sandwell Metropolitan Borough Council,http://www.sandwell.gov.uk/info/200202/performance_and_spending/1079/payments_over_500,01-Feb-2022,Individual School Budgets With Inclusion,BIRMINGHAM CITY COUNCIL,Individual School Budgets With Inclusion,5396.77,Other Local Authorities,2122P11_CR00636,01622521
Sandwell Metropolitan Borough Council,http://www.sandwell.gov.uk/info/200202/performance_and_spending/1079/payments_over_500,01-Feb-2022,Individual School Budgets With Inclusion,BIRMINGHAM CITY COUNCIL,Individual School Budgets With Inclusion,5396.77,Other Local Authorities,2122P11_CR00637,01622521
Sandwell Metropolitan Borough Council,http://www.sandwell.gov.uk/info/200202/performance_and_spending/1079/payments_over_500,01-Feb-2022,Individual School Budgets With Inclusion,BIRMINGHAM CITY COUNCIL,Individual School Budgets With Inclusion,5396.77,Other Local Authorities,2122P11_CR00638,01622521
Sandwell Metropolitan Borough Council,http://www.sandwell.gov.uk/info/200202/performance_and_spending/1079/payments_over_500,01-Feb-2022,Individual School Budgets With Inclusion,BIRMINGHAM CITY COUNCIL,Individual School Budgets With Inclusion,5396.77,Other Local Authorities,2122P11_CR00639,01622521
Sandwell Metropolitan Borough Council,http://www.sandwell.gov.uk/info/200202/performance_and_spending/1079/payments_over_500,01-Feb-2022,Individual School Budgets With Inclusion,BIRMINGHAM CITY COUNCIL,Individual School Budgets With Inclusion,7694.08,Other Local Authorities,2122P11_CR00640,01622521
Sandwell Metropolitan Borough Council,http://www.sandwell.gov.uk/info/200202/performance_and_spending/1079/payments_over_500,01-Feb-2022,Individual School Budgets With Inclusion,BIRMINGHAM CITY COUNCIL,Individual School Budgets With Inclusion,10694.08,Other Local Authorities,2122P11_CR00641,01622521
Sandwell Metropolitan Borough Council,http://www.sandwell.gov.uk/info/200202/performance_and_spending/1079/payments_over_500,01-Feb-2022,Individual School Budgets With Inclusion,BIRMINGHAM CITY COUNCIL,Individual School Budgets With Inclusion,4369.00,Other Local Authorities,2122P11_CR00642,01622521
Sandwell Metropolitan Borough Council,http://www.sandwell.gov.uk/info/200202/performance_and_spending/1079/payments_over_500,01-Feb-2022,Individual School Budgets With Inclusion,BIRMINGHAM CITY COUNCIL,Individual School Budgets With Inclusion,10369.00,Other Local Authorities,2122P11_CR00643,01622521
Sandwell Metropolitan Borough Council,http://www.sandwell.gov.uk/info/200202/performance_and_spending/1079/payments_over_500,01-Feb-2022,Individual School Budgets With Inclusion,BIRMINGHAM CITY COUNCIL,Individual School Budgets With Inclusion,4112.00,Other Local Authorities,2122P11_CR00644,01622521
Sandwell Metropolitan Borough Council,http://www.sandwell.gov.uk/info/200202/performance_and_spending/1079/payments_over_500,01-Feb-2022,Individual School Budgets With Inclusion,BIRMINGHAM CITY COUNCIL,Individual School Budgets With Inclusion,4112.00,Other Local Authorities,2122P11_CR00645,01622521
Sandwell Metropolitan Borough Council,http://www.sandwell.gov.uk/info/200202/performance_and_spending/1079/payments_over_500,01-Feb-2022,Individual School Budgets With Inclusion,BIRMINGHAM CITY COUNCIL,Individual School Budgets With Inclusion,5215.65,Other Local Authorities,2122P11_CR00646,01622521
Sandwell Metropolitan Borough Council,http://www.sandwell.gov.uk/info/200202/performance_and_spending/1079/payments_over_500,01-Feb-2022,Individual School Budgets With Inclusion,BIRMINGHAM CITY COUNCIL,Individual School Budgets With Inclusion,3570.89,Other Local Authorities,2122P11_CR00647,01622521
Sandwell Metropolitan Borough Council,http://www.sandwell.gov.uk/info/200202/performance_and_spending/1079/payments_over_500,01-Feb-2022,Individual School Budgets With Inclusion,BIRMINGHAM CITY COUNCIL,Individual School Budgets With Inclusion,5215.65,Other Local Authorities,2122P11_CR00648,01622521
Sandwell Metropolitan Borough Council,http://www.sandwell.gov.uk/info/200202/performance_and_spending/1079/payments_over_500,01-Feb-2022,Individual School Budgets With Inclusion,BIRMINGHAM CITY COUNCIL,Individual School Budgets With Inclusion,7095.39,Other Local Authorities,2122P11_CR00649,01622521
Sandwell Metropolitan Borough Council,http://www.sandwell.gov.uk/info/200202/performance_and_spending/1079/payments_over_500,01-Feb-2022,Individual School Budgets With Inclusion,BIRMINGHAM CITY COUNCIL,Individual School Budgets With Inclusion,5215.65,Other Local Authorities,2122P11_CR00650,01622521
Sandwell Metropolitan Borough Council,http://www.sandwell.gov.uk/info/200202/performance_and_spending/1079/payments_over_500,01-Feb-2022,Individual School Budgets With Inclusion,BIRMINGHAM CITY COUNCIL,Individual School Budgets With Inclusion,3570.76,Other Local Authorities,2122P11_CR00651,01622521
Sandwell Metropolitan Borough Council,http://www.sandwell.gov.uk/info/200202/performance_and_spending/1079/payments_over_500,01-Feb-2022,Individual School Budgets With Inclusion,BIRMINGHAM CITY COUNCIL,Individual School Budgets With Inclusion,5215.65,Other Local Authorities,2122P11_CR00652,01622521
Sandwell Metropolitan Borough Council,http://www.sandwell.gov.uk/info/200202/performance_and_spending/1079/payments_over_500,01-Feb-2022,Individual School Budgets With Inclusion,BIRMINGHAM CITY COUNCIL,Individual School Budgets With Inclusion,5215.65,Other Local Authorities,2122P11_CR00653,01622521
Sandwell Metropolitan Borough Council,http://www.sandwell.gov.uk/info/200202/performance_and_spending/1079/payments_over_500,01-Feb-2022,Individual School Budgets With Inclusion,BIRMINGHAM CITY COUNCIL,Individual School Budgets With Inclusion,3570.76,Other Local Authorities,2122P11_CR00654,01622521
Sandwell Metropolitan Borough Council,http://www.sandwell.gov.uk/info/200202/performance_and_spending/1079/payments_over_500,01-Feb-2022,Individual School Budgets With Inclusion,BIRMINGHAM CITY COUNCIL,Individual School Budgets With Inclusion,5215.65,Other Local Authorities,2122P11_CR00655,01622521
Sandwell Metropolitan Borough Council,http://www.sandwell.gov.uk/info/200202/performance_and_spending/1079/payments_over_500,01-Feb-2022,Individual School Budgets With Inclusion,BIRMINGHAM CITY COUNCIL,Individual School Budgets With Inclusion,3493.00,Other Local Authorities,2122P11_CR00656,01622521
Sandwell Metropolitan Borough Council,http://www.sandwell.gov.uk/info/200202/performance_and_spending/1079/payments_over_500,01-Feb-2022,Individual School Budgets With Inclusion,BIRMINGHAM CITY COUNCIL,Individual School Budgets With Inclusion,4995.00,Other Local Authorities,2122P11_CR00657,01622521
Sandwell Metropolitan Borough Council,http://www.sandwell.gov.uk/info/200202/performance_and_spending/1079/payments_over_500,01-Feb-2022,Individual School Budgets With Inclusion,BIRMINGHAM CITY COUNCIL,Individual School Budgets With Inclusion,2696.00,Other Local Authorities,2122P11_CR00658,01622521
Sandwell Metropolitan Borough Council,http://www.sandwell.gov.uk/info/200202/performance_and_spending/1079/payments_over_500,01-Feb-2022,Individual School Budgets With Inclusion,BIRMINGHAM CITY COUNCIL,Individual School Budgets With Inclusion,4369.00,Other Local Authorities,2122P11_CR00659,01622521
Sandwell Metropolitan Borough Council,http://www.sandwell.gov.uk/info/200202/performance_and_spending/1079/payments_over_500,01-Feb-2022,Individual School Budgets With Inclusion,BIRMINGHAM CITY COUNCIL,Individual School Budgets With Inclusion,10369.00,Other Local Authorities,2122P11_CR00660,01622521
Sandwell Metropolitan Borough Council,http://www.sandwell.gov.uk/info/200202/performance_and_spending/1079/payments_over_500,01-Feb-2022,Individual School Budgets With Inclusion,BIRMINGHAM CITY COUNCIL,Individual School Budgets With Inclusion,4369.00,Other Local Authorities,2122P11_CR00661,01622521
Sandwell Metropolitan Borough Council,http://www.sandwell.gov.uk/info/200202/performance_and_spending/1079/payments_over_500,01-Feb-2022,Individual School Budgets With Inclusion,BIRMINGHAM CITY COUNCIL,Individual School Budgets With Inclusion,4369.00,Other Local Authorities,2122P11_CR00662,01622521
Sandwell Metropolitan Borough Council,http://www.sandwell.gov.uk/info/200202/performance_and_spending/1079/payments_over_500,15-Feb-2022,Individual School Budgets With Inclusion,BIRMINGHAM CITY COUNCIL,Individual School Budgets With Inclusion,4139.04,Other Local Authorities,2122P11_CR00663,01622521
Sandwell Metropolitan Borough Council,http://www.sandwell.gov.uk/info/200202/performance_and_spending/1079/payments_over_500,15-Feb-2022,Individual School Budgets With Inclusion,BIRMINGHAM CITY COUNCIL,Individual School Budgets With Inclusion,4139.04,Other Local Authorities,2122P11_CR00664,01622521
Sandwell Metropolitan Borough Council,http://www.sandwell.gov.uk/info/200202/performance_and_spending/1079/payments_over_500,01-Feb-2022,Individual School Budgets With Inclusion,BIRMINGHAM COMMUNITY HEALTHCARE NHS TRUST,Individual School Budgets With Inclusion,2600.00,Other Local Authorities,2122P11_CR00665,117124
Sandwell Metropolitan Borough Council,http://www.sandwell.gov.uk/info/200202/performance_and_spending/1079/payments_over_500,01-Feb-2022,Individual School Budgets With Inclusion,BLACK COUNTRY CARPETS AND FLOORING,Individual School Budgets With Inclusion,1765.14,Building Maintenance & Improvements,2122P11_CR00666,161991
Sandwell Metropolitan Borough Council,http://www.sandwell.gov.uk/info/200202/performance_and_spending/1079/payments_over_500,01-Feb-2022,Individual School Budgets With Inclusion,BLACKWATER ACADEMY,Individual School Budgets With Inclusion,9265.00,Externally Purchased Professional Services ,2122P11_CR00667,129151
Sandwell Metropolitan Borough Council,http://www.sandwell.gov.uk/info/200202/performance_and_spending/1079/payments_over_500,01-Feb-2022,Individual School Budgets With Inclusion,BLACKWATER ACADEMY,Individual School Budgets With Inclusion,8175.00,Externally Purchased Professional Services ,2122P11_CR00668,129151
Sandwell Metropolitan Borough Council,http://www.sandwell.gov.uk/info/200202/performance_and_spending/1079/payments_over_500,01-Feb-2022,Individual School Budgets With Inclusion,BLACKWATER ACADEMY,Individual School Budgets With Inclusion,9840.00,Externally Purchased Professional Services ,2122P11_CR00669,129151
Sandwell Metropolitan Borough Council,http://www.sandwell.gov.uk/info/200202/performance_and_spending/1079/payments_over_500,01-Feb-2022,Individual School Budgets With Inclusion,BLACKWATER ACADEMY,Individual School Budgets With Inclusion,12600.00,Externally Purchased Professional Services ,2122P11_CR00670,129151
Sandwell Metropolitan Borough Council,http://www.sandwell.gov.uk/info/200202/performance_and_spending/1079/payments_over_500,01-Feb-2022,Individual School Budgets With Inclusion,BLACKWATER ACADEMY,Individual School Budgets With Inclusion,17160.00,Externally Purchased Professional Services ,2122P11_CR00671,129151
Sandwell Metropolitan Borough Council,http://www.sandwell.gov.uk/info/200202/performance_and_spending/1079/payments_over_500,01-Feb-2022,Individual School Budgets With Inclusion,BLACKWATER ACADEMY,Individual School Budgets With Inclusion,16200.00,Externally Purchased Professional Services ,2122P11_CR00672,129151
Sandwell Metropolitan Borough Council,http://www.sandwell.gov.uk/info/200202/performance_and_spending/1079/payments_over_500,01-Feb-2022,Individual School Budgets With Inclusion,BLACKWATER ACADEMY,Individual School Budgets With Inclusion,3230.00,Other Establishments,2122P11_CR00673,129151
Sandwell Metropolitan Borough Council,http://www.sandwell.gov.uk/info/200202/performance_and_spending/1079/payments_over_500,01-Feb-2022,Individual School Budgets With Inclusion,BLACKWATER ACADEMY,Individual School Budgets With Inclusion,2850.00,Other Establishments,2122P11_CR00674,129151
Sandwell Metropolitan Borough Council,http://www.sandwell.gov.uk/info/200202/performance_and_spending/1079/payments_over_500,01-Feb-2022,Individual School Budgets With Inclusion,BOW STREET SCHOOL LTD,Individual School Budgets With Inclusion,7700.00,Other Establishments,2122P11_CR00675,115236
Sandwell Metropolitan Borough Council,http://www.sandwell.gov.uk/info/200202/performance_and_spending/1079/payments_over_500,01-Feb-2022,Individual School Budgets With Inclusion,BREATHING SPACE THERAPUTIC SERVICES CIC,Individual School Budgets With Inclusion,1430.00,Other Establishments,2122P11_CR00676,155299
Sandwell Metropolitan Borough Council,http://www.sandwell.gov.uk/info/200202/performance_and_spending/1079/payments_over_500,09-Feb-2022,Individual School Budgets With Inclusion,BRIGHT LIGHTS DAY NURSERY,Individual School Budgets With Inclusion,2782.26,Externally Purchased Professional Services ,2122P11_CR00677,89877
Sandwell Metropolitan Borough Council,http://www.sandwell.gov.uk/info/200202/performance_and_spending/1079/payments_over_500,09-Feb-2022,Individual School Budgets With Inclusion,BRIGHT LIGHTS DAY NURSERY,Individual School Budgets With Inclusion,2878.20,Externally Purchased Professional Services ,2122P11_CR00678,89877
Sandwell Metropolitan Borough Council,http://www.sandwell.gov.uk/info/200202/performance_and_spending/1079/payments_over_500,18-Feb-2022,Individual School Budgets With Inclusion,BRITISH GAS BUSINESS,Individual School Budgets With Inclusion,822.28,Electricity,2122P11_CR00679,01735076
Sandwell Metropolitan Borough Council,http://www.sandwell.gov.uk/info/200202/performance_and_spending/1079/payments_over_500,01-Feb-2022,Individual School Budgets With Inclusion,BRITISH GAS BUSINESS,Individual School Budgets With Inclusion,908.56,Gas,2122P11_CR00680,01735076
Sandwell Metropolitan Borough Council,http://www.sandwell.gov.uk/info/200202/performance_and_spending/1079/payments_over_500,21-Feb-2022,Individual School Budgets With Inclusion,BRITISH GAS BUSINESS,Individual School Budgets With Inclusion,1098.60,Gas,2122P11_CR00681,01735076
Sandwell Metropolitan Borough Council,http://www.sandwell.gov.uk/info/200202/performance_and_spending/1079/payments_over_500,01-Feb-2022,Individual School Budgets With Inclusion,BUSY BEE NURSERY,Individual School Budgets With Inclusion,2398.44,Externally Purchased Professional Services ,2122P11_CR00682,01222577
Sandwell Metropolitan Borough Council,http://www.sandwell.gov.uk/info/200202/performance_and_spending/1079/payments_over_500,10-Feb-2022,Individual School Budgets With Inclusion,CITY OF WOLVERHAMPTON COLLEGE,Individual School Budgets With Inclusion,836.58,Externally Purchased Professional Services ,2122P11_CR00683,01764397
Sandwell Metropolitan Borough Council,http://www.sandwell.gov.uk/info/200202/performance_and_spending/1079/payments_over_500,01-Feb-2022,Individual School Budgets With Inclusion,COLMORE EDUCATION RECRUITMENT,Individual School Budgets With Inclusion,880.00,Agency Staff,2122P11_CR00684,148720
Sandwell Metropolitan Borough Council,http://www.sandwell.gov.uk/info/200202/performance_and_spending/1079/payments_over_500,01-Feb-2022,Individual School Budgets With Inclusion,COLMORE EDUCATION RECRUITMENT,Individual School Budgets With Inclusion,1100.00,Agency Staff,2122P11_CR00685,148720
Sandwell Metropolitan Borough Council,http://www.sandwell.gov.uk/info/200202/performance_and_spending/1079/payments_over_500,01-Feb-2022,Individual School Budgets With Inclusion,COLMORE EDUCATION RECRUITMENT,Individual School Budgets With Inclusion,600.00,Agency Staff,2122P11_CR00686,148720
Sandwell Metropolitan Borough Council,http://www.sandwell.gov.uk/info/200202/performance_and_spending/1079/payments_over_500,01-Feb-2022,Individual School Budgets With Inclusion,COLMORE EDUCATION RECRUITMENT,Individual School Budgets With Inclusion,600.00,Agency Staff,2122P11_CR00687,148720
Sandwell Metropolitan Borough Council,http://www.sandwell.gov.uk/info/200202/performance_and_spending/1079/payments_over_500,01-Feb-2022,Individual School Budgets With Inclusion,COLMORE EDUCATION RECRUITMENT,Individual School Budgets With Inclusion,1100.00,Agency Staff,2122P11_CR00688,148720
Sandwell Metropolitan Borough Council,http://www.sandwell.gov.uk/info/200202/performance_and_spending/1079/payments_over_500,01-Feb-2022,Individual School Budgets With Inclusion,COLMORE EDUCATION RECRUITMENT,Individual School Budgets With Inclusion,675.00,Agency Staff,2122P11_CR00689,148720
Sandwell Metropolitan Borough Council,http://www.sandwell.gov.uk/info/200202/performance_and_spending/1079/payments_over_500,01-Feb-2022,Individual School Budgets With Inclusion,COLMORE EDUCATION RECRUITMENT,Individual School Budgets With Inclusion,975.00,Agency Staff,2122P11_CR00690,148720
Sandwell Metropolitan Borough Council,http://www.sandwell.gov.uk/info/200202/performance_and_spending/1079/payments_over_500,01-Feb-2022,Individual School Budgets With Inclusion,COLMORE EDUCATION RECRUITMENT,Individual School Budgets With Inclusion,585.00,Agency Staff,2122P11_CR00691,148720
Sandwell Metropolitan Borough Council,http://www.sandwell.gov.uk/info/200202/performance_and_spending/1079/payments_over_500,01-Feb-2022,Individual School Budgets With Inclusion,COLMORE EDUCATION RECRUITMENT,Individual School Budgets With Inclusion,617.90,Agency Staff,2122P11_CR00692,148720
Sandwell Metropolitan Borough Council,http://www.sandwell.gov.uk/info/200202/performance_and_spending/1079/payments_over_500,01-Feb-2022,Individual School Budgets With Inclusion,COLMORE EDUCATION RECRUITMENT,Individual School Budgets With Inclusion,600.00,Agency Staff,2122P11_CR00693,148720
Sandwell Metropolitan Borough Council,http://www.sandwell.gov.uk/info/200202/performance_and_spending/1079/payments_over_500,01-Feb-2022,Individual School Budgets With Inclusion,COLMORE EDUCATION RECRUITMENT,Individual School Budgets With Inclusion,625.00,Agency Staff,2122P11_CR00694,148720
Sandwell Metropolitan Borough Council,http://www.sandwell.gov.uk/info/200202/performance_and_spending/1079/payments_over_500,01-Feb-2022,Individual School Budgets With Inclusion,COLMORE EDUCATION RECRUITMENT,Individual School Budgets With Inclusion,675.00,Agency Staff,2122P11_CR00695,148720
Sandwell Metropolitan Borough Council,http://www.sandwell.gov.uk/info/200202/performance_and_spending/1079/payments_over_500,01-Feb-2022,Individual School Budgets With Inclusion,COLMORE EDUCATION RECRUITMENT,Individual School Budgets With Inclusion,975.00,Agency Staff,2122P11_CR00696,148720
Sandwell Metropolitan Borough Council,http://www.sandwell.gov.uk/info/200202/performance_and_spending/1079/payments_over_500,01-Feb-2022,Individual School Budgets With Inclusion,COLMORE EDUCATION RECRUITMENT,Individual School Budgets With Inclusion,600.00,Agency Staff,2122P11_CR00697,148720
Sandwell Metropolitan Borough Council,http://www.sandwell.gov.uk/info/200202/performance_and_spending/1079/payments_over_500,01-Feb-2022,Individual School Budgets With Inclusion,COLMORE EDUCATION RECRUITMENT,Individual School Budgets With Inclusion,500.00,Agency Staff,2122P11_CR00698,148720
Sandwell Metropolitan Borough Council,http://www.sandwell.gov.uk/info/200202/performance_and_spending/1079/payments_over_500,01-Feb-2022,Individual School Budgets With Inclusion,COLMORE EDUCATION RECRUITMENT,Individual School Budgets With Inclusion,617.90,Agency Staff,2122P11_CR00699,148720
Sandwell Metropolitan Borough Council,http://www.sandwell.gov.uk/info/200202/performance_and_spending/1079/payments_over_500,01-Feb-2022,Individual School Budgets With Inclusion,COLMORE EDUCATION RECRUITMENT,Individual School Budgets With Inclusion,625.00,Agency Staff,2122P11_CR00700,148720
Sandwell Metropolitan Borough Council,http://www.sandwell.gov.uk/info/200202/performance_and_spending/1079/payments_over_500,01-Feb-2022,Individual School Budgets With Inclusion,COLMORE EDUCATION RECRUITMENT,Individual School Budgets With Inclusion,675.00,Agency Staff,2122P11_CR00701,148720
Sandwell Metropolitan Borough Council,http://www.sandwell.gov.uk/info/200202/performance_and_spending/1079/payments_over_500,01-Feb-2022,Individual School Budgets With Inclusion,COLMORE EDUCATION RECRUITMENT,Individual School Budgets With Inclusion,995.00,Agency Staff,2122P11_CR00702,148720
Sandwell Metropolitan Borough Council,http://www.sandwell.gov.uk/info/200202/performance_and_spending/1079/payments_over_500,01-Feb-2022,Individual School Budgets With Inclusion,COLMORE EDUCATION RECRUITMENT,Individual School Budgets With Inclusion,880.00,Agency Staff,2122P11_CR00703,148720
Sandwell Metropolitan Borough Council,http://www.sandwell.gov.uk/info/200202/performance_and_spending/1079/payments_over_500,01-Feb-2022,Individual School Budgets With Inclusion,COLMORE EDUCATION RECRUITMENT,Individual School Budgets With Inclusion,617.90,Agency Staff,2122P11_CR00704,148720
Sandwell Metropolitan Borough Council,http://www.sandwell.gov.uk/info/200202/performance_and_spending/1079/payments_over_500,01-Feb-2022,Individual School Budgets With Inclusion,COLMORE EDUCATION RECRUITMENT,Individual School Budgets With Inclusion,625.00,Agency Staff,2122P11_CR00705,148720
Sandwell Metropolitan Borough Council,http://www.sandwell.gov.uk/info/200202/performance_and_spending/1079/payments_over_500,01-Feb-2022,Individual School Budgets With Inclusion,COLMORE EDUCATION RECRUITMENT,Individual School Budgets With Inclusion,600.00,Agency Staff,2122P11_CR00706,148720
Sandwell Metropolitan Borough Council,http://www.sandwell.gov.uk/info/200202/performance_and_spending/1079/payments_over_500,01-Feb-2022,Individual School Budgets With Inclusion,COLMORE EDUCATION RECRUITMENT,Individual School Budgets With Inclusion,600.00,Agency Staff,2122P11_CR00707,148720
Sandwell Metropolitan Borough Council,http://www.sandwell.gov.uk/info/200202/performance_and_spending/1079/payments_over_500,01-Feb-2022,Individual School Budgets With Inclusion,COLMORE EDUCATION RECRUITMENT,Individual School Budgets With Inclusion,675.00,Agency Staff,2122P11_CR00708,148720
Sandwell Metropolitan Borough Council,http://www.sandwell.gov.uk/info/200202/performance_and_spending/1079/payments_over_500,01-Feb-2022,Individual School Budgets With Inclusion,COLMORE EDUCATION RECRUITMENT,Individual School Budgets With Inclusion,1100.00,Agency Staff,2122P11_CR00709,148720
Sandwell Metropolitan Borough Council,http://www.sandwell.gov.uk/info/200202/performance_and_spending/1079/payments_over_500,01-Feb-2022,Individual School Budgets With Inclusion,COLMORE EDUCATION RECRUITMENT,Individual School Budgets With Inclusion,600.00,Agency Staff,2122P11_CR00710,148720
Sandwell Metropolitan Borough Council,http://www.sandwell.gov.uk/info/200202/performance_and_spending/1079/payments_over_500,01-Feb-2022,Individual School Budgets With Inclusion,COLMORE EDUCATION RECRUITMENT,Individual School Budgets With Inclusion,1100.00,Agency Staff,2122P11_CR00711,148720
Sandwell Metropolitan Borough Council,http://www.sandwell.gov.uk/info/200202/performance_and_spending/1079/payments_over_500,01-Feb-2022,Individual School Budgets With Inclusion,COLMORE EDUCATION RECRUITMENT,Individual School Budgets With Inclusion,600.00,Agency Staff,2122P11_CR00712,148720
Sandwell Metropolitan Borough Council,http://www.sandwell.gov.uk/info/200202/performance_and_spending/1079/payments_over_500,21-Feb-2022,Individual School Budgets With Inclusion,COLMORE EDUCATION RECRUITMENT,Individual School Budgets With Inclusion,617.90,Agency Staff,2122P11_CR00713,148720
Sandwell Metropolitan Borough Council,http://www.sandwell.gov.uk/info/200202/performance_and_spending/1079/payments_over_500,21-Feb-2022,Individual School Budgets With Inclusion,COLMORE EDUCATION RECRUITMENT,Individual School Budgets With Inclusion,625.00,Agency Staff,2122P11_CR00714,148720
Sandwell Metropolitan Borough Council,http://www.sandwell.gov.uk/info/200202/performance_and_spending/1079/payments_over_500,21-Feb-2022,Individual School Budgets With Inclusion,COLMORE EDUCATION RECRUITMENT,Individual School Budgets With Inclusion,675.00,Agency Staff,2122P11_CR00715,148720
Sandwell Metropolitan Borough Council,http://www.sandwell.gov.uk/info/200202/performance_and_spending/1079/payments_over_500,21-Feb-2022,Individual School Budgets With Inclusion,COLMORE EDUCATION RECRUITMENT,Individual School Budgets With Inclusion,1100.00,Agency Staff,2122P11_CR00716,148720
Sandwell Metropolitan Borough Council,http://www.sandwell.gov.uk/info/200202/performance_and_spending/1079/payments_over_500,21-Feb-2022,Individual School Budgets With Inclusion,COLMORE EDUCATION RECRUITMENT,Individual School Budgets With Inclusion,600.00,Agency Staff,2122P11_CR00717,148720
Sandwell Metropolitan Borough Council,http://www.sandwell.gov.uk/info/200202/performance_and_spending/1079/payments_over_500,21-Feb-2022,Individual School Budgets With Inclusion,COLMORE EDUCATION RECRUITMENT,Individual School Budgets With Inclusion,675.00,Agency Staff,2122P11_CR00718,148720
Sandwell Metropolitan Borough Council,http://www.sandwell.gov.uk/info/200202/performance_and_spending/1079/payments_over_500,21-Feb-2022,Individual School Budgets With Inclusion,COLMORE EDUCATION RECRUITMENT,Individual School Budgets With Inclusion,600.00,Agency Staff,2122P11_CR00719,148720
Sandwell Metropolitan Borough Council,http://www.sandwell.gov.uk/info/200202/performance_and_spending/1079/payments_over_500,02-Feb-2022,Individual School Budgets With Inclusion,COMMUNITY ACTION PROJECT,Individual School Budgets With Inclusion,1980.00,Externally Purchased Professional Services ,2122P11_CR00720,01702622
Sandwell Metropolitan Borough Council,http://www.sandwell.gov.uk/info/200202/performance_and_spending/1079/payments_over_500,21-Feb-2022,Individual School Budgets With Inclusion,COMMUNITY SKILLS AND KNOWLEDGE NETWORK CIC,Individual School Budgets With Inclusion,3902.50,Learning Resources,2122P11_CR00721,133735
Sandwell Metropolitan Borough Council,http://www.sandwell.gov.uk/info/200202/performance_and_spending/1079/payments_over_500,09-Feb-2022,Individual School Budgets With Inclusion,COMPASS CHILDREN'S HOMES LTD.,Individual School Budgets With Inclusion,22533.33,Other Establishments,2122P11_CR00722,143365
Sandwell Metropolitan Borough Council,http://www.sandwell.gov.uk/info/200202/performance_and_spending/1079/payments_over_500,09-Feb-2022,Individual School Budgets With Inclusion,COMPASS CHILDREN'S HOMES LTD.,Individual School Budgets With Inclusion,22533.33,Other Establishments,2122P11_CR00723,143365
Sandwell Metropolitan Borough Council,http://www.sandwell.gov.uk/info/200202/performance_and_spending/1079/payments_over_500,03-Feb-2022,Individual School Budgets With Inclusion,DAFFODILS DAY NURSERY,Individual School Budgets With Inclusion,1603.80,Externally Purchased Professional Services ,2122P11_CR00724,122616
Sandwell Metropolitan Borough Council,http://www.sandwell.gov.uk/info/200202/performance_and_spending/1079/payments_over_500,02-Feb-2022,Individual School Budgets With Inclusion,DUDLEY ACADEMIES TRUST,Individual School Budgets With Inclusion,14322.44,Other Local Authorities,2122P11_CR00725,18374
Sandwell Metropolitan Borough Council,http://www.sandwell.gov.uk/info/200202/performance_and_spending/1079/payments_over_500,01-Feb-2022,Individual School Budgets With Inclusion,DUDLEY MBC,Individual School Budgets With Inclusion,62917.35,Other Local Authorities,2122P11_CR00726,01349846
Sandwell Metropolitan Borough Council,http://www.sandwell.gov.uk/info/200202/performance_and_spending/1079/payments_over_500,01-Feb-2022,Individual School Budgets With Inclusion,DUDLEY MBC,Individual School Budgets With Inclusion,49080.96,Other Local Authorities,2122P11_CR00727,01349846
Sandwell Metropolitan Borough Council,http://www.sandwell.gov.uk/info/200202/performance_and_spending/1079/payments_over_500,01-Feb-2022,Individual School Budgets With Inclusion,DUDLEY MBC,Individual School Budgets With Inclusion,200090.79,Other Local Authorities,2122P11_CR00728,01349846
Sandwell Metropolitan Borough Council,http://www.sandwell.gov.uk/info/200202/performance_and_spending/1079/payments_over_500,01-Feb-2022,Individual School Budgets With Inclusion,EG (TRAINING) LTD,Individual School Budgets With Inclusion,913.30,Other Local Authorities,2122P11_CR00729,146780
Sandwell Metropolitan Borough Council,http://www.sandwell.gov.uk/info/200202/performance_and_spending/1079/payments_over_500,01-Feb-2022,Individual School Budgets With Inclusion,ENVIRONMENTS FOR LEARNING SANDWELL PFI ONE LIMITED,Individual School Budgets With Inclusion,649.44,PFI & PPP Schemes,2122P11_CR00730,98332
Sandwell Metropolitan Borough Council,http://www.sandwell.gov.uk/info/200202/performance_and_spending/1079/payments_over_500,01-Feb-2022,Individual School Budgets With Inclusion,ENVIRONMENTS FOR LEARNING SANDWELL PFI ONE LIMITED,Individual School Budgets With Inclusion,1575.00,PFI & PPP Schemes,2122P11_CR00731,98332
Sandwell Metropolitan Borough Council,http://www.sandwell.gov.uk/info/200202/performance_and_spending/1079/payments_over_500,14-Feb-2022,Individual School Budgets With Inclusion,ENVIRONMENTS FOR LEARNING SANDWELL PFI ONE LIMITED,Individual School Budgets With Inclusion,11356.09,PFI & PPP Schemes,2122P11_CR00732,98332
Sandwell Metropolitan Borough Council,http://www.sandwell.gov.uk/info/200202/performance_and_spending/1079/payments_over_500,14-Feb-2022,Individual School Budgets With Inclusion,ENVIRONMENTS FOR LEARNING SANDWELL PFI ONE LIMITED,Individual School Budgets With Inclusion,3264.67,PFI & PPP Schemes,2122P11_CR00733,98332
Sandwell Metropolitan Borough Council,http://www.sandwell.gov.uk/info/200202/performance_and_spending/1079/payments_over_500,14-Feb-2022,Individual School Budgets With Inclusion,ENVIRONMENTS FOR LEARNING SANDWELL PFI ONE LIMITED,Individual School Budgets With Inclusion,593347.11,PFI & PPP Schemes,2122P11_CR00734,98332
Sandwell Metropolitan Borough Council,http://www.sandwell.gov.uk/info/200202/performance_and_spending/1079/payments_over_500,01-Feb-2022,Individual School Budgets With Inclusion,FIRST STEPS OLDBURY,Individual School Budgets With Inclusion,1069.20,Externally Purchased Professional Services ,2122P11_CR00735,118886
Sandwell Metropolitan Borough Council,http://www.sandwell.gov.uk/info/200202/performance_and_spending/1079/payments_over_500,09-Feb-2022,Individual School Budgets With Inclusion,FIRST STEPS OLDBURY,Individual School Budgets With Inclusion,1569.60,Externally Purchased Professional Services ,2122P11_CR00736,118886
